﻿Department family,Entity,Date of payment,Expense type,Expense area,Supplier,Transaction number,Amount in Sterling,Supplier VAT Registration Number
Department of Health,Guys and St Thomas NHS Foundation Trust,19/02/2021,(81200) Medical Surgical Supplies & Equipment,(id:41897) TAP,ELIS UK LIMITED,id:13716744    ,  56.10
Department of Health,Guys and St Thomas NHS Foundation Trust,25/02/2021,(81200) Medical Surgical Supplies & Equipment,(id:41897) TAP,NHS SUPPLY CHAIN (MAIDSTONE),id:13641574 , 516.58
Department of Health,Guys and St Thomas NHS Foundation Trust,05/02/2021,(81200) Medical Surgical Supplies & Equipment,(id:41897) TAP,CRYOLIFE EUROPA LTD,id:13699536,1260.00
Department of Health,Guys and St Thomas NHS Foundation Trust,05/02/2021,(81200) Medical Surgical Supplies & Equipment,(id:41897) TAP,ALCON EYE CARE UK LIMITED,id:13726654    ,5875.20
Department of Health,Guys and St Thomas NHS Foundation Trust,19/02/2021,(81100) Dressings,(id:41897) TAP,ELIS UK LIMITED,id:13697995  , 604.16
Department of Health,Guys and St Thomas NHS Foundation Trust,05/02/2021,(81100) Dressings,(id:41897) TAP,ELIS UK LIMITED,id:13728577  , 471.96
Department of Health,Guys and St Thomas NHS Foundation Trust,25/02/2021,(84501) Establishment,(id:41897) TAP,CDP  PRINT MANAGEMENT,id:13786276  ,2860.00
Department of Health,Guys and St Thomas NHS Foundation Trust,19/02/2021,(81100) Dressings,(id:41894) TAP,NHS SUPPLY CHAIN (MAIDSTONE),id:13687498    ,  21.04
Department of Health,Guys and St Thomas NHS Foundation Trust,19/02/2021,(82600) Uniforms & Clothing,(id:41894) TAP,NHS SUPPLY CHAIN (MAIDSTONE),id:13633898    ,  19.80
Department of Health,Guys and St Thomas NHS Foundation Trust,12/02/2021,(81200) Medical Surgical Supplies & Equipment,(id:41894) TAP,CONMED LINVATEC UK,id:13480477 , 216.00
Department of Health,Guys and St Thomas NHS Foundation Trust,25/02/2021,(81200) Medical Surgical Supplies & Equipment,(id:41894) TAP,NHS SUPPLY CHAIN (MAIDSTONE),id:13709794 , 500.08
Department of Health,Guys and St Thomas NHS Foundation Trust,25/02/2021,(81100) Dressings,(id:41892) TAP,NHS SUPPLY CHAIN (MAIDSTONE),id:13641574    ,  15.96
Department of Health,Guys and St Thomas NHS Foundation Trust,25/02/2021,(82800) Bedding & Linen,(id:41883) TAP,NHS SUPPLY CHAIN (MAIDSTONE),id:13709794   , 266.03
Department of Health,Guys and St Thomas NHS Foundation Trust,25/02/2021,(81225) Medical Surgical Supplies & Equipment,(id:41883) TAP,NHS SUPPLY CHAIN (MAIDSTONE),id:13641574 ,  57.68
Department of Health,Guys and St Thomas NHS Foundation Trust,05/02/2021,(81100) Dressings,(id:41883) TAP,ELIS UK LIMITED,id:13728573  , 847.90
Department of Health,Guys and St Thomas NHS Foundation Trust,12/02/2021,(81200) Medical Surgical Supplies & Equipment,(id:41883) TAP,JOHNSON & JOHNSON MEDICAL LTD,id:13694239,  56.52
Department of Health,Guys and St Thomas NHS Foundation Trust,19/02/2021,(81200) Medical Surgical Supplies & Equipment,(id:41883) TAP,JOHNSON & JOHNSON MEDICAL LTD,id:13717096, 572.55
Department of Health,Guys and St Thomas NHS Foundation Trust,25/02/2021,(83400) Office Equipment,(id:41883) TAP,NHS SUPPLY CHAIN (MAIDSTONE),id:13709794  , 675.89
Department of Health,Guys and St Thomas NHS Foundation Trust,25/02/2021,(82800) Bedding & Linen,(id:41907) TAP,NHS SUPPLY CHAIN (MAIDSTONE),id:13709794   ,   6.77
Department of Health,Guys and St Thomas NHS Foundation Trust,25/02/2021,(81100) Dressings,(id:41907) TAP,NHS SUPPLY CHAIN (MAIDSTONE),id:13641574    ,  69.20
Department of Health,Guys and St Thomas NHS Foundation Trust,25/02/2021,(82600) Uniforms & Clothing,(id:41907) TAP,NHS SUPPLY CHAIN (MAIDSTONE),id:13709794    ,  23.04
Department of Health,Guys and St Thomas NHS Foundation Trust,25/02/2021,(81230) Medical Surgical Supplies & Equipment,(id:41907) TAP,NHS SUPPLY CHAIN (MAIDSTONE),id:13641574 ,1702.69
Department of Health,Guys and St Thomas NHS Foundation Trust,19/02/2021,(82800) Bedding & Linen,(id:41905) TAP,NHS SUPPLY CHAIN (MAIDSTONE),id:13687498   ,   7.44
Department of Health,Guys and St Thomas NHS Foundation Trust,19/02/2021,(81200) Medical Surgical Supplies & Equipment,(id:41905) TAP,NHS SUPPLY CHAIN (MAIDSTONE),id:13633898 ,4458.98
Department of Health,Guys and St Thomas NHS Foundation Trust,19/02/2021,(81100) Dressings,(id:41913) TAP,NHS SUPPLY CHAIN (MAIDSTONE),id:13687498    , 366.77
Department of Health,Guys and St Thomas NHS Foundation Trust,25/02/2021,(81200) Medical Surgical Supplies & Equipment,(id:41913) TAP,NHS SUPPLY CHAIN (MAIDSTONE),id:13641574 ,2706.84
Department of Health,Guys and St Thomas NHS Foundation Trust,05/02/2021,(81200) Medical Surgical Supplies & Equipment,(id:41913) TAP,HEALTHCARE 21 LTD,id:13662697  , 559.26
Department of Health,Guys and St Thomas NHS Foundation Trust,25/02/2021,(81200) Medical Surgical Supplies & Equipment,(id:41913) TAP,DRAEGER MEDICAL UK LTD,id:13794274  , 525.60
Department of Health,Guys and St Thomas NHS Foundation Trust,19/02/2021,(82600) Uniforms & Clothing,(id:41913) TAP,NHS SUPPLY CHAIN (MAIDSTONE),id:13633898    ,   5.76
Department of Health,Guys and St Thomas NHS Foundation Trust,19/02/2021,(81200) Medical Surgical Supplies & Equipment,(id:41918) TAP,NHS SUPPLY CHAIN (MAIDSTONE),id:13633898 , 245.32
Department of Health,Guys and St Thomas NHS Foundation Trust,19/02/2021,(81100) Dressings,(id:41918) TAP,ELIS UK LIMITED,id:13551720  , 458.57
Department of Health,Guys and St Thomas NHS Foundation Trust,19/02/2021,(81255) Medical Surgical Supplies & Equipment,(id:41918) TAP,NHS SUPPLY CHAIN (MAIDSTONE),id:13633898 ,   3.12
Department of Health,Guys and St Thomas NHS Foundation Trust,25/02/2021,(82000) Provisions & Kitchens,(id:41916) TAP,NHS SUPPLY CHAIN (MAIDSTONE),id:13709794  ,   5.76
Department of Health,Guys and St Thomas NHS Foundation Trust,25/02/2021,(81700) Lab Equipment Purchase,(id:41916) TAP,NHS SUPPLY CHAIN (MAIDSTONE),id:13641574 ,   9.28
Department of Health,Guys and St Thomas NHS Foundation Trust,12/02/2021,(83500) Furniture & Fittings,(id:4274419) Gastrointestinal Medicine & Surgery,IKEA BUSINESS,id:13734754    , 739.00
Department of Health,Guys and St Thomas NHS Foundation Trust,25/02/2021,(82000) Provisions & Kitchens,(id:41958) Gastrointestinal Medicine & Surgery,NHS SUPPLY CHAIN (MAIDSTONE),id:13641574, 448.94
Department of Health,Guys and St Thomas NHS Foundation Trust,19/02/2021,(82000) Provisions & Kitchens,(id:41958) Gastrointestinal Medicine & Surgery,NHS SUPPLY CHAIN (MAIDSTONE),id:13633898,  85.87
Department of Health,Guys and St Thomas NHS Foundation Trust,05/02/2021,(83400) Office Equipment,(id:41958) Gastrointestinal Medicine & Surgery,LAZERBEAM FIRE AND SECURITY LTD,id:13327104  ,1800.00
Department of Health,Guys and St Thomas NHS Foundation Trust,19/02/2021,(82800) Bedding & Linen,(id:41958) Gastrointestinal Medicine & Surgery,NHS SUPPLY CHAIN (MAIDSTONE),id:13687498 ,   6.94
Department of Health,Guys and St Thomas NHS Foundation Trust,19/02/2021,(50552) Qualified Nursing Staff,(id:41958) Gastrointestinal Medicine & Surgery,CONTINENTAL NURSE LTD,id:13775987,2409.28
Department of Health,Guys and St Thomas NHS Foundation Trust,25/02/2021,(81225) Medical Surgical Supplies & Equipment,(id:41958) Gastrointestinal Medicine & Surgery,NHS SUPPLY CHAIN (MAIDSTONE),id:13641574    ,   4.85
Department of Health,Guys and St Thomas NHS Foundation Trust,05/02/2021,(81000) Surgical Appliances,(id:41955) Gastrointestinal Medicine & Surgery,TALAR MADE ORTHOTICS LTD,id:13722054 ,  93.00
Department of Health,Guys and St Thomas NHS Foundation Trust,25/02/2021,(83400) Office Equipment,(id:41954) Gastrointestinal Medicine & Surgery,NHS SUPPLY CHAIN (MAIDSTONE),id:13709794, 108.79
Department of Health,Guys and St Thomas NHS Foundation Trust,19/02/2021,(81200) Medical Surgical Supplies & Equipment,(id:41954) Gastrointestinal Medicine & Surgery,NHS SUPPLY CHAIN (MAIDSTONE),id:13687498    , 854.94
Department of Health,Guys and St Thomas NHS Foundation Trust,25/02/2021,(81100) Dressings,(id:41954) Gastrointestinal Medicine & Surgery,NHS SUPPLY CHAIN (MAIDSTONE),id:13709794  , 409.50
Department of Health,Guys and St Thomas NHS Foundation Trust,25/02/2021,(81700) Lab Equipment Purchase,(id:41954) Gastrointestinal Medicine & Surgery,NHS SUPPLY CHAIN (MAIDSTONE),id:13709794    ,   5.93
Department of Health,Guys and St Thomas NHS Foundation Trust,19/02/2021,(81100) Dressings,(id:41949) Gastrointestinal Medicine & Surgery,NHS SUPPLY CHAIN (MAIDSTONE),id:13633898  , 148.46
Department of Health,Guys and St Thomas NHS Foundation Trust,05/02/2021,(81100) Dressings,(id:41949) Gastrointestinal Medicine & Surgery,JOHNSON & JOHNSON MEDICAL LTD,id:13637618 , 678.78
Department of Health,Guys and St Thomas NHS Foundation Trust,25/02/2021,(81100) Dressings,(id:41949) Gastrointestinal Medicine & Surgery,NHS SUPPLY CHAIN (MAIDSTONE),id:13641574  , 983.48
Department of Health,Guys and St Thomas NHS Foundation Trust,05/02/2021,(81200) Medical Surgical Supplies & Equipment,(id:41949) Gastrointestinal Medicine & Surgery,MEDTRONIC LTD,id:13631226    ,2527.20
Department of Health,Guys and St Thomas NHS Foundation Trust,05/02/2021,(81200) Medical Surgical Supplies & Equipment,(id:41949) Gastrointestinal Medicine & Surgery,JOHNSON & JOHNSON MEDICAL LTD,id:13652446   ,2617.92
Department of Health,Guys and St Thomas NHS Foundation Trust,25/02/2021,(81200) Medical Surgical Supplies & Equipment,(id:41949) Gastrointestinal Medicine & Surgery,MEDTRONIC LTD,id:13631291    ,2761.78
Department of Health,Guys and St Thomas NHS Foundation Trust,05/02/2021,(50522) Unqualified Nursing Staff,(id:2367419) Gastrointestinal Medicine & Surgery,MSI GROUP LTD,id:13727361    , 255.97
Department of Health,Guys and St Thomas NHS Foundation Trust,05/02/2021,(50522) Unqualified Nursing Staff,(id:2367419) Gastrointestinal Medicine & Surgery,GLOBE LOCUMS LTD,id:13727242 , 792.37
Department of Health,Guys and St Thomas NHS Foundation Trust,19/02/2021,(83400) Office Equipment,(id:2367419) Gastrointestinal Medicine & Surgery,NHS SUPPLY CHAIN (MAIDSTONE),id:13633898   , 220.02
Department of Health,Guys and St Thomas NHS Foundation Trust,19/02/2021,(81200) Medical Surgical Supplies & Equipment,(id:41942) Gastrointestinal Medicine & Surgery,NHS SUPPLY CHAIN (MAIDSTONE),id:13633898    , 621.00
Department of Health,Guys and St Thomas NHS Foundation Trust,05/02/2021,(84656) Establishment,(id:41942) Gastrointestinal Medicine & Surgery,DICT8 LIMITED,id:13724214   ,1578.24
Department of Health,Guys and St Thomas NHS Foundation Trust,19/02/2021,(83400) Office Equipment,(id:41917) Gastrointestinal Medicine & Surgery,NHS SUPPLY CHAIN (MAIDSTONE),id:13687498, 285.92
Department of Health,Guys and St Thomas NHS Foundation Trust,25/02/2021,(81200) Medical Surgical Supplies & Equipment,(id:41917) Gastrointestinal Medicine & Surgery,NHS SUPPLY CHAIN (MAIDSTONE),id:13641574    ,    11667.33
Department of Health,Guys and St Thomas NHS Foundation Trust,19/02/2021,(81200) Medical Surgical Supplies & Equipment,(id:41917) Gastrointestinal Medicine & Surgery,NHS SUPPLY CHAIN (MAIDSTONE),id:13633898    ,9520.89
Department of Health,Guys and St Thomas NHS Foundation Trust,19/02/2021,(81200) Medical Surgical Supplies & Equipment,(id:41917) Gastrointestinal Medicine & Surgery,BOSTON SCIENTIFIC LTD,id:13722819 ,3471.86
Department of Health,Guys and St Thomas NHS Foundation Trust,19/02/2021,(81200) Medical Surgical Supplies & Equipment,(id:41917) Gastrointestinal Medicine & Surgery,SYNECTICS MEDICAL LTD (SYNMED),id:13726234  ,2541.60
Department of Health,Guys and St Thomas NHS Foundation Trust,19/02/2021,(81200) Medical Surgical Supplies & Equipment,(id:41917) Gastrointestinal Medicine & Surgery,VWS (UK) LTD T/A VEOLIA WATER TECHNOLOGIES,id:13332154,    -2142.00
Department of Health,Guys and St Thomas NHS Foundation Trust,05/02/2021,(81200) Medical Surgical Supplies & Equipment,(id:41917) Gastrointestinal Medicine & Surgery,BOSTON SCIENTIFIC LTD,id:13657613 , 512.24
Department of Health,Guys and St Thomas NHS Foundation Trust,25/02/2021,(81100) Dressings,(id:41917) Gastrointestinal Medicine & Surgery,NHS SUPPLY CHAIN (MAIDSTONE),id:13641574  , 149.47
Department of Health,Guys and St Thomas NHS Foundation Trust,19/02/2021,(50532) Unqualified Nursing Staff,(id:41917) Gastrointestinal Medicine & Surgery,CONTINENTAL NURSE LTD,id:13779696   , 962.47
Department of Health,Guys and St Thomas NHS Foundation Trust,12/02/2021,(81900) Lab Equipment Purchase,(id:111406) Pathology,VIAPATH ANALYTICS LLP,id:13649177 ,2475.00
Department of Health,Guys and St Thomas NHS Foundation Trust,09/02/2021,(81900) Lab Equipment Purchase,(id:111406) Pathology,VIAPATH ANALYTICS LLP,id:13742776 ,  -268426.95
Department of Health,Guys and St Thomas NHS Foundation Trust,25/02/2021,(89600) Non-Healthcare from other NHS bodies,(id:42134) Pathology,NHS BLOOD AND TRANSPLANT,id:13793754,4504.83
Department of Health,Guys and St Thomas NHS Foundation Trust,19/02/2021,(89600) Non-Healthcare from other NHS bodies,(id:42134) Pathology,NHS BLOOD AND TRANSPLANT,id:13773674,   256079.83
Department of Health,Guys and St Thomas NHS Foundation Trust,19/02/2021,(83610) IT Costs,(id:3821419) Cancer Strategy,APPLE RETAIL UK LTD,id:13761254,3310.80
Department of Health,Guys and St Thomas NHS Foundation Trust,19/02/2021,(89270) Establishment,(id:3821419) Cancer Strategy,WHITE BICYCLE LTD,id:13721595  ,3000.00
Department of Health,Guys and St Thomas NHS Foundation Trust,25/02/2021,(55100) Admin & Clerical,(id:3367419) Cancer Strategy,NHS NORTH AND EAST LONDON CSU,id:13027957  ,5904.07
Department of Health,Guys and St Thomas NHS Foundation Trust,25/02/2021,(81100) Dressings,(id:42423) Transplant Renal and Urology,KCI MEDICAL LTD,id:13796496  , 576.18
Department of Health,Guys and St Thomas NHS Foundation Trust,05/02/2021,(83500) Furniture & Fittings,(id:42419) Transplant Renal and Urology,TECHNIBLINDS LTD,id:13679334, 583.80
Department of Health,Guys and St Thomas NHS Foundation Trust,19/02/2021,(83400) Office Equipment,(id:42419) Transplant Renal and Urology,NHS SUPPLY CHAIN (MAIDSTONE),id:13687498  , 105.23
Department of Health,Guys and St Thomas NHS Foundation Trust,19/02/2021,(81255) Medical Surgical Supplies & Equipment,(id:42419) Transplant Renal and Urology,NHS SUPPLY CHAIN (MAIDSTONE),id:13633898 ,   5.64
Department of Health,Guys and St Thomas NHS Foundation Trust,12/02/2021,(81200) Medical Surgical Supplies & Equipment,(id:42450) Transplant Renal and Urology,STRYKER UK LTD,id:13747714, 613.87
Department of Health,Guys and St Thomas NHS Foundation Trust,19/02/2021,(81200) Medical Surgical Supplies & Equipment,(id:42450) Transplant Renal and Urology,MEDTRONIC LTD,id:13706115 ,1027.22
Department of Health,Guys and St Thomas NHS Foundation Trust,25/02/2021,(83400) Office Equipment,(id:42447) Transplant Renal and Urology,NHS SUPPLY CHAIN (MAIDSTONE),id:13641574  , 232.83
Department of Health,Guys and St Thomas NHS Foundation Trust,25/02/2021,(81100) Dressings,(id:42447) Transplant Renal and Urology,NHS SUPPLY CHAIN (MAIDSTONE),id:13709794    ,  52.17
Department of Health,Guys and St Thomas NHS Foundation Trust,05/02/2021,(50203) Consultants,(id:42447) Transplant Renal and Urology,KINGS COLLEGE LONDON:03529700,id:13684634 ,7109.52
Department of Health,Guys and St Thomas NHS Foundation Trust,05/02/2021,(81000) Surgical Appliances,(id:42447) Transplant Renal and Urology,TALAR MADE ORTHOTICS LTD,id:13719475   ,  93.00
Department of Health,Guys and St Thomas NHS Foundation Trust,05/02/2021,(81100) Dressings,(id:42446) Transplant Renal and Urology,JOHNSON & JOHNSON MEDICAL LTD,id:13625789   , 556.60
Department of Health,Guys and St Thomas NHS Foundation Trust,05/02/2021,(81200) Medical Surgical Supplies & Equipment,(id:42446) Transplant Renal and Urology,RICHARD WOLF U K  LTD,id:13708034   ,1392.00
Department of Health,Guys and St Thomas NHS Foundation Trust,25/02/2021,(81200) Medical Surgical Supplies & Equipment,(id:42446) Transplant Renal and Urology,JOHNSON & JOHNSON MEDICAL LTD,id:13765823,  37.13
Department of Health,Guys and St Thomas NHS Foundation Trust,25/02/2021,(81200) Medical Surgical Supplies & Equipment,(id:42446) Transplant Renal and Urology,AQUILANT LTD,id:13768174  , 578.76
Department of Health,Guys and St Thomas NHS Foundation Trust,19/02/2021,(83400) Office Equipment,(id:42446) Transplant Renal and Urology,NHS SUPPLY CHAIN (MAIDSTONE),id:13687498  , 193.94
Department of Health,Guys and St Thomas NHS Foundation Trust,25/02/2021,(81200) Medical Surgical Supplies & Equipment,(id:42444) Transplant Renal and Urology,COOK UK LTD,id:13733947   ,1146.00
Department of Health,Guys and St Thomas NHS Foundation Trust,19/02/2021,(82800) Bedding & Linen,(id:42443) Transplant Renal and Urology,NHS SUPPLY CHAIN (MAIDSTONE),id:13633898   , 127.77
Department of Health,Guys and St Thomas NHS Foundation Trust,25/02/2021,(82800) Bedding & Linen,(id:42443) Transplant Renal and Urology,NHS SUPPLY CHAIN (MAIDSTONE),id:13709794   , 104.86
Department of Health,Guys and St Thomas NHS Foundation Trust,19/02/2021,(81225) Medical Surgical Supplies & Equipment,(id:42443) Transplant Renal and Urology,NHS SUPPLY CHAIN (MAIDSTONE),id:13633898 ,  45.02
Department of Health,Guys and St Thomas NHS Foundation Trust,19/02/2021,(81700) Lab Equipment Purchase,(id:42443) Transplant Renal and Urology,NHS SUPPLY CHAIN (MAIDSTONE),id:13633898 ,   5.93
Department of Health,Guys and St Thomas NHS Foundation Trust,19/02/2021,(81255) Medical Surgical Supplies & Equipment,(id:42443) Transplant Renal and Urology,NHS SUPPLY CHAIN (MAIDSTONE),id:13687498 ,   2.16
Department of Health,Guys and St Thomas NHS Foundation Trust,25/02/2021,(81255) Medical Surgical Supplies & Equipment,(id:42443) Transplant Renal and Urology,NHS SUPPLY CHAIN (MAIDSTONE),id:13641574 ,   1.56
Department of Health,Guys and St Thomas NHS Foundation Trust,19/02/2021,(82000) Provisions & Kitchens,(id:42442) Transplant Renal and Urology,NHS SUPPLY CHAIN (MAIDSTONE),id:13633898  , 263.28
Department of Health,Guys and St Thomas NHS Foundation Trust,25/02/2021,(81100) Dressings,(id:42442) Transplant Renal and Urology,NHS SUPPLY CHAIN (MAIDSTONE),id:13709794    , 174.31
Department of Health,Guys and St Thomas NHS Foundation Trust,25/02/2021,(81100) Dressings,(id:42442) Transplant Renal and Urology,NHS SUPPLY CHAIN (MAIDSTONE),id:13641574    ,  41.03
Department of Health,Guys and St Thomas NHS Foundation Trust,25/02/2021,(81700) Lab Equipment Purchase,(id:42442) Transplant Renal and Urology,NHS SUPPLY CHAIN (MAIDSTONE),id:13709794 ,  68.43
Department of Health,Guys and St Thomas NHS Foundation Trust,19/02/2021,(81200) Medical Surgical Supplies & Equipment,(id:42439) Transplant Renal and Urology,PEAKS AND DALES MEDICAL,id:13718617 ,1146.00
Department of Health,Guys and St Thomas NHS Foundation Trust,19/02/2021,(81200) Medical Surgical Supplies & Equipment,(id:42439) Transplant Renal and Urology,INTUITIVE SURGICAL LTD,id:13709454  ,    74797.20
Department of Health,Guys and St Thomas NHS Foundation Trust,19/02/2021,(81200) Medical Surgical Supplies & Equipment,(id:42439) Transplant Renal and Urology,INTUITIVE SURGICAL LTD,id:13680395  ,    65220.00
Department of Health,Guys and St Thomas NHS Foundation Trust,19/02/2021,(82000) Provisions & Kitchens,(id:42435) Transplant Renal and Urology,NHS SUPPLY CHAIN (MAIDSTONE),id:13633898  , 261.18
Department of Health,Guys and St Thomas NHS Foundation Trust,19/02/2021,(82800) Bedding & Linen,(id:42435) Transplant Renal and Urology,NHS SUPPLY CHAIN (MAIDSTONE),id:13687498   ,  71.22
Department of Health,Guys and St Thomas NHS Foundation Trust,25/02/2021,(82800) Bedding & Linen,(id:42435) Transplant Renal and Urology,NHS SUPPLY CHAIN (MAIDSTONE),id:13709794   , 186.18
Department of Health,Guys and St Thomas NHS Foundation Trust,25/02/2021,(82800) Bedding & Linen,(id:42435) Transplant Renal and Urology,NHS SUPPLY CHAIN (MAIDSTONE),id:13641574   , 311.36
Department of Health,Guys and St Thomas NHS Foundation Trust,19/02/2021,(81200) Medical Surgical Supplies & Equipment,(id:42435) Transplant Renal and Urology,NHS SUPPLY CHAIN (MAIDSTONE),id:13687498 , 804.87
Department of Health,Guys and St Thomas NHS Foundation Trust,19/02/2021,(81255) Medical Surgical Supplies & Equipment,(id:42435) Transplant Renal and Urology,NHS SUPPLY CHAIN (MAIDSTONE),id:13687498 ,   6.00
Department of Health,Guys and St Thomas NHS Foundation Trust,19/02/2021,(81255) Medical Surgical Supplies & Equipment,(id:42435) Transplant Renal and Urology,NHS SUPPLY CHAIN (MAIDSTONE),id:13633898 ,   1.56
Department of Health,Guys and St Thomas NHS Foundation Trust,19/02/2021,(83400) Office Equipment,(id:42435) Transplant Renal and Urology,NHS SUPPLY CHAIN (MAIDSTONE),id:13687498  , 118.92
Department of Health,Guys and St Thomas NHS Foundation Trust,25/02/2021,(81700) Lab Equipment Purchase,(id:42435) Transplant Renal and Urology,NHS SUPPLY CHAIN (MAIDSTONE),id:13709794 ,  48.22
Department of Health,Guys and St Thomas NHS Foundation Trust,12/02/2021,(81200) Medical Surgical Supplies & Equipment,(id:42433) Transplant Renal and Urology,TELEFLEX MEDICAL,id:13664000   ,1401.30
Department of Health,Guys and St Thomas NHS Foundation Trust,19/02/2021,(81200) Medical Surgical Supplies & Equipment,(id:42433) Transplant Renal and Urology,BAXTER HEALTHCARE LTD,id:13742733   ,3396.38
Department of Health,Guys and St Thomas NHS Foundation Trust,19/02/2021,(81200) Medical Surgical Supplies & Equipment,(id:42430) Transplant Renal and Urology,NATIONAL CAR PARKS LTD,id:13778027  ,    26365.00
Department of Health,Guys and St Thomas NHS Foundation Trust,25/02/2021,(81100) Dressings,(id:42428) Transplant Renal and Urology,NHS SUPPLY CHAIN (MAIDSTONE),id:13641574    ,  22.58
Department of Health,Guys and St Thomas NHS Foundation Trust,25/02/2021,(81200) Medical Surgical Supplies & Equipment,(id:42428) Transplant Renal and Urology,NHS SUPPLY CHAIN (MAIDSTONE),id:13709794 ,  79.31
Department of Health,Guys and St Thomas NHS Foundation Trust,25/02/2021,(81200) Medical Surgical Supplies & Equipment,(id:42428) Transplant Renal and Urology,NHS SUPPLY CHAIN (MAIDSTONE),id:13641574 , 380.01
Department of Health,Guys and St Thomas NHS Foundation Trust,25/02/2021,(81700) Lab Equipment Purchase,(id:42428) Transplant Renal and Urology,NHS SUPPLY CHAIN (MAIDSTONE),id:13709794 , 135.47
Department of Health,Guys and St Thomas NHS Foundation Trust,19/02/2021,(81200) Medical Surgical Supplies & Equipment,(id:42420) Transplant Renal and Urology,NXSTAGE MEDICAL UK LIMITED,id:13433838   ,2463.94
Department of Health,Guys and St Thomas NHS Foundation Trust,05/02/2021,(81200) Medical Surgical Supplies & Equipment,(id:42420) Transplant Renal and Urology,FRESENIUS MEDICAL CARE UK LTD,id:13715215,1382.40
Department of Health,Guys and St Thomas NHS Foundation Trust,05/02/2021,(81200) Medical Surgical Supplies & Equipment,(id:42420) Transplant Renal and Urology,FRESENIUS MEDICAL CARE UK LTD,id:13722015,2211.84
Department of Health,Guys and St Thomas NHS Foundation Trust,12/02/2021,(80150) Drug Costs,(id:42420) Transplant Renal and Urology,BAXTER HEALTHCARE LTD,id:13703175, 192.00
Department of Health,Guys and St Thomas NHS Foundation Trust,25/02/2021,(80150) Drug Costs,(id:42420) Transplant Renal and Urology,NHS SUPPLY CHAIN (MAIDSTONE),id:13641574   ,  98.40
Department of Health,Guys and St Thomas NHS Foundation Trust,25/02/2021,(83400) Office Equipment,(id:42420) Transplant Renal and Urology,NHS SUPPLY CHAIN (MAIDSTONE),id:13709794  , 647.03
Department of Health,Guys and St Thomas NHS Foundation Trust,25/02/2021,(82800) Bedding & Linen,(id:42420) Transplant Renal and Urology,NHS SUPPLY CHAIN (MAIDSTONE),id:13709794   , 328.68
Department of Health,Guys and St Thomas NHS Foundation Trust,19/02/2021,(81700) Lab Equipment Purchase,(id:42420) Transplant Renal and Urology,NHS SUPPLY CHAIN (MAIDSTONE),id:13687498 ,1053.60
Department of Health,Guys and St Thomas NHS Foundation Trust,19/02/2021,(81200) Medical Surgical Supplies & Equipment,(id:42438) Transplant Renal and Urology,NHS SUPPLY CHAIN (MAIDSTONE),id:13687498 , 183.82
Department of Health,Guys and St Thomas NHS Foundation Trust,12/02/2021,(86300) Healthcare from non-NHS bodies,(id:42438) Transplant Renal and Urology,DIAVERUM UK LTD,id:13744294 ,    72146.59
Department of Health,Guys and St Thomas NHS Foundation Trust,19/02/2021,(82700) Uniforms & Clothing,(id:42438) Transplant Renal and Urology,NHS SUPPLY CHAIN (MAIDSTONE),id:13687498    ,   9.50
Department of Health,Guys and St Thomas NHS Foundation Trust,19/02/2021,(86300) Healthcare from non-NHS bodies,(id:42432) Transplant Renal and Urology,DIAVERUM UK LTD,id:13744154 ,    58252.18
Department of Health,Guys and St Thomas NHS Foundation Trust,19/02/2021,(86300) Healthcare from non-NHS bodies,(id:42424) Transplant Renal and Urology,DIAVERUM UK LTD,id:13778354 ,    27724.23
Department of Health,Guys and St Thomas NHS Foundation Trust,19/02/2021,(86300) Healthcare from non-NHS bodies,(id:42424) Transplant Renal and Urology,DIAVERUM UK LTD,id:13662758 ,    54917.46
Department of Health,Guys and St Thomas NHS Foundation Trust,19/02/2021,(81200) Medical Surgical Supplies & Equipment,(id:42422) Transplant Renal and Urology,NXSTAGE MEDICAL UK LIMITED,id:13756074   , 818.40
Department of Health,Guys and St Thomas NHS Foundation Trust,19/02/2021,(81100) Dressings,(id:42422) Transplant Renal and Urology,NHS SUPPLY CHAIN (MAIDSTONE),id:13633898    , 389.22
Department of Health,Guys and St Thomas NHS Foundation Trust,19/02/2021,(82800) Bedding & Linen,(id:42485) Surgery,NHS SUPPLY CHAIN (MAIDSTONE),id:13633898    , 136.33
Department of Health,Guys and St Thomas NHS Foundation Trust,05/02/2021,(81000) Surgical Appliances,(id:42485) Surgery,TALAR MADE ORTHOTICS LTD,id:13722054    ,  35.28
Department of Health,Guys and St Thomas NHS Foundation Trust,19/02/2021,(81200) Medical Surgical Supplies & Equipment,(id:42485) Surgery,NHS SUPPLY CHAIN (MAIDSTONE),id:13633898  , 313.30
Department of Health,Guys and St Thomas NHS Foundation Trust,05/02/2021,(81200) Medical Surgical Supplies & Equipment,(id:42484) Surgery,MOTIVA IMPLANTS UK LTD,id:13681200   , 986.02
Department of Health,Guys and St Thomas NHS Foundation Trust,05/02/2021,(81100) Dressings,(id:42484) Surgery,SMITH & NEPHEW ORTHOPAEDICS LTD.,id:13726098 , 641.04
Department of Health,Guys and St Thomas NHS Foundation Trust,05/02/2021,(81200) Medical Surgical Supplies & Equipment,(id:42467) Surgery,JOHNSON & JOHNSON MEDICAL LTD,id:13625787 , 512.71
Department of Health,Guys and St Thomas NHS Foundation Trust,05/02/2021,(81200) Medical Surgical Supplies & Equipment,(id:42467) Surgery,T J SMITH & NEPHEW LTD,id:13725974   ,2313.30
Department of Health,Guys and St Thomas NHS Foundation Trust,05/02/2021,(81200) Medical Surgical Supplies & Equipment,(id:42467) Surgery,JOHNSON & JOHNSON MEDICAL LTD,id:13644484 ,1725.34
Department of Health,Guys and St Thomas NHS Foundation Trust,05/02/2021,(81200) Medical Surgical Supplies & Equipment,(id:42467) Surgery,LEDA ORTHOPAEDICS LTD,id:13659795    ,2760.00
Department of Health,Guys and St Thomas NHS Foundation Trust,12/02/2021,(81200) Medical Surgical Supplies & Equipment,(id:42467) Surgery,JOHNSON & JOHNSON MEDICAL LTD,id:13746874 ,1717.21
Department of Health,Guys and St Thomas NHS Foundation Trust,19/02/2021,(81200) Medical Surgical Supplies & Equipment,(id:42467) Surgery,JOHNSON & JOHNSON MEDICAL LTD,id:13771462 , 650.95
Department of Health,Guys and St Thomas NHS Foundation Trust,25/02/2021,(81200) Medical Surgical Supplies & Equipment,(id:42467) Surgery,ZIMMER BIOMET UK LTD,id:13700148,    16123.20
Department of Health,Guys and St Thomas NHS Foundation Trust,19/02/2021,(81100) Dressings,(id:42467) Surgery,NHS SUPPLY CHAIN (MAIDSTONE),id:13687498,  61.73
Department of Health,Guys and St Thomas NHS Foundation Trust,25/02/2021,(83400) Office Equipment,(id:42467) Surgery,NHS SUPPLY CHAIN (MAIDSTONE),id:13641574   , 581.83
Department of Health,Guys and St Thomas NHS Foundation Trust,25/02/2021,(81200) Medical Surgical Supplies & Equipment,(id:42465) Surgery,NHS SUPPLY CHAIN (MAIDSTONE),id:13641574  ,1377.89
Department of Health,Guys and St Thomas NHS Foundation Trust,05/02/2021,(81000) Surgical Appliances,(id:42465) Surgery,TALAR MADE ORTHOTICS LTD,id:13722156    ,  25.64
Department of Health,Guys and St Thomas NHS Foundation Trust,05/02/2021,(50552) Qualified Nursing Staff,(id:42465) Surgery,GLOBE LOCUMS LTD,id:13727291   , 309.18
Department of Health,Guys and St Thomas NHS Foundation Trust,12/02/2021,(50552) Qualified Nursing Staff,(id:42465) Surgery,GLOBE LOCUMS LTD,id:13750724   , 606.76
Department of Health,Guys and St Thomas NHS Foundation Trust,12/02/2021,(50552) Qualified Nursing Staff,(id:42465) Surgery,MSI GROUP LTD,id:13750568 , 319.18
Department of Health,Guys and St Thomas NHS Foundation Trust,19/02/2021,(50552) Qualified Nursing Staff,(id:42465) Surgery,GLOBE LOCUMS LTD,id:13775805   , 655.71
Department of Health,Guys and St Thomas NHS Foundation Trust,19/02/2021,(50552) Qualified Nursing Staff,(id:42465) Surgery,MSI GROUP LTD,id:13775664 , 609.04
Department of Health,Guys and St Thomas NHS Foundation Trust,12/02/2021,(86010) Audit Fees,(id:42464) Surgery,HQIP HEALTHCARE QUALITY IMPROVEMENT PARTNERSHIP,id:13705114,    13596.94
Department of Health,Guys and St Thomas NHS Foundation Trust,19/02/2021,(81200) Medical Surgical Supplies & Equipment,(id:42463) Surgery,NHS SUPPLY CHAIN (MAIDSTONE),id:13687498  , 132.61
Department of Health,Guys and St Thomas NHS Foundation Trust,25/02/2021,(81100) Dressings,(id:42461) Surgery,NHS SUPPLY CHAIN (MAIDSTONE),id:13709794, 315.83
Department of Health,Guys and St Thomas NHS Foundation Trust,25/02/2021,(81200) Medical Surgical Supplies & Equipment,(id:42461) Surgery,NHS SUPPLY CHAIN (MAIDSTONE),id:13641574  ,  42.88
Department of Health,Guys and St Thomas NHS Foundation Trust,05/02/2021,(81000) Surgical Appliances,(id:42461) Surgery,TALAR MADE ORTHOTICS LTD,id:13722195    , 200.83
Department of Health,Guys and St Thomas NHS Foundation Trust,05/02/2021,(81000) Surgical Appliances,(id:42461) Surgery,TALAR MADE ORTHOTICS LTD,id:13719654    , 114.00
Department of Health,Guys and St Thomas NHS Foundation Trust,05/02/2021,(81000) Surgical Appliances,(id:42461) Surgery,TALAR MADE ORTHOTICS LTD,id:13722037    , 570.00
Department of Health,Guys and St Thomas NHS Foundation Trust,19/02/2021,(81000) Surgical Appliances,(id:42461) Surgery,TALAR MADE ORTHOTICS LTD,id:13761861    ,1198.39
Department of Health,Guys and St Thomas NHS Foundation Trust,19/02/2021,(81000) Surgical Appliances,(id:42461) Surgery,LBG MEDICAL LTD,id:13770854   , 700.88
Department of Health,Guys and St Thomas NHS Foundation Trust,25/02/2021,(82000) Provisions & Kitchens,(id:42459) Surgery,NHS SUPPLY CHAIN (MAIDSTONE),id:13641574   , 205.05
Department of Health,Guys and St Thomas NHS Foundation Trust,19/02/2021,(82800) Bedding & Linen,(id:42459) Surgery,NHS SUPPLY CHAIN (MAIDSTONE),id:13687498    , 126.39
Department of Health,Guys and St Thomas NHS Foundation Trust,25/02/2021,(82800) Bedding & Linen,(id:42459) Surgery,NHS SUPPLY CHAIN (MAIDSTONE),id:13641574    ,  70.24
Department of Health,Guys and St Thomas NHS Foundation Trust,25/02/2021,(81200) Medical Surgical Supplies & Equipment,(id:42459) Surgery,NHS SUPPLY CHAIN (MAIDSTONE),id:13709794  , 453.93
Department of Health,Guys and St Thomas NHS Foundation Trust,25/02/2021,(81200) Medical Surgical Supplies & Equipment,(id:42459) Surgery,NHS SUPPLY CHAIN (MAIDSTONE),id:13641574  ,  33.74
Department of Health,Guys and St Thomas NHS Foundation Trust,19/02/2021,(82800) Bedding & Linen,(id:42458) Surgery,NHS SUPPLY CHAIN (MAIDSTONE),id:13687498    ,   4.49
Department of Health,Guys and St Thomas NHS Foundation Trust,19/02/2021,(81100) Dressings,(id:42458) Surgery,NHS SUPPLY CHAIN (MAIDSTONE),id:13687498,  35.88
Department of Health,Guys and St Thomas NHS Foundation Trust,25/02/2021,(81100) Dressings,(id:42458) Surgery,NHS SUPPLY CHAIN (MAIDSTONE),id:13641574,  73.83
Department of Health,Guys and St Thomas NHS Foundation Trust,25/02/2021,(81100) Dressings,(id:42458) Surgery,NHS SUPPLY CHAIN (MAIDSTONE),id:13709794, 111.34
Department of Health,Guys and St Thomas NHS Foundation Trust,25/02/2021,(83400) Office Equipment,(id:42458) Surgery,NHS SUPPLY CHAIN (MAIDSTONE),id:13641574   ,  12.49
Department of Health,Guys and St Thomas NHS Foundation Trust,25/02/2021,(89270) Establishment,(id:42276) Haematology Cellular Pathology and Supporting Services,KINGS COLLEGE LONDON:03529700,id:13102956   ,    15749.34
Department of Health,Guys and St Thomas NHS Foundation Trust,19/02/2021,(81100) Dressings,(id:42270) Haematology Cellular Pathology and Supporting Services,NHS SUPPLY CHAIN (MAIDSTONE),id:13687498   , 353.93
Department of Health,Guys and St Thomas NHS Foundation Trust,19/02/2021,(81100) Dressings,(id:42270) Haematology Cellular Pathology and Supporting Services,NHS SUPPLY CHAIN (MAIDSTONE),id:13633898   ,  14.28
Department of Health,Guys and St Thomas NHS Foundation Trust,19/02/2021,(89595) Non-Healthcare from Foundation Trusts,(id:42267) Haematology Cellular Pathology and Supporting Services,KING'S COLLEGE HOSPITAL NHS FOUNDATION TRUST,id:13410995    ,    20879.25
Department of Health,Guys and St Thomas NHS Foundation Trust,25/02/2021,(82000) Provisions & Kitchens,(id:42265) Haematology Cellular Pathology and Supporting Services,NHS SUPPLY CHAIN (MAIDSTONE),id:13641574 , 387.94
Department of Health,Guys and St Thomas NHS Foundation Trust,19/02/2021,(82800) Bedding & Linen,(id:42265) Haematology Cellular Pathology and Supporting Services,NHS SUPPLY CHAIN (MAIDSTONE),id:13633898  , 106.25
Department of Health,Guys and St Thomas NHS Foundation Trust,19/02/2021,(50552) Qualified Nursing Staff,(id:42265) Haematology Cellular Pathology and Supporting Services,MSI GROUP LTD,id:13775752    , 331.39
Department of Health,Guys and St Thomas NHS Foundation Trust,19/02/2021,(83400) Office Equipment,(id:42265) Haematology Cellular Pathology and Supporting Services,NHS SUPPLY CHAIN (MAIDSTONE),id:13687498 , 126.31
Department of Health,Guys and St Thomas NHS Foundation Trust,25/02/2021,(81700) Lab Equipment Purchase,(id:42265) Haematology Cellular Pathology and Supporting Services,NHS SUPPLY CHAIN (MAIDSTONE),id:13709794,  79.70
Department of Health,Guys and St Thomas NHS Foundation Trust,05/02/2021,(82600) Uniforms & Clothing,(id:42272) Haematology Cellular Pathology and Supporting Services,ARENA INSTRUMENTATION LTD,id:13702019 , 672.00
Department of Health,Guys and St Thomas NHS Foundation Trust,25/02/2021,(82600) Uniforms & Clothing,(id:42272) Haematology Cellular Pathology and Supporting Services,COURIER SYSTEMS (ECOURIER),id:13797923,1106.63
Department of Health,Guys and St Thomas NHS Foundation Trust,25/02/2021,(82000) Provisions & Kitchens,(id:42272) Haematology Cellular Pathology and Supporting Services,NHS SUPPLY CHAIN (MAIDSTONE),id:13641574 ,  20.82
Department of Health,Guys and St Thomas NHS Foundation Trust,25/02/2021,(81200) Medical Surgical Supplies & Equipment,(id:42272) Haematology Cellular Pathology and Supporting Services,NHS SUPPLY CHAIN (MAIDSTONE),id:13709794, 181.87
Department of Health,Guys and St Thomas NHS Foundation Trust,12/02/2021,(80205) Drug Costs,(id:42273) Haematology Cellular Pathology and Supporting Services,HEALTHCARE AT HOME LTD,id:13731356   ,4003.00
Department of Health,Guys and St Thomas NHS Foundation Trust,12/02/2021,(80205) Drug Costs,(id:42273) Haematology Cellular Pathology and Supporting Services,HEALTHCARE AT HOME LTD,id:13731299   ,5247.00
Department of Health,Guys and St Thomas NHS Foundation Trust,05/02/2021,(80205) Drug Costs,(id:42273) Haematology Cellular Pathology and Supporting Services,HEALTHCARE AT HOME LTD,id:13730878   ,4152.00
Department of Health,Guys and St Thomas NHS Foundation Trust,05/02/2021,(80205) Drug Costs,(id:42273) Haematology Cellular Pathology and Supporting Services,HEALTHCARE AT HOME LTD,id:13655580   ,4927.00
Department of Health,Guys and St Thomas NHS Foundation Trust,05/02/2021,(80205) Drug Costs,(id:42273) Haematology Cellular Pathology and Supporting Services,HEALTHCARE AT HOME LTD,id:13730817   ,5692.00
Department of Health,Guys and St Thomas NHS Foundation Trust,05/02/2021,(80205) Drug Costs,(id:42273) Haematology Cellular Pathology and Supporting Services,HEALTHCARE AT HOME LTD,id:13730876   ,6127.00
Department of Health,Guys and St Thomas NHS Foundation Trust,19/02/2021,(80205) Drug Costs,(id:42273) Haematology Cellular Pathology and Supporting Services,HEALTHCARE AT HOME LTD,id:13732134   ,3367.00
Department of Health,Guys and St Thomas NHS Foundation Trust,19/02/2021,(80205) Drug Costs,(id:42273) Haematology Cellular Pathology and Supporting Services,HEALTHCARE AT HOME LTD,id:13732008   ,5509.00
Department of Health,Guys and St Thomas NHS Foundation Trust,19/02/2021,(80205) Drug Costs,(id:42273) Haematology Cellular Pathology and Supporting Services,HEALTHCARE AT HOME LTD,id:13732158   ,    17887.00
Department of Health,Guys and St Thomas NHS Foundation Trust,01/02/2021,(80205) Drug Costs,(id:42273) Haematology Cellular Pathology and Supporting Services,HEALTHCARE AT HOME LTD,id:13696474   ,1610.00
Department of Health,Guys and St Thomas NHS Foundation Trust,01/02/2021,(80205) Drug Costs,(id:42273) Haematology Cellular Pathology and Supporting Services,HEALTHCARE AT HOME LTD,id:13693799   ,2127.00
Department of Health,Guys and St Thomas NHS Foundation Trust,01/02/2021,(80205) Drug Costs,(id:42273) Haematology Cellular Pathology and Supporting Services,HEALTHCARE AT HOME LTD,id:13696554   ,2827.00
Department of Health,Guys and St Thomas NHS Foundation Trust,01/02/2021,(80205) Drug Costs,(id:42273) Haematology Cellular Pathology and Supporting Services,HEALTHCARE AT HOME LTD,id:13696734   ,5327.00
Department of Health,Guys and St Thomas NHS Foundation Trust,01/02/2021,(80205) Drug Costs,(id:42273) Haematology Cellular Pathology and Supporting Services,HEALTHCARE AT HOME LTD,id:13696520   ,    19327.00
Department of Health,Guys and St Thomas NHS Foundation Trust,24/02/2021,(80205) Drug Costs,(id:42273) Haematology Cellular Pathology and Supporting Services,HEALTHCARE AT HOME LTD,id:13784434   ,4003.00
Department of Health,Guys and St Thomas NHS Foundation Trust,24/02/2021,(80205) Drug Costs,(id:42273) Haematology Cellular Pathology and Supporting Services,HEALTHCARE AT HOME LTD,id:13784676   ,4927.00
Department of Health,Guys and St Thomas NHS Foundation Trust,24/02/2021,(80205) Drug Costs,(id:42273) Haematology Cellular Pathology and Supporting Services,HEALTHCARE AT HOME LTD,id:13784783   ,4927.00
Department of Health,Guys and St Thomas NHS Foundation Trust,24/02/2021,(80205) Drug Costs,(id:42273) Haematology Cellular Pathology and Supporting Services,HEALTHCARE AT HOME LTD,id:13784640   ,5127.00
Department of Health,Guys and St Thomas NHS Foundation Trust,24/02/2021,(80205) Drug Costs,(id:42273) Haematology Cellular Pathology and Supporting Services,HEALTHCARE AT HOME LTD,id:13784716   ,5247.00
Department of Health,Guys and St Thomas NHS Foundation Trust,24/02/2021,(80205) Drug Costs,(id:42273) Haematology Cellular Pathology and Supporting Services,HEALTHCARE AT HOME LTD,id:13784954   ,6067.00
Department of Health,Guys and St Thomas NHS Foundation Trust,24/02/2021,(80205) Drug Costs,(id:42273) Haematology Cellular Pathology and Supporting Services,HEALTHCARE AT HOME LTD,id:13784594   ,7727.00
Department of Health,Guys and St Thomas NHS Foundation Trust,24/02/2021,(80205) Drug Costs,(id:42273) Haematology Cellular Pathology and Supporting Services,HEALTHCARE AT HOME LTD,id:13784955   ,8227.00
Department of Health,Guys and St Thomas NHS Foundation Trust,24/02/2021,(80205) Drug Costs,(id:42273) Haematology Cellular Pathology and Supporting Services,HEALTHCARE AT HOME LTD,id:13784975   ,9087.00
Department of Health,Guys and St Thomas NHS Foundation Trust,24/02/2021,(80205) Drug Costs,(id:42273) Haematology Cellular Pathology and Supporting Services,HEALTHCARE AT HOME LTD,id:13784835   ,9340.80
Department of Health,Guys and St Thomas NHS Foundation Trust,05/02/2021,(54052) Technical Officers,(id:42128) Haematology Cellular Pathology and Supporting Services,TOTAL ASSIST RECRUITMENT LTD,id:13694578    , 939.18
Department of Health,Guys and St Thomas NHS Foundation Trust,05/02/2021,(54052) Technical Officers,(id:42128) Haematology Cellular Pathology and Supporting Services,TOTAL ASSIST RECRUITMENT LTD,id:13694527    ,1280.70
Department of Health,Guys and St Thomas NHS Foundation Trust,05/02/2021,(55040) Admin & Clerical,(id:2002419) Oncology Services,KINGS COLLEGE LONDON:03529700,id:13684874,3105.95
Department of Health,Guys and St Thomas NHS Foundation Trust,19/02/2021,(81225) Medical Surgical Supplies & Equipment,(id:42258) Oncology Services,NHS SUPPLY CHAIN (MAIDSTONE),id:13633898  ,  30.37
Department of Health,Guys and St Thomas NHS Foundation Trust,19/02/2021,(81200) Medical Surgical Supplies & Equipment,(id:42258) Oncology Services,NHS SUPPLY CHAIN (MAIDSTONE),id:13633898  , 332.17
Department of Health,Guys and St Thomas NHS Foundation Trust,19/02/2021,(89595) Non-Healthcare from Foundation Trusts,(id:42258) Oncology Services,OXLEAS NHS FOUNDATION TRUST,id:13757440   ,    13256.00
Department of Health,Guys and St Thomas NHS Foundation Trust,05/02/2021,(81000) Surgical Appliances,(id:42257) Oncology Services,MEDI UK LTD,id:13720155  , 394.47
Department of Health,Guys and St Thomas NHS Foundation Trust,12/02/2021,(84400) Transport,(id:42261) Oncology Services,CITYSPRINT (UK) LTD,id:13604354    ,2291.46
Department of Health,Guys and St Thomas NHS Foundation Trust,19/02/2021,(81200) Medical Surgical Supplies & Equipment,(id:4631424) Oncology Services,NHS SUPPLY CHAIN (MAIDSTONE),id:13687498, 458.30
Department of Health,Guys and St Thomas NHS Foundation Trust,19/02/2021,(81200) Medical Surgical Supplies & Equipment,(id:42260) Oncology Services,NHS SUPPLY CHAIN (MAIDSTONE),id:13633898  ,8579.51
Department of Health,Guys and St Thomas NHS Foundation Trust,19/02/2021,(83400) Office Equipment,(id:42260) Oncology Services,NHS SUPPLY CHAIN (MAIDSTONE),id:13687498   , 118.08
Department of Health,Guys and St Thomas NHS Foundation Trust,25/02/2021,(81700) Lab Equipment Purchase,(id:42260) Oncology Services,ABBOTT MEDICAL UK LTD,id:13781558    , 952.14
Department of Health,Guys and St Thomas NHS Foundation Trust,19/02/2021,(81100) Dressings,(id:42260) Oncology Services,NHS SUPPLY CHAIN (MAIDSTONE),id:13633898,6059.74
Department of Health,Guys and St Thomas NHS Foundation Trust,25/02/2021,(82800) Bedding & Linen,(id:42259) Oncology Services,NHS SUPPLY CHAIN (MAIDSTONE),id:13641574    , 183.67
Department of Health,Guys and St Thomas NHS Foundation Trust,19/02/2021,(50552) Qualified Nursing Staff,(id:42259) Oncology Services,GLOBE LOCUMS LTD,id:13775988   , 693.84
Department of Health,Guys and St Thomas NHS Foundation Trust,19/02/2021,(81700) Lab Equipment Purchase,(id:42259) Oncology Services,NHS SUPPLY CHAIN (MAIDSTONE),id:13633898  ,  12.22
Department of Health,Guys and St Thomas NHS Foundation Trust,25/02/2021,(81255) Medical Surgical Supplies & Equipment,(id:42259) Oncology Services,NHS SUPPLY CHAIN (MAIDSTONE),id:13641574  ,  45.70
Department of Health,Guys and St Thomas NHS Foundation Trust,19/02/2021,(81200) Medical Surgical Supplies & Equipment,(id:42280) Surgical Oncology,Q MEDICAL TECHNOLOGIES LTD,id:13700082    ,1590.60
Department of Health,Guys and St Thomas NHS Foundation Trust,19/02/2021,(81200) Medical Surgical Supplies & Equipment,(id:42280) Surgical Oncology,JOHNSON & JOHNSON MEDICAL LTD,id:13472770 ,1879.56
Department of Health,Guys and St Thomas NHS Foundation Trust,19/02/2021,(82600) Uniforms & Clothing,(id:42280) Surgical Oncology,DICT8 LIMITED,id:13453995, 768.24
Department of Health,Guys and St Thomas NHS Foundation Trust,19/02/2021,(81700) Lab Equipment Purchase,(id:243406) Surgical Oncology,NHS SUPPLY CHAIN (MAIDSTONE),id:13687498 ,  38.24
Department of Health,Guys and St Thomas NHS Foundation Trust,25/02/2021,(81255) Medical Surgical Supplies & Equipment,(id:243406) Surgical Oncology,NHS SUPPLY CHAIN (MAIDSTONE),id:13709794 ,   1.87
Department of Health,Guys and St Thomas NHS Foundation Trust,25/02/2021,(81100) Dressings,(id:243406) Surgical Oncology,NHS SUPPLY CHAIN (MAIDSTONE),id:13641574    , 140.68
Department of Health,Guys and St Thomas NHS Foundation Trust,25/02/2021,(82000) Provisions & Kitchens,(id:42474) Surgical Oncology,NHS SUPPLY CHAIN (MAIDSTONE),id:13641574   ,  24.24
Department of Health,Guys and St Thomas NHS Foundation Trust,12/02/2021,(81200) Medical Surgical Supplies & Equipment,(id:42474) Surgical Oncology,SHEFFMED TRADE SERVICES LTD,id:13739816   , 957.60
Department of Health,Guys and St Thomas NHS Foundation Trust,19/02/2021,(81200) Medical Surgical Supplies & Equipment,(id:42474) Surgical Oncology,NHS SUPPLY CHAIN (MAIDSTONE),id:13633898  , 188.34
Department of Health,Guys and St Thomas NHS Foundation Trust,19/02/2021,(81200) Medical Surgical Supplies & Equipment,(id:42474) Surgical Oncology,MEDTRONIC LTD,id:13694195  ,1839.60
Department of Health,Guys and St Thomas NHS Foundation Trust,05/02/2021,(83610) IT Costs,(id:42474) Surgical Oncology,CBC COMPUTER SYSTEMS LTD,id:13679074, 708.00
Department of Health,Guys and St Thomas NHS Foundation Trust,09/02/2021,(51862) Physiotherapists,(id:42474) Surgical Oncology,PRICEWATERHOUSECOOPERS LLP,id:13742774,1213.74
Department of Health,Guys and St Thomas NHS Foundation Trust,05/02/2021,(81200) Medical Surgical Supplies & Equipment,(id:42473) Surgical Oncology,CCMED LTD,id:13715056 ,1024.20
Department of Health,Guys and St Thomas NHS Foundation Trust,05/02/2021,(81200) Medical Surgical Supplies & Equipment,(id:42473) Surgical Oncology,CCMED LTD,id:13716015 ,1293.00
Department of Health,Guys and St Thomas NHS Foundation Trust,19/02/2021,(81200) Medical Surgical Supplies & Equipment,(id:42473) Surgical Oncology,JOHNSON & JOHNSON MEDICAL LTD,id:13765818 , 590.80
Department of Health,Guys and St Thomas NHS Foundation Trust,25/02/2021,(81200) Medical Surgical Supplies & Equipment,(id:42473) Surgical Oncology,CCMED LTD,id:13790817 , 867.00
Department of Health,Guys and St Thomas NHS Foundation Trust,25/02/2021,(81000) Surgical Appliances,(id:42473) Surgical Oncology,NHS SUPPLY CHAIN (MAIDSTONE),id:13709794, 421.20
Department of Health,Guys and St Thomas NHS Foundation Trust,24/02/2021,(54052) Technical Officers,(id:42475) Surgical Oncology,PRICEWATERHOUSECOOPERS LLP,id:13791795   ,1176.13
Department of Health,Guys and St Thomas NHS Foundation Trust,12/02/2021,(81215) Medical Surgical Supplies & Equipment,(id:42475) Surgical Oncology,ADVANCED BIONICS SARL (AND UK LTD),id:13732977 ,1343.40
Department of Health,Guys and St Thomas NHS Foundation Trust,19/02/2021,(81215) Medical Surgical Supplies & Equipment,(id:42475) Surgical Oncology,COCHLEAR EUROPE LTD,id:13760655 ,9373.20
Department of Health,Guys and St Thomas NHS Foundation Trust,25/02/2021,(81225) Medical Surgical Supplies & Equipment,(id:42475) Surgical Oncology,NHS SUPPLY CHAIN (MAIDSTONE),id:13641574  ,    15659.40
Department of Health,Guys and St Thomas NHS Foundation Trust,05/02/2021,(84400) Transport,(id:42472) Surgical Oncology,NATUS NICOLET UK LTD ( T/A OTOMETRICS UK),id:13691034  ,  18.48
Department of Health,Guys and St Thomas NHS Foundation Trust,05/02/2021,(81225) Medical Surgical Supplies & Equipment,(id:42472) Surgical Oncology,NATUS NICOLET UK LTD ( T/A OTOMETRICS UK),id:13691034    ,4462.58
Department of Health,Guys and St Thomas NHS Foundation Trust,19/02/2021,(81100) Dressings,(id:42286) Surgical Oncology,NHS SUPPLY CHAIN (MAIDSTONE),id:13687498, 114.84
Department of Health,Guys and St Thomas NHS Foundation Trust,19/02/2021,(81200) Medical Surgical Supplies & Equipment,(id:42286) Surgical Oncology,MEDTRONIC LTD,id:13722877  ,    13623.62
Department of Health,Guys and St Thomas NHS Foundation Trust,19/02/2021,(81200) Medical Surgical Supplies & Equipment,(id:42286) Surgical Oncology,MEDTRONIC LTD,id:13706118  ,4844.98
Department of Health,Guys and St Thomas NHS Foundation Trust,19/02/2021,(81200) Medical Surgical Supplies & Equipment,(id:42286) Surgical Oncology,MEDTRONIC LTD,id:13717080  ,1152.00
Department of Health,Guys and St Thomas NHS Foundation Trust,19/02/2021,(81100) Dressings,(id:42284) Surgical Oncology,NHS SUPPLY CHAIN (MAIDSTONE),id:13687498, 213.40
Department of Health,Guys and St Thomas NHS Foundation Trust,19/02/2021,(81255) Medical Surgical Supplies & Equipment,(id:42284) Surgical Oncology,NHS SUPPLY CHAIN (MAIDSTONE),id:13633898  ,  46.08
Department of Health,Guys and St Thomas NHS Foundation Trust,12/02/2021,(81100) Dressings,(id:42471) Surgical Oncology,JOHNSON & JOHNSON MEDICAL LTD,id:13694241    , 556.60
Department of Health,Guys and St Thomas NHS Foundation Trust,25/02/2021,(81200) Medical Surgical Supplies & Equipment,(id:42471) Surgical Oncology,SEVERN HEALTHCARE TECHNOLOGIES LTD,id:13776556 , 787.20
Department of Health,Guys and St Thomas NHS Foundation Trust,25/02/2021,(82000) Provisions & Kitchens,(id:42470) Surgical Oncology,NHS SUPPLY CHAIN (MAIDSTONE),id:13709794   , 107.84
Department of Health,Guys and St Thomas NHS Foundation Trust,19/02/2021,(82800) Bedding & Linen,(id:42470) Surgical Oncology,NHS SUPPLY CHAIN (MAIDSTONE),id:13633898    , 168.25
Department of Health,Guys and St Thomas NHS Foundation Trust,19/02/2021,(81200) Medical Surgical Supplies & Equipment,(id:42470) Surgical Oncology,NHS SUPPLY CHAIN (MAIDSTONE),id:13687498  ,1960.24
Department of Health,Guys and St Thomas NHS Foundation Trust,25/02/2021,(81200) Medical Surgical Supplies & Equipment,(id:42470) Surgical Oncology,NHS SUPPLY CHAIN (MAIDSTONE),id:13641574  ,2052.18
Department of Health,Guys and St Thomas NHS Foundation Trust,19/02/2021,(83400) Office Equipment,(id:42470) Surgical Oncology,NHS SUPPLY CHAIN (MAIDSTONE),id:13687498   , 275.53
Department of Health,Guys and St Thomas NHS Foundation Trust,19/02/2021,(81700) Lab Equipment Purchase,(id:42470) Surgical Oncology,NHS SUPPLY CHAIN (MAIDSTONE),id:13633898  ,  23.08
Department of Health,Guys and St Thomas NHS Foundation Trust,25/02/2021,(81100) Dressings,(id:42508) Surgical Oncology,NHS SUPPLY CHAIN (MAIDSTONE),id:13641574,   7.35
Department of Health,Guys and St Thomas NHS Foundation Trust,25/02/2021,(81200) Medical Surgical Supplies & Equipment,(id:4883419) Acute & General Medicine,NHS SUPPLY CHAIN (MAIDSTONE),id:13641574   , 181.80
Department of Health,Guys and St Thomas NHS Foundation Trust,25/02/2021,(82700) Uniforms & Clothing,(id:2182419) Acute & General Medicine,NHS SUPPLY CHAIN (MAIDSTONE),id:13641574 , 143.12
Department of Health,Guys and St Thomas NHS Foundation Trust,19/02/2021,(81700) Lab Equipment Purchase,(id:2182419) Acute & General Medicine,NHS SUPPLY CHAIN (MAIDSTONE),id:13687498   ,  84.64
Department of Health,Guys and St Thomas NHS Foundation Trust,19/02/2021,(81275) Medical Surgical Supplies & Equipment,(id:2182419) Acute & General Medicine,NHS SUPPLY CHAIN (MAIDSTONE),id:13687498   ,  12.74
Department of Health,Guys and St Thomas NHS Foundation Trust,25/02/2021,(81255) Medical Surgical Supplies & Equipment,(id:2182419) Acute & General Medicine,NHS SUPPLY CHAIN (MAIDSTONE),id:13641574   , 193.76
Department of Health,Guys and St Thomas NHS Foundation Trust,05/02/2021,(50552) Qualified Nursing Staff,(id:2182419) Acute & General Medicine,GLOBE LOCUMS LTD,id:13727243    , 305.15
Department of Health,Guys and St Thomas NHS Foundation Trust,12/02/2021,(50552) Qualified Nursing Staff,(id:2182419) Acute & General Medicine,GLOBE LOCUMS LTD,id:13750724    , 910.12
Department of Health,Guys and St Thomas NHS Foundation Trust,12/02/2021,(50552) Qualified Nursing Staff,(id:2182419) Acute & General Medicine,GLOBE LOCUMS LTD,id:13750648    , 983.09
Department of Health,Guys and St Thomas NHS Foundation Trust,19/02/2021,(50552) Qualified Nursing Staff,(id:2182419) Acute & General Medicine,CONTINENTAL NURSE LTD,id:13775985    , 616.51
Department of Health,Guys and St Thomas NHS Foundation Trust,19/02/2021,(50552) Qualified Nursing Staff,(id:2182419) Acute & General Medicine,PULSE HEALTHCARE LIMITED,id:13775837 , 666.64
Department of Health,Guys and St Thomas NHS Foundation Trust,19/02/2021,(82000) Provisions & Kitchens,(id:2182419) Acute & General Medicine,NHS SUPPLY CHAIN (MAIDSTONE),id:13687498    , 358.91
Department of Health,Guys and St Thomas NHS Foundation Trust,19/02/2021,(83400) Office Equipment,(id:2182419) Acute & General Medicine,NHS SUPPLY CHAIN (MAIDSTONE),id:13633898    , 286.97
Department of Health,Guys and St Thomas NHS Foundation Trust,25/02/2021,(83400) Office Equipment,(id:2182419) Acute & General Medicine,NHS SUPPLY CHAIN (MAIDSTONE),id:13641574    , 278.22
Department of Health,Guys and St Thomas NHS Foundation Trust,25/02/2021,(83400) Office Equipment,(id:41860) Acute & General Medicine,NHS SUPPLY CHAIN (MAIDSTONE),id:13641574 , 127.93
Department of Health,Guys and St Thomas NHS Foundation Trust,12/02/2021,(83500) Furniture & Fittings,(id:41860) Acute & General Medicine,TECHNIBLINDS LTD,id:13715676    , 500.40
Department of Health,Guys and St Thomas NHS Foundation Trust,12/02/2021,(50522) Unqualified Nursing Staff,(id:41860) Acute & General Medicine,GLOBE LOCUMS LTD,id:13750558    , 268.51
Department of Health,Guys and St Thomas NHS Foundation Trust,25/02/2021,(81700) Lab Equipment Purchase,(id:41860) Acute & General Medicine,NHS SUPPLY CHAIN (MAIDSTONE),id:13709794,  42.33
Department of Health,Guys and St Thomas NHS Foundation Trust,05/02/2021,(50522) Unqualified Nursing Staff,(id:41859) Acute & General Medicine,GLOBE LOCUMS LTD,id:13727153    , 411.67
Department of Health,Guys and St Thomas NHS Foundation Trust,05/02/2021,(50522) Unqualified Nursing Staff,(id:41859) Acute & General Medicine,CARE PROVIDERS HEALTHCARE,id:13727374, 234.82
Department of Health,Guys and St Thomas NHS Foundation Trust,19/02/2021,(50522) Unqualified Nursing Staff,(id:41859) Acute & General Medicine,CARE PROVIDERS HEALTHCARE,id:13775656, 796.04
Department of Health,Guys and St Thomas NHS Foundation Trust,25/02/2021,(81225) Medical Surgical Supplies & Equipment,(id:41859) Acute & General Medicine,NHS SUPPLY CHAIN (MAIDSTONE),id:13641574,  19.39
Department of Health,Guys and St Thomas NHS Foundation Trust,25/02/2021,(81255) Medical Surgical Supplies & Equipment,(id:41858) Acute & General Medicine,NHS SUPPLY CHAIN (MAIDSTONE),id:13709794,   7.18
Department of Health,Guys and St Thomas NHS Foundation Trust,05/02/2021,(50522) Unqualified Nursing Staff,(id:41858) Acute & General Medicine,MSI GROUP LTD,id:13727161  , 255.97
Department of Health,Guys and St Thomas NHS Foundation Trust,19/02/2021,(81200) Medical Surgical Supplies & Equipment,(id:41858) Acute & General Medicine,NHS SUPPLY CHAIN (MAIDSTONE),id:13633898, 323.16
Department of Health,Guys and St Thomas NHS Foundation Trust,19/02/2021,(81225) Medical Surgical Supplies & Equipment,(id:41858) Acute & General Medicine,NHS SUPPLY CHAIN (MAIDSTONE),id:13633898,  16.11
Department of Health,Guys and St Thomas NHS Foundation Trust,25/02/2021,(82000) Provisions & Kitchens,(id:860419) Acute & General Medicine,NHS SUPPLY CHAIN (MAIDSTONE),id:13709794,  13.02
Department of Health,Guys and St Thomas NHS Foundation Trust,25/02/2021,(82000) Provisions & Kitchens,(id:41869) Acute & General Medicine,NHS SUPPLY CHAIN (MAIDSTONE),id:13709794 ,   8.64
Department of Health,Guys and St Thomas NHS Foundation Trust,05/02/2021,(83400) Office Equipment,(id:41869) Acute & General Medicine,AFD SOFTWARE LTD,id:13699016   ,2700.00
Department of Health,Guys and St Thomas NHS Foundation Trust,19/02/2021,(83500) Furniture & Fittings,(id:41869) Acute & General Medicine,FURNITURE@WORK,id:13777715 , 745.20
Department of Health,Guys and St Thomas NHS Foundation Trust,19/02/2021,(81225) Medical Surgical Supplies & Equipment,(id:41869) Acute & General Medicine,NHS SUPPLY CHAIN (MAIDSTONE),id:13633898, 453.30
Department of Health,Guys and St Thomas NHS Foundation Trust,25/02/2021,(81700) Lab Equipment Purchase,(id:41869) Acute & General Medicine,NHS SUPPLY CHAIN (MAIDSTONE),id:13709794, 353.13
Department of Health,Guys and St Thomas NHS Foundation Trust,25/02/2021,(81100) Dressings,(id:41868) Acute & General Medicine,NHS SUPPLY CHAIN (MAIDSTONE),id:13641574   ,  95.54
Department of Health,Guys and St Thomas NHS Foundation Trust,19/02/2021,(81200) Medical Surgical Supplies & Equipment,(id:41868) Acute & General Medicine,NHS SUPPLY CHAIN (MAIDSTONE),id:13687498, 475.02
Department of Health,Guys and St Thomas NHS Foundation Trust,19/02/2021,(81200) Medical Surgical Supplies & Equipment,(id:41868) Acute & General Medicine,NHS SUPPLY CHAIN (MAIDSTONE),id:13633898, 280.87
Department of Health,Guys and St Thomas NHS Foundation Trust,25/02/2021,(82000) Provisions & Kitchens,(id:41868) Acute & General Medicine,NHS SUPPLY CHAIN (MAIDSTONE),id:13709794 , 182.80
Department of Health,Guys and St Thomas NHS Foundation Trust,19/02/2021,(81700) Lab Equipment Purchase,(id:41868) Acute & General Medicine,GREINER BIO-ONE LTD,id:13775374    ,  96.00
Department of Health,Guys and St Thomas NHS Foundation Trust,19/02/2021,(83400) Office Equipment,(id:41882) Acute & General Medicine,NHS SUPPLY CHAIN (MAIDSTONE),id:13687498 , 123.68
Department of Health,Guys and St Thomas NHS Foundation Trust,19/02/2021,(81200) Medical Surgical Supplies & Equipment,(id:41882) Acute & General Medicine,NHS SUPPLY CHAIN (MAIDSTONE),id:13687498,  75.54
Department of Health,Guys and St Thomas NHS Foundation Trust,25/02/2021,(81200) Medical Surgical Supplies & Equipment,(id:41882) Acute & General Medicine,NHS SUPPLY CHAIN (MAIDSTONE),id:13641574, 190.78
Department of Health,Guys and St Thomas NHS Foundation Trust,25/02/2021,(82000) Provisions & Kitchens,(id:41880) Acute & General Medicine,NHS SUPPLY CHAIN (MAIDSTONE),id:13709794 ,  42.63
Department of Health,Guys and St Thomas NHS Foundation Trust,25/02/2021,(83400) Office Equipment,(id:41880) Acute & General Medicine,NHS SUPPLY CHAIN (MAIDSTONE),id:13709794 ,  91.45
Department of Health,Guys and St Thomas NHS Foundation Trust,25/02/2021,(81100) Dressings,(id:41880) Acute & General Medicine,NHS SUPPLY CHAIN (MAIDSTONE),id:13709794   , 196.53
Department of Health,Guys and St Thomas NHS Foundation Trust,19/02/2021,(81200) Medical Surgical Supplies & Equipment,(id:41880) Acute & General Medicine,NHS SUPPLY CHAIN (MAIDSTONE),id:13633898, 895.01
Department of Health,Guys and St Thomas NHS Foundation Trust,19/02/2021,(81225) Medical Surgical Supplies & Equipment,(id:41880) Acute & General Medicine,NHS SUPPLY CHAIN (MAIDSTONE),id:13633898,   9.00
Department of Health,Guys and St Thomas NHS Foundation Trust,12/02/2021,(50522) Unqualified Nursing Staff,(id:41880) Acute & General Medicine,MSI GROUP LTD,id:13750610  , 261.56
Department of Health,Guys and St Thomas NHS Foundation Trust,25/02/2021,(81255) Medical Surgical Supplies & Equipment,(id:41880) Acute & General Medicine,NHS SUPPLY CHAIN (MAIDSTONE),id:13641574,   4.92
Department of Health,Guys and St Thomas NHS Foundation Trust,25/02/2021,(81255) Medical Surgical Supplies & Equipment,(id:41880) Acute & General Medicine,NHS SUPPLY CHAIN (MAIDSTONE),id:13709794,   5.62
Department of Health,Guys and St Thomas NHS Foundation Trust,25/02/2021,(82000) Provisions & Kitchens,(id:41879) Acute & General Medicine,NHS SUPPLY CHAIN (MAIDSTONE),id:13709794 , 214.72
Department of Health,Guys and St Thomas NHS Foundation Trust,25/02/2021,(83400) Office Equipment,(id:41879) Acute & General Medicine,NHS SUPPLY CHAIN (MAIDSTONE),id:13641574 ,  93.09
Department of Health,Guys and St Thomas NHS Foundation Trust,25/02/2021,(82800) Bedding & Linen,(id:41879) Acute & General Medicine,NHS SUPPLY CHAIN (MAIDSTONE),id:13709794  , 242.89
Department of Health,Guys and St Thomas NHS Foundation Trust,12/02/2021,(50522) Unqualified Nursing Staff,(id:41879) Acute & General Medicine,CARE PROVIDERS HEALTHCARE,id:13750497, 236.16
Department of Health,Guys and St Thomas NHS Foundation Trust,19/02/2021,(89120) Other - Legal fees,(id:41879) Acute & General Medicine,BEACHCROFT LLP OFFICE ACCOUNT,id:13757441   , 467.10
Department of Health,Guys and St Thomas NHS Foundation Trust,25/02/2021,(81200) Medical Surgical Supplies & Equipment,(id:41879) Acute & General Medicine,NHS SUPPLY CHAIN (MAIDSTONE),id:13709794, 769.77
Department of Health,Guys and St Thomas NHS Foundation Trust,19/02/2021,(50552) Qualified Nursing Staff,(id:41879) Acute & General Medicine,GLOBE LOCUMS LTD,id:13775988 ,1040.79
Department of Health,Guys and St Thomas NHS Foundation Trust,19/02/2021,(50552) Qualified Nursing Staff,(id:41879) Acute & General Medicine,MSI GROUP LTD,id:13775977    , 367.90
Department of Health,Guys and St Thomas NHS Foundation Trust,19/02/2021,(83400) Office Equipment,(id:41878) Acute & General Medicine,NHS SUPPLY CHAIN (MAIDSTONE),id:13687498 , 456.11
Department of Health,Guys and St Thomas NHS Foundation Trust,25/02/2021,(82800) Bedding & Linen,(id:41878) Acute & General Medicine,NHS SUPPLY CHAIN (MAIDSTONE),id:13641574  , 256.89
Department of Health,Guys and St Thomas NHS Foundation Trust,25/02/2021,(82800) Bedding & Linen,(id:41878) Acute & General Medicine,NHS SUPPLY CHAIN (MAIDSTONE),id:13709794  , 204.35
Department of Health,Guys and St Thomas NHS Foundation Trust,12/02/2021,(50552) Qualified Nursing Staff,(id:41878) Acute & General Medicine,CONTINENTAL NURSE LTD,id:13750690 , 684.27
Department of Health,Guys and St Thomas NHS Foundation Trust,05/02/2021,(50522) Unqualified Nursing Staff,(id:41878) Acute & General Medicine,MSI GROUP LTD,id:13727406  , 558.96
Department of Health,Guys and St Thomas NHS Foundation Trust,19/02/2021,(81200) Medical Surgical Supplies & Equipment,(id:41878) Acute & General Medicine,NHS SUPPLY CHAIN (MAIDSTONE),id:13633898, 663.29
Department of Health,Guys and St Thomas NHS Foundation Trust,25/02/2021,(81255) Medical Surgical Supplies & Equipment,(id:41878) Acute & General Medicine,NHS SUPPLY CHAIN (MAIDSTONE),id:13709794,   6.24
Department of Health,Guys and St Thomas NHS Foundation Trust,19/02/2021,(81100) Dressings,(id:41881) Acute & General Medicine,NHS SUPPLY CHAIN (MAIDSTONE),id:13633898   , 195.36
Department of Health,Guys and St Thomas NHS Foundation Trust,12/02/2021,(50552) Qualified Nursing Staff,(id:41881) Acute & General Medicine,CONTINENTAL NURSE LTD,id:13750690 , 342.13
Department of Health,Guys and St Thomas NHS Foundation Trust,25/02/2021,(50552) Qualified Nursing Staff,(id:41881) Acute & General Medicine,MSI GROUP LTD,id:13802454    , 730.44
Department of Health,Guys and St Thomas NHS Foundation Trust,05/02/2021,(50522) Unqualified Nursing Staff,(id:41881) Acute & General Medicine,MSI GROUP LTD,id:13727160  , 833.09
Department of Health,Guys and St Thomas NHS Foundation Trust,19/02/2021,(50522) Unqualified Nursing Staff,(id:41881) Acute & General Medicine,GLOBE LOCUMS LTD,id:13775989    , 253.46
Department of Health,Guys and St Thomas NHS Foundation Trust,25/02/2021,(50522) Unqualified Nursing Staff,(id:41881) Acute & General Medicine,MSI GROUP LTD,id:13802439  , 298.37
Department of Health,Guys and St Thomas NHS Foundation Trust,12/02/2021,(81200) Medical Surgical Supplies & Equipment,(id:42037) Dental Services,HENRY SCHEIN,id:13699135, 674.17
Department of Health,Guys and St Thomas NHS Foundation Trust,25/02/2021,(81200) Medical Surgical Supplies & Equipment,(id:42037) Dental Services,FORESTADENT LTD,id:13784214  , 545.27
Department of Health,Guys and St Thomas NHS Foundation Trust,19/02/2021,(81200) Medical Surgical Supplies & Equipment,(id:42007) Dental Services,NHS SUPPLY CHAIN (MAIDSTONE),id:13687498    ,  21.60
Department of Health,Guys and St Thomas NHS Foundation Trust,25/02/2021,(81200) Medical Surgical Supplies & Equipment,(id:42007) Dental Services,HENRY SCHEIN,id:13779754, 701.92
Department of Health,Guys and St Thomas NHS Foundation Trust,25/02/2021,(83610) IT Costs,(id:42007) Dental Services,OFFICE DEPOT UK LTD,id:13737836  , 819.22
Department of Health,Guys and St Thomas NHS Foundation Trust,05/02/2021,(50200) Consultants,(id:2637419) Dental Services,KINGS COLLEGE LONDON:03529700,id:13348757  ,3373.77
Department of Health,Guys and St Thomas NHS Foundation Trust,05/02/2021,(50470) Medical Training Grades,(id:42033) Dental Services,BRIGHTON AND SUSSEX UNIVERSITY HOSPITALS NHS TRUST,id:13619514 ,1938.40
Department of Health,Guys and St Thomas NHS Foundation Trust,05/02/2021,(50343) Other Medical Grades,(id:41998) Dental Services,KINGS COLLEGE LONDON:03529700,id:13348757,1346.98
Department of Health,Guys and St Thomas NHS Foundation Trust,05/02/2021,(81200) Medical Surgical Supplies & Equipment,(id:2884419) Dental Services,TRI-TECH ENGINEERING T/A TRI-TECH 3D,id:13689975    ,1387.27
Department of Health,Guys and St Thomas NHS Foundation Trust,05/02/2021,(55060) Admin & Clerical,(id:42022) Dental Services,KINGS COLLEGE LONDON:03529700,id:13348757    , 470.20
Department of Health,Guys and St Thomas NHS Foundation Trust,25/02/2021,(83400) Office Equipment,(id:42014) Dental Services,NHS SUPPLY CHAIN (MAIDSTONE),id:13641574,  67.13
Department of Health,Guys and St Thomas NHS Foundation Trust,05/02/2021,(83610) IT Costs,(id:41996) Dental Services,PROBRAND LIMITED,id:13703675, 662.40
Department of Health,Guys and St Thomas NHS Foundation Trust,25/02/2021,(81400) Medical Surgical Supplies & Equipment,(id:41994) Dental Services,NHS SUPPLY CHAIN (MAIDSTONE),id:13641574    ,  13.24
Department of Health,Guys and St Thomas NHS Foundation Trust,19/02/2021,(82800) Bedding & Linen,(id:1634433) Dental Services,NHS SUPPLY CHAIN (MAIDSTONE),id:13633898    , 234.00
Department of Health,Guys and St Thomas NHS Foundation Trust,19/02/2021,(81200) Medical Surgical Supplies & Equipment,(id:1634432) Dental Services,HENRY SCHEIN,id:13778955   , 535.75
Department of Health,Guys and St Thomas NHS Foundation Trust,25/02/2021,(81200) Medical Surgical Supplies & Equipment,(id:1634432) Dental Services,NHS SUPPLY CHAIN (MAIDSTONE),id:13709794  , 214.79
Department of Health,Guys and St Thomas NHS Foundation Trust,12/02/2021,(81700) Lab Equipment Purchase,(id:641456) Specialist Ambulatory Services,NEW ENGLAND BIOLABS (UK) LTD,id:13745054   ,3849.60
Department of Health,Guys and St Thomas NHS Foundation Trust,25/02/2021,(81700) Lab Equipment Purchase,(id:641456) Specialist Ambulatory Services,AB SCIENTIFIC LIMITED,id:13781999,4430.40
Department of Health,Guys and St Thomas NHS Foundation Trust,05/02/2021,(81700) Lab Equipment Purchase,(id:641456) Specialist Ambulatory Services,PRIMERDESIGN LTD,id:13718676,3024.00
Department of Health,Guys and St Thomas NHS Foundation Trust,25/02/2021,(81700) Lab Equipment Purchase,(id:4431419) Specialist Ambulatory Services,NHS SUPPLY CHAIN (MAIDSTONE),id:13641574  ,  35.21
Department of Health,Guys and St Thomas NHS Foundation Trust,05/02/2021,(50200) Consultants,(id:42193) Specialist Ambulatory Services,KINGS COLLEGE LONDON:03529700,id:13685894    ,    12799.80
Department of Health,Guys and St Thomas NHS Foundation Trust,05/02/2021,(50203) Consultants,(id:42193) Specialist Ambulatory Services,KINGS COLLEGE LONDON:03529700,id:13594515    ,2206.77
Department of Health,Guys and St Thomas NHS Foundation Trust,05/02/2021,(50203) Consultants,(id:42193) Specialist Ambulatory Services,KINGS COLLEGE LONDON:03529700,id:13685114    ,2206.77
Department of Health,Guys and St Thomas NHS Foundation Trust,05/02/2021,(50200) Consultants,(id:42215) Specialist Ambulatory Services,KINGS COLLEGE LONDON:03529700,id:13685894    ,1452.10
Department of Health,Guys and St Thomas NHS Foundation Trust,19/02/2021,(81100) Dressings,(id:255405) Specialist Ambulatory Services,NHS SUPPLY CHAIN (MAIDSTONE),id:13633898 ,  71.28
Department of Health,Guys and St Thomas NHS Foundation Trust,05/02/2021,(50200) Consultants,(id:42099) Specialist Ambulatory Services,CROYDON HEALTH SERVICES NHS TRUST,id:13687879,1639.55
Department of Health,Guys and St Thomas NHS Foundation Trust,05/02/2021,(50200) Consultants,(id:42099) Specialist Ambulatory Services,KINGS COLLEGE LONDON:03529700,id:13685215    ,3108.15
Department of Health,Guys and St Thomas NHS Foundation Trust,12/02/2021,(83610) IT Costs,(id:42094) Specialist Ambulatory Services,OFFICE DEPOT UK LTD,id:13694780  , 528.00
Department of Health,Guys and St Thomas NHS Foundation Trust,25/02/2021,(83400) Office Equipment,(id:42097) Specialist Ambulatory Services,NHS SUPPLY CHAIN (MAIDSTONE),id:13641574,  13.15
Department of Health,Guys and St Thomas NHS Foundation Trust,25/02/2021,(83400) Office Equipment,(id:42097) Specialist Ambulatory Services,NHS SUPPLY CHAIN (MAIDSTONE),id:13709794,  10.95
Department of Health,Guys and St Thomas NHS Foundation Trust,25/02/2021,(81100) Dressings,(id:42079) Specialist Ambulatory Services,NHS SUPPLY CHAIN (MAIDSTONE),id:13709794  , 211.05
Department of Health,Guys and St Thomas NHS Foundation Trust,25/02/2021,(80010) Drug Costs,(id:42079) Specialist Ambulatory Services,THERAKOS (UK) LIMITED,id:13662660   ,    22824.00
Department of Health,Guys and St Thomas NHS Foundation Trust,25/02/2021,(80010) Drug Costs,(id:42079) Specialist Ambulatory Services,THERAKOS (UK) LIMITED,id:13662622   ,    22824.00
Department of Health,Guys and St Thomas NHS Foundation Trust,19/02/2021,(82000) Provisions & Kitchens,(id:42079) Specialist Ambulatory Services,NHS SUPPLY CHAIN (MAIDSTONE),id:13633898,  56.79
Department of Health,Guys and St Thomas NHS Foundation Trust,19/02/2021,(81200) Medical Surgical Supplies & Equipment,(id:42079) Specialist Ambulatory Services,NHS SUPPLY CHAIN (MAIDSTONE),id:13687498    , 708.07
Department of Health,Guys and St Thomas NHS Foundation Trust,25/02/2021,(81275) Medical Surgical Supplies & Equipment,(id:42079) Specialist Ambulatory Services,THERAKOS (UK) LIMITED,id:13662554 , -36.00
Department of Health,Guys and St Thomas NHS Foundation Trust,05/02/2021,(81000) Surgical Appliances,(id:42066) Specialist Ambulatory Services,TALAR MADE ORTHOTICS LTD,id:13719654 ,   6.00
Department of Health,Guys and St Thomas NHS Foundation Trust,19/02/2021,(81000) Surgical Appliances,(id:42066) Specialist Ambulatory Services,TALAR MADE ORTHOTICS LTD,id:13770734 ,  93.00
Department of Health,Guys and St Thomas NHS Foundation Trust,19/02/2021,(83400) Office Equipment,(id:42064) Specialist Ambulatory Services,NHS SUPPLY CHAIN (MAIDSTONE),id:13633898,  85.81
Department of Health,Guys and St Thomas NHS Foundation Trust,19/02/2021,(81700) Lab Equipment Purchase,(id:42064) Specialist Ambulatory Services,NHS SUPPLY CHAIN (MAIDSTONE),id:13687498    , 236.23
Department of Health,Guys and St Thomas NHS Foundation Trust,25/02/2021,(54032) Technical Officers,(id:4632421) Specialist Ambulatory Services,TFS HEALTHCARE,id:13802519, 660.81
Department of Health,Guys and St Thomas NHS Foundation Trust,25/02/2021,(83400) Office Equipment,(id:42050) Specialist Ambulatory Services,NHS SUPPLY CHAIN (MAIDSTONE),id:13709794, 372.42
Department of Health,Guys and St Thomas NHS Foundation Trust,25/02/2021,(82800) Bedding & Linen,(id:42050) Specialist Ambulatory Services,NHS SUPPLY CHAIN (MAIDSTONE),id:13641574 ,  82.66
Department of Health,Guys and St Thomas NHS Foundation Trust,19/02/2021,(81225) Medical Surgical Supplies & Equipment,(id:42050) Specialist Ambulatory Services,NHS SUPPLY CHAIN (MAIDSTONE),id:13633898    , 305.07
Department of Health,Guys and St Thomas NHS Foundation Trust,25/02/2021,(81200) Medical Surgical Supplies & Equipment,(id:42050) Specialist Ambulatory Services,NHS SUPPLY CHAIN (MAIDSTONE),id:13709794    , 926.18
Department of Health,Guys and St Thomas NHS Foundation Trust,05/02/2021,(89270) Establishment,(id:42050) Specialist Ambulatory Services,POSTURITE (UK) LTD,id:13715015   , 683.94
Department of Health,Guys and St Thomas NHS Foundation Trust,25/02/2021,(84400) Transport,(id:4622421) Pharmacy,LLOYDS PHARMACY LTD,id:13748455 ,    -2825.14
Department of Health,Guys and St Thomas NHS Foundation Trust,12/02/2021,(83610) IT Costs,(id:42169) Pharmacy,COMPUTACENTER UK LTD,id:13752574   ,1221.53
Department of Health,Guys and St Thomas NHS Foundation Trust,12/02/2021,(81200) Medical Surgical Supplies & Equipment,(id:581409) Pharmacy,RIVERSIDE MEDICAL PACKAGING CO LTD,id:13752036    , 528.00
Department of Health,Guys and St Thomas NHS Foundation Trust,05/02/2021,(81200) Medical Surgical Supplies & Equipment,(id:581409) Pharmacy,NITRITEX LTD,id:13698558 ,4314.00
Department of Health,Guys and St Thomas NHS Foundation Trust,05/02/2021,(81200) Medical Surgical Supplies & Equipment,(id:581409) Pharmacy,ADDED PHARMA LTD,id:13699495  ,2160.00
Department of Health,Guys and St Thomas NHS Foundation Trust,09/02/2021,(53682) Pharmacists,(id:42159) Pharmacy,PRICEWATERHOUSECOOPERS LLP,id:13742774    ,3261.37
Department of Health,Guys and St Thomas NHS Foundation Trust,23/02/2021,(53632) Pharmacists,(id:42159) Pharmacy,PRICEWATERHOUSECOOPERS LLP,id:13786942    , 714.60
Department of Health,Guys and St Thomas NHS Foundation Trust,25/02/2021,(81275) Medical Surgical Supplies & Equipment,(id:42159) Pharmacy,SCI-TEK INSTRUMENTS LTD,id:13785775 , 750.00
Department of Health,Guys and St Thomas NHS Foundation Trust,09/02/2021,(53672) Pharmacists,(id:42160) Pharmacy,PRICEWATERHOUSECOOPERS LLP,id:13742774    ,2239.65
Department of Health,Guys and St Thomas NHS Foundation Trust,24/02/2021,(54052) Technical Officers,(id:42160) Pharmacy,PRICEWATERHOUSECOOPERS LLP,id:13791795  , 970.26
Department of Health,Guys and St Thomas NHS Foundation Trust,23/02/2021,(53642) Pharmacists,(id:42160) Pharmacy,PRICEWATERHOUSECOOPERS LLP,id:13786942    , 749.11
Department of Health,Guys and St Thomas NHS Foundation Trust,24/02/2021,(53642) Pharmacists,(id:42160) Pharmacy,PRICEWATERHOUSECOOPERS LLP,id:13791795    ,1071.10
Department of Health,Guys and St Thomas NHS Foundation Trust,25/02/2021,(80100) Drug Costs,(id:42154) Pharmacy,BOC LTD :02107500,id:13602943    ,    17349.26
Department of Health,Guys and St Thomas NHS Foundation Trust,25/02/2021,(54052) Technical Officers,(id:42164) Pharmacy,PRICEWATERHOUSECOOPERS LLP,id:13800514  , 367.35
Department of Health,Guys and St Thomas NHS Foundation Trust,09/02/2021,(54052) Technical Officers,(id:42164) Pharmacy,PRICEWATERHOUSECOOPERS LLP,id:13742774  , 367.35
Department of Health,Guys and St Thomas NHS Foundation Trust,19/02/2021,(81000) Surgical Appliances,(id:42171) Medical Specialties,TALAR MADE ORTHOTICS LTD,id:13768414  , 114.00
Department of Health,Guys and St Thomas NHS Foundation Trust,05/02/2021,(83400) Office Equipment,(id:42217) Medical Specialties,VIAPATH ANALYTICS LLP,id:13650640   ,1985.00
Department of Health,Guys and St Thomas NHS Foundation Trust,25/02/2021,(83400) Office Equipment,(id:42217) Medical Specialties,NHS SUPPLY CHAIN (MAIDSTONE),id:13641574 , 144.02
Department of Health,Guys and St Thomas NHS Foundation Trust,19/02/2021,(83400) Office Equipment,(id:42217) Medical Specialties,NHS SUPPLY CHAIN (MAIDSTONE),id:13633898 ,  82.88
Department of Health,Guys and St Thomas NHS Foundation Trust,25/02/2021,(50552) Qualified Nursing Staff,(id:42217) Medical Specialties,CONTINENTAL NURSE LTD,id:13802491 , 921.96
Department of Health,Guys and St Thomas NHS Foundation Trust,19/02/2021,(81200) Medical Surgical Supplies & Equipment,(id:42217) Medical Specialties,NHS SUPPLY CHAIN (MAIDSTONE),id:13687498, 610.22
Department of Health,Guys and St Thomas NHS Foundation Trust,19/02/2021,(82000) Provisions & Kitchens,(id:42250) Medical Specialties,AAH PHARMACEUTICALS LTD,id:13774296 , 845.20
Department of Health,Guys and St Thomas NHS Foundation Trust,25/02/2021,(86300) Healthcare from non-NHS bodies,(id:42224) Medical Specialties,L DOLLAY OPTOMETRIST LTD,id:13763656 ,3025.00
Department of Health,Guys and St Thomas NHS Foundation Trust,25/02/2021,(82800) Bedding & Linen,(id:42223) Medical Specialties,NHS SUPPLY CHAIN (MAIDSTONE),id:13641574  , 117.06
Department of Health,Guys and St Thomas NHS Foundation Trust,19/02/2021,(83400) Office Equipment,(id:42221) Medical Specialties,NHS SUPPLY CHAIN (MAIDSTONE),id:13633898 , 162.62
Department of Health,Guys and St Thomas NHS Foundation Trust,25/02/2021,(81200) Medical Surgical Supplies & Equipment,(id:42221) Medical Specialties,ALCON EYE CARE UK LIMITED,id:13801314   ,2016.00
Department of Health,Guys and St Thomas NHS Foundation Trust,19/02/2021,(81200) Medical Surgical Supplies & Equipment,(id:42221) Medical Specialties,SURGITRAC INSTRUMENTS UK LTD.,id:13780594    , 630.84
Department of Health,Guys and St Thomas NHS Foundation Trust,19/02/2021,(81200) Medical Surgical Supplies & Equipment,(id:42221) Medical Specialties,GLAUKOS UK LTD,id:13764134    ,5934.00
Department of Health,Guys and St Thomas NHS Foundation Trust,12/02/2021,(81200) Medical Surgical Supplies & Equipment,(id:42221) Medical Specialties,ALCON EYE CARE UK LIMITED,id:13743554   ,1008.00
Department of Health,Guys and St Thomas NHS Foundation Trust,19/02/2021,(81100) Dressings,(id:42213) Medical Specialties,NHS SUPPLY CHAIN (MAIDSTONE),id:13633898   , 577.36
Department of Health,Guys and St Thomas NHS Foundation Trust,19/02/2021,(81000) Surgical Appliances,(id:42213) Medical Specialties,TALAR MADE ORTHOTICS LTD,id:13768459  ,  14.40
Department of Health,Guys and St Thomas NHS Foundation Trust,05/02/2021,(81000) Surgical Appliances,(id:42209) Medical Specialties,TALAR MADE ORTHOTICS LTD,id:13719654  ,  93.00
Department of Health,Guys and St Thomas NHS Foundation Trust,05/02/2021,(81000) Surgical Appliances,(id:42209) Medical Specialties,TALAR MADE ORTHOTICS LTD,id:13719754  , 866.89
Department of Health,Guys and St Thomas NHS Foundation Trust,25/02/2021,(81200) Medical Surgical Supplies & Equipment,(id:42208) Medical Specialties,MEDTRONIC LTD,id:13621369, 592.70
Department of Health,Guys and St Thomas NHS Foundation Trust,25/02/2021,(81200) Medical Surgical Supplies & Equipment,(id:42208) Medical Specialties,DEXCOM INTERNATIONAL LTD,id:13786574    , 793.50
Department of Health,Guys and St Thomas NHS Foundation Trust,19/02/2021,(81200) Medical Surgical Supplies & Equipment,(id:42208) Medical Specialties,MEDTRONIC LTD,id:13597053, 670.46
Department of Health,Guys and St Thomas NHS Foundation Trust,19/02/2021,(81200) Medical Surgical Supplies & Equipment,(id:42208) Medical Specialties,ROCHE DIABETES CARE LIMITED,id:13762267 , 639.88
Department of Health,Guys and St Thomas NHS Foundation Trust,19/02/2021,(81200) Medical Surgical Supplies & Equipment,(id:42208) Medical Specialties,MEDTRONIC LTD,id:13631293, 561.43
Department of Health,Guys and St Thomas NHS Foundation Trust,19/02/2021,(81200) Medical Surgical Supplies & Equipment,(id:42208) Medical Specialties,MEDTRONIC LTD,id:13605859, 708.75
Department of Health,Guys and St Thomas NHS Foundation Trust,19/02/2021,(81200) Medical Surgical Supplies & Equipment,(id:42208) Medical Specialties,MEDTRONIC LTD,id:13586568, 567.00
Department of Health,Guys and St Thomas NHS Foundation Trust,12/02/2021,(81200) Medical Surgical Supplies & Equipment,(id:42208) Medical Specialties,DEXCOM INTERNATIONAL LTD,id:13744734    , 793.50
Department of Health,Guys and St Thomas NHS Foundation Trust,05/02/2021,(81200) Medical Surgical Supplies & Equipment,(id:42208) Medical Specialties,DEXCOM INTERNATIONAL LTD,id:13719914    , 793.50
Department of Health,Guys and St Thomas NHS Foundation Trust,05/02/2021,(81200) Medical Surgical Supplies & Equipment,(id:42208) Medical Specialties,DEXCOM INTERNATIONAL LTD,id:13717854    , 793.50
Department of Health,Guys and St Thomas NHS Foundation Trust,05/02/2021,(81200) Medical Surgical Supplies & Equipment,(id:42208) Medical Specialties,DEXCOM INTERNATIONAL LTD,id:13719894    , 793.50
Department of Health,Guys and St Thomas NHS Foundation Trust,12/02/2021,(81200) Medical Surgical Supplies & Equipment,(id:42208) Medical Specialties,INSULET INTERNATIONAL LTD,id:13634019   , 706.32
Department of Health,Guys and St Thomas NHS Foundation Trust,12/02/2021,(81200) Medical Surgical Supplies & Equipment,(id:42208) Medical Specialties,INSULET INTERNATIONAL LTD,id:13634991   , 706.32
Department of Health,Guys and St Thomas NHS Foundation Trust,12/02/2021,(81200) Medical Surgical Supplies & Equipment,(id:42208) Medical Specialties,INSULET INTERNATIONAL LTD,id:13634987   , 712.08
Department of Health,Guys and St Thomas NHS Foundation Trust,12/02/2021,(81200) Medical Surgical Supplies & Equipment,(id:42208) Medical Specialties,INSULET INTERNATIONAL LTD,id:13633942   , 712.08
Department of Health,Guys and St Thomas NHS Foundation Trust,12/02/2021,(81200) Medical Surgical Supplies & Equipment,(id:42208) Medical Specialties,INSULET INTERNATIONAL LTD,id:13633954   , 712.08
Department of Health,Guys and St Thomas NHS Foundation Trust,12/02/2021,(80010) Drug Costs,(id:42204) Medical Specialties,THE LONDON UPRIGHT MRI CENTRE:70838400,id:13754614  , 575.00
Department of Health,Guys and St Thomas NHS Foundation Trust,25/02/2021,(81200) Medical Surgical Supplies & Equipment,(id:42205) Medical Specialties,NHS SUPPLY CHAIN (MAIDSTONE),id:13709794,  78.00
Department of Health,Guys and St Thomas NHS Foundation Trust,25/02/2021,(81400) Medical Surgical Supplies & Equipment,(id:42205) Medical Specialties,MEDEVOLVE LTD,id:13786998,3687.50
Department of Health,Guys and St Thomas NHS Foundation Trust,25/02/2021,(81200) Medical Surgical Supplies & Equipment,(id:41937) Medical Specialties,NHS SUPPLY CHAIN (MAIDSTONE),id:13641574, 112.68
Department of Health,Guys and St Thomas NHS Foundation Trust,05/02/2021,(81200) Medical Surgical Supplies & Equipment,(id:41937) Medical Specialties,MEDTRONIC LTD,id:13728461,2880.00
Department of Health,Guys and St Thomas NHS Foundation Trust,25/02/2021,(81500) X Ray Equipment Purchase,(id:41937) Medical Specialties,OPTIMUS MEDICAL LTD,id:13786476  , 288.00
Department of Health,Guys and St Thomas NHS Foundation Trust,19/02/2021,(84656) Establishment,(id:41937) Medical Specialties,DICT8 LIMITED,id:13773497    ,1333.80
Department of Health,Guys and St Thomas NHS Foundation Trust,25/02/2021,(51862) Physiotherapists,(id:4747419) Therapies and Rehabilitation,PRICEWATERHOUSECOOPERS LLP,id:13800514  ,1270.02
Department of Health,Guys and St Thomas NHS Foundation Trust,23/02/2021,(51872) Physiotherapists,(id:42234) Therapies and Rehabilitation,PRICEWATERHOUSECOOPERS LLP,id:13786942    ,1346.97
Department of Health,Guys and St Thomas NHS Foundation Trust,25/02/2021,(82800) Bedding & Linen,(id:42232) Therapies and Rehabilitation,NHS SUPPLY CHAIN (MAIDSTONE),id:13709794   ,  23.41
Department of Health,Guys and St Thomas NHS Foundation Trust,25/02/2021,(81700) Lab Equipment Purchase,(id:42230) Therapies and Rehabilitation,NHS SUPPLY CHAIN (MAIDSTONE),id:13709794 ,   7.63
Department of Health,Guys and St Thomas NHS Foundation Trust,09/02/2021,(51462) Occupational Therapists,(id:42240) Therapies and Rehabilitation,PRICEWATERHOUSECOOPERS LLP,id:13742774  ,1216.95
Department of Health,Guys and St Thomas NHS Foundation Trust,09/02/2021,(51472) Occupational Therapists,(id:42240) Therapies and Rehabilitation,PRICEWATERHOUSECOOPERS LLP,id:13742774  ,2819.21
Department of Health,Guys and St Thomas NHS Foundation Trust,12/02/2021,(81100) Dressings,(id:42239) Therapies and Rehabilitation,PROMEDICS ORTHOPAEDICS LTD,id:13733315 , 174.72
Department of Health,Guys and St Thomas NHS Foundation Trust,19/02/2021,(81225) Medical Surgical Supplies & Equipment,(id:42239) Therapies and Rehabilitation,PROMEDICS ORTHOPAEDICS LTD,id:13755095   ,2742.39
Department of Health,Guys and St Thomas NHS Foundation Trust,19/02/2021,(81225) Medical Surgical Supplies & Equipment,(id:42239) Therapies and Rehabilitation,PROMEDICS ORTHOPAEDICS LTD,id:13754719   , 518.94
Department of Health,Guys and St Thomas NHS Foundation Trust,19/02/2021,(83400) Office Equipment,(id:590530) Therapies and Rehabilitation,NHS SUPPLY CHAIN (MAIDSTONE),id:13687498 ,   7.31
Department of Health,Guys and St Thomas NHS Foundation Trust,05/02/2021,(81100) Dressings,(id:590530) Therapies and Rehabilitation,BAILEY INSTRUMENTS LIMITED,id:13249154, 510.00
Department of Health,Guys and St Thomas NHS Foundation Trust,12/02/2021,(81100) Dressings,(id:590530) Therapies and Rehabilitation,BAILEY INSTRUMENTS LIMITED,id:13736876, 546.00
Department of Health,Guys and St Thomas NHS Foundation Trust,25/02/2021,(81100) Dressings,(id:590530) Therapies and Rehabilitation,NHS SUPPLY CHAIN (MAIDSTONE),id:13641574   , 217.62
Department of Health,Guys and St Thomas NHS Foundation Trust,19/02/2021,(81225) Medical Surgical Supplies & Equipment,(id:590490) Therapies and Rehabilitation,NHS SUPPLY CHAIN (MAIDSTONE),id:13687498,  56.16
Department of Health,Guys and St Thomas NHS Foundation Trust,23/02/2021,(53072) Speech Therapists,(id:42248) Therapies and Rehabilitation,PRICEWATERHOUSECOOPERS LLP,id:13786942   ,1414.15
Department of Health,Guys and St Thomas NHS Foundation Trust,05/02/2021,(81200) Medical Surgical Supplies & Equipment,(id:590499) Therapies and Rehabilitation,INVACARE LTD,id:13712979 , 639.60
Department of Health,Guys and St Thomas NHS Foundation Trust,05/02/2021,(81200) Medical Surgical Supplies & Equipment,(id:590499) Therapies and Rehabilitation,INVACARE LTD,id:13712975 , 669.60
Department of Health,Guys and St Thomas NHS Foundation Trust,05/02/2021,(81200) Medical Surgical Supplies & Equipment,(id:590499) Therapies and Rehabilitation,INVACARE LTD,id:13712394 ,1484.40
Department of Health,Guys and St Thomas NHS Foundation Trust,12/02/2021,(81200) Medical Surgical Supplies & Equipment,(id:590499) Therapies and Rehabilitation,SUNRISE MEDICAL LIMITED,id:13542329,1376.40
Department of Health,Guys and St Thomas NHS Foundation Trust,12/02/2021,(81200) Medical Surgical Supplies & Equipment,(id:590499) Therapies and Rehabilitation,TENDERCARE LTD,id:13704075    ,1875.73
Department of Health,Guys and St Thomas NHS Foundation Trust,12/02/2021,(81200) Medical Surgical Supplies & Equipment,(id:590499) Therapies and Rehabilitation,PRIDE MOBILITY PRODUCTS LTD,id:13704015 ,4353.00
Department of Health,Guys and St Thomas NHS Foundation Trust,12/02/2021,(81225) Medical Surgical Supplies & Equipment,(id:590499) Therapies and Rehabilitation,QBITUS PRODUCTS LTD,id:13702179    , 501.88
Department of Health,Guys and St Thomas NHS Foundation Trust,12/02/2021,(81225) Medical Surgical Supplies & Equipment,(id:590499) Therapies and Rehabilitation,CUSTOMIZED COVERS,id:13713595 , 520.80
Department of Health,Guys and St Thomas NHS Foundation Trust,12/02/2021,(81225) Medical Surgical Supplies & Equipment,(id:590499) Therapies and Rehabilitation,CUSTOMIZED COVERS,id:13713614 , 578.40
Department of Health,Guys and St Thomas NHS Foundation Trust,12/02/2021,(81225) Medical Surgical Supplies & Equipment,(id:590499) Therapies and Rehabilitation,QBITUS PRODUCTS LTD,id:13708656    , 743.34
Department of Health,Guys and St Thomas NHS Foundation Trust,12/02/2021,(81225) Medical Surgical Supplies & Equipment,(id:590499) Therapies and Rehabilitation,QBITUS PRODUCTS LTD,id:13713434    ,1711.80
Department of Health,Guys and St Thomas NHS Foundation Trust,25/02/2021,(83610) IT Costs,(id:590499) Therapies and Rehabilitation,OFFICE DEPOT UK LTD,id:13733801   ,1004.30
Department of Health,Guys and St Thomas NHS Foundation Trust,12/02/2021,(81225) Medical Surgical Supplies & Equipment,(id:590498) Therapies and Rehabilitation,JANE SAUNDERS & MANNING LTD,id:13750854 , 743.44
Department of Health,Guys and St Thomas NHS Foundation Trust,12/02/2021,(81225) Medical Surgical Supplies & Equipment,(id:590498) Therapies and Rehabilitation,JANE SAUNDERS & MANNING LTD,id:13750275 , 798.23
Department of Health,Guys and St Thomas NHS Foundation Trust,12/02/2021,(81000) Surgical Appliances,(id:590498) Therapies and Rehabilitation,BEAGLE ORTHOPAEDIC LTD,id:13706694    ,1112.40
Department of Health,Guys and St Thomas NHS Foundation Trust,12/02/2021,(81000) Surgical Appliances,(id:590498) Therapies and Rehabilitation,BRACE ORTHOPAEDIC,id:13714394    , 726.00
Department of Health,Guys and St Thomas NHS Foundation Trust,12/02/2021,(81400) Medical Surgical Supplies & Equipment,(id:590498) Therapies and Rehabilitation,NPD ORTHOTICS LTD,id:13751174 ,1136.81
Department of Health,Guys and St Thomas NHS Foundation Trust,12/02/2021,(83610) IT Costs,(id:590496) Therapies and Rehabilitation,JUZO UK LTD,id:13738874 , 551.48
Department of Health,Guys and St Thomas NHS Foundation Trust,19/02/2021,(55052) Admin & Clerical,(id:590496) Therapies and Rehabilitation,VENN GROUP LTD,id:13754317,3750.32
Department of Health,Guys and St Thomas NHS Foundation Trust,25/02/2021,(86300) Healthcare from non-NHS bodies,(id:590496) Therapies and Rehabilitation,NHS SUPPLY CHAIN (MAIDSTONE),id:13641574  ,  71.24
Department of Health,Guys and St Thomas NHS Foundation Trust,05/02/2021,(83400) Office Equipment,(id:1042419) Therapies and Rehabilitation,ASSIST SECURITY LIMITED,id:13702975,4920.00
Department of Health,Guys and St Thomas NHS Foundation Trust,25/02/2021,(83400) Office Equipment,(id:1042419) Therapies and Rehabilitation,NHS SUPPLY CHAIN (MAIDSTONE),id:13709794,  27.79
Department of Health,Guys and St Thomas NHS Foundation Trust,23/02/2021,(52072) Radiographers,(id:42368) Clinical Imaging & Med Physics,PRICEWATERHOUSECOOPERS LLP,id:13786942,9038.30
Department of Health,Guys and St Thomas NHS Foundation Trust,24/02/2021,(52072) Radiographers,(id:42368) Clinical Imaging & Med Physics,PRICEWATERHOUSECOOPERS LLP,id:13791795,    11237.26
Department of Health,Guys and St Thomas NHS Foundation Trust,09/02/2021,(52072) Radiographers,(id:42368) Clinical Imaging & Med Physics,PRICEWATERHOUSECOOPERS LLP,id:13742774,7887.20
Department of Health,Guys and St Thomas NHS Foundation Trust,19/02/2021,(83400) Office Equipment,(id:42367) Clinical Imaging & Med Physics,NHS SUPPLY CHAIN (MAIDSTONE),id:13687498, 131.03
Department of Health,Guys and St Thomas NHS Foundation Trust,05/02/2021,(81100) Dressings,(id:42367) Clinical Imaging & Med Physics,KIMAL PLC,id:13700039 ,1430.63
Department of Health,Guys and St Thomas NHS Foundation Trust,05/02/2021,(81200) Medical Surgical Supplies & Equipment,(id:42367) Clinical Imaging & Med Physics,BOSTON SCIENTIFIC LTD,id:13644417 , 708.00
Department of Health,Guys and St Thomas NHS Foundation Trust,05/02/2021,(81200) Medical Surgical Supplies & Equipment,(id:42367) Clinical Imaging & Med Physics,BARD LTD,id:13605877    , 604.80
Department of Health,Guys and St Thomas NHS Foundation Trust,12/02/2021,(81200) Medical Surgical Supplies & Equipment,(id:42367) Clinical Imaging & Med Physics,BOSTON SCIENTIFIC LTD,id:13694818 ,1980.00
Department of Health,Guys and St Thomas NHS Foundation Trust,05/02/2021,(81200) Medical Surgical Supplies & Equipment,(id:42367) Clinical Imaging & Med Physics,BOSTON SCIENTIFIC LTD,id:13644421 ,1512.00
Department of Health,Guys and St Thomas NHS Foundation Trust,05/02/2021,(81200) Medical Surgical Supplies & Equipment,(id:42367) Clinical Imaging & Med Physics,MEDTRONIC LTD,id:13657627    ,1260.00
Department of Health,Guys and St Thomas NHS Foundation Trust,05/02/2021,(81200) Medical Surgical Supplies & Equipment,(id:42367) Clinical Imaging & Med Physics,MEDTRONIC LTD,id:13728450    ,1440.00
Department of Health,Guys and St Thomas NHS Foundation Trust,05/02/2021,(81200) Medical Surgical Supplies & Equipment,(id:42367) Clinical Imaging & Med Physics,VOLCANO EUROPE BVBA/SPRL,id:13658276   , 834.00
Department of Health,Guys and St Thomas NHS Foundation Trust,25/02/2021,(81200) Medical Surgical Supplies & Equipment,(id:42367) Clinical Imaging & Med Physics,COOK UK LTD,id:13737959 , 852.00
Department of Health,Guys and St Thomas NHS Foundation Trust,25/02/2021,(81200) Medical Surgical Supplies & Equipment,(id:42367) Clinical Imaging & Med Physics,BOSTON SCIENTIFIC LTD,id:13729023 , 643.38
Department of Health,Guys and St Thomas NHS Foundation Trust,19/02/2021,(81200) Medical Surgical Supplies & Equipment,(id:42367) Clinical Imaging & Med Physics,ABBOTT MEDICAL UK LTD,id:13774314 ,1080.00
Department of Health,Guys and St Thomas NHS Foundation Trust,19/02/2021,(81200) Medical Surgical Supplies & Equipment,(id:42367) Clinical Imaging & Med Physics,AQUILANT LTD,id:13751137,1454.40
Department of Health,Guys and St Thomas NHS Foundation Trust,25/02/2021,(81200) Medical Surgical Supplies & Equipment,(id:42367) Clinical Imaging & Med Physics,COOK UK LTD,id:13733943 , 555.60
Department of Health,Guys and St Thomas NHS Foundation Trust,19/02/2021,(81230) Medical Surgical Supplies & Equipment,(id:42367) Clinical Imaging & Med Physics,COOK UK LTD,id:13765856 , 150.00
Department of Health,Guys and St Thomas NHS Foundation Trust,19/02/2021,(81230) Medical Surgical Supplies & Equipment,(id:42367) Clinical Imaging & Med Physics,VYGON (UK) LTD,id:13710265   , 658.30
Department of Health,Guys and St Thomas NHS Foundation Trust,19/02/2021,(82000) Provisions & Kitchens,(id:42366) Clinical Imaging & Med Physics,NHS SUPPLY CHAIN (MAIDSTONE),id:13633898,   6.26
Department of Health,Guys and St Thomas NHS Foundation Trust,25/02/2021,(82000) Provisions & Kitchens,(id:42366) Clinical Imaging & Med Physics,NHS SUPPLY CHAIN (MAIDSTONE),id:13709794,  15.60
Department of Health,Guys and St Thomas NHS Foundation Trust,19/02/2021,(83500) Furniture & Fittings,(id:42366) Clinical Imaging & Med Physics,HOSPITAL METALCRAFT LTD,id:13761977 , 522.65
Department of Health,Guys and St Thomas NHS Foundation Trust,19/02/2021,(83400) Office Equipment,(id:42366) Clinical Imaging & Med Physics,NHS SUPPLY CHAIN (MAIDSTONE),id:13633898, 128.16
Department of Health,Guys and St Thomas NHS Foundation Trust,25/02/2021,(83400) Office Equipment,(id:42372) Clinical Imaging & Med Physics,BAYER PLC,id:13724494    ,2112.00
Department of Health,Guys and St Thomas NHS Foundation Trust,25/02/2021,(81700) Lab Equipment Purchase,(id:42372) Clinical Imaging & Med Physics,NHS SUPPLY CHAIN (MAIDSTONE),id:13641574    , 196.46
Department of Health,Guys and St Thomas NHS Foundation Trust,19/02/2021,(81200) Medical Surgical Supplies & Equipment,(id:42372) Clinical Imaging & Med Physics,NHS SUPPLY CHAIN (MAIDSTONE),id:13633898    , 387.30
Department of Health,Guys and St Thomas NHS Foundation Trust,19/02/2021,(81275) Medical Surgical Supplies & Equipment,(id:42372) Clinical Imaging & Med Physics,CURIUM PHARMA UK LTD,id:13772974  , 564.00
Department of Health,Guys and St Thomas NHS Foundation Trust,25/02/2021,(81500) X Ray Equipment Purchase,(id:42372) Clinical Imaging & Med Physics,CURIUM PHARMA UK LTD,id:13792554,1766.40
Department of Health,Guys and St Thomas NHS Foundation Trust,25/02/2021,(81500) X Ray Equipment Purchase,(id:42372) Clinical Imaging & Med Physics,CURIUM PHARMA UK LTD,id:13699474,1766.40
Department of Health,Guys and St Thomas NHS Foundation Trust,19/02/2021,(81500) X Ray Equipment Purchase,(id:42372) Clinical Imaging & Med Physics,CURIUM PHARMA UK LTD,id:13776400,1766.40
Department of Health,Guys and St Thomas NHS Foundation Trust,19/02/2021,(81500) X Ray Equipment Purchase,(id:42372) Clinical Imaging & Med Physics,CURIUM PHARMA UK LTD,id:13757077,1766.40
Department of Health,Guys and St Thomas NHS Foundation Trust,19/02/2021,(81400) Medical Surgical Supplies & Equipment,(id:42380) Clinical Imaging & Med Physics,ACL ENGINEERING LTD,id:13754134   ,1233.48
Department of Health,Guys and St Thomas NHS Foundation Trust,19/02/2021,(81500) X Ray Equipment Purchase,(id:42380) Clinical Imaging & Med Physics,REFCOOL REFRIGERATION LTD,id:13776134,1069.42
Department of Health,Guys and St Thomas NHS Foundation Trust,12/02/2021,(81400) Medical Surgical Supplies & Equipment,(id:42379) Clinical Imaging & Med Physics,TENACORE UK LTD,id:13691399  , 609.00
Department of Health,Guys and St Thomas NHS Foundation Trust,12/02/2021,(81400) Medical Surgical Supplies & Equipment,(id:42379) Clinical Imaging & Med Physics,SECA LTD,id:13733134    ,1621.85
Department of Health,Guys and St Thomas NHS Foundation Trust,25/02/2021,(81400) Medical Surgical Supplies & Equipment,(id:42379) Clinical Imaging & Med Physics,C FRANKLIN LTD,id:13779174   ,1505.49
Department of Health,Guys and St Thomas NHS Foundation Trust,19/02/2021,(81400) Medical Surgical Supplies & Equipment,(id:42379) Clinical Imaging & Med Physics,C FRANKLIN LTD,id:13779095   , 502.52
Department of Health,Guys and St Thomas NHS Foundation Trust,19/02/2021,(81400) Medical Surgical Supplies & Equipment,(id:42379) Clinical Imaging & Med Physics,C FRANKLIN LTD,id:13778937   ,1091.90
Department of Health,Guys and St Thomas NHS Foundation Trust,05/02/2021,(81400) Medical Surgical Supplies & Equipment,(id:42379) Clinical Imaging & Med Physics,TENACORE UK LTD,id:13653255  ,-585.00
Department of Health,Guys and St Thomas NHS Foundation Trust,12/02/2021,(81200) Medical Surgical Supplies & Equipment,(id:42379) Clinical Imaging & Med Physics,TENACORE UK LTD,id:13659275  ,  24.00
Department of Health,Guys and St Thomas NHS Foundation Trust,19/02/2021,(81200) Medical Surgical Supplies & Equipment,(id:42379) Clinical Imaging & Med Physics,FRESENIUS KABI LTD,id:13771154    , 776.76
Department of Health,Guys and St Thomas NHS Foundation Trust,19/02/2021,(89270) Establishment,(id:42376) Clinical Imaging & Med Physics,HEALTH & SAFETY EXECUTIVE,id:13777394 ,1004.80
Department of Health,Guys and St Thomas NHS Foundation Trust,19/02/2021,(81200) Medical Surgical Supplies & Equipment,(id:1348419) Clinical Imaging & Med Physics,NHS SUPPLY CHAIN (MAIDSTONE),id:13633898  ,    18715.56
Department of Health,Guys and St Thomas NHS Foundation Trust,19/02/2021,(81200) Medical Surgical Supplies & Equipment,(id:1348419) Clinical Imaging & Med Physics,WL GORE & ASSOCIATES (UK) LTD,id:13752534 ,4308.00
Department of Health,Guys and St Thomas NHS Foundation Trust,05/02/2021,(89270) Establishment,(id:42255) Integrated Local Services,RICHARD KNIGHT,id:13731202  ,2560.00
Department of Health,Guys and St Thomas NHS Foundation Trust,19/02/2021,(83400) Office Equipment,(id:590584) Integrated Local Services,NHS SUPPLY CHAIN (MAIDSTONE),id:13687498    ,  26.51
Department of Health,Guys and St Thomas NHS Foundation Trust,25/02/2021,(82000) Provisions & Kitchens,(id:590469) Integrated Local Services,NHS SUPPLY CHAIN (MAIDSTONE),id:13709794    ,   2.88
Department of Health,Guys and St Thomas NHS Foundation Trust,19/02/2021,(83400) Office Equipment,(id:590469) Integrated Local Services,NHS SUPPLY CHAIN (MAIDSTONE),id:13687498    ,  24.39
Department of Health,Guys and St Thomas NHS Foundation Trust,25/02/2021,(83400) Office Equipment,(id:590466) Integrated Local Services,NHS SUPPLY CHAIN (MAIDSTONE),id:13709794    ,  67.56
Department of Health,Guys and St Thomas NHS Foundation Trust,19/02/2021,(83880) Building & Engineering,(id:590427) Integrated Local Services,LAZERBEAM FIRE AND SECURITY LTD,id:13762375,1668.19
Department of Health,Guys and St Thomas NHS Foundation Trust,05/02/2021,(83350) Premises Services,(id:4631420) Integrated Local Services,ASSIST SECURITY LIMITED,id:13702918  ,1260.00
Department of Health,Guys and St Thomas NHS Foundation Trust,25/02/2021,(51832) Physiotherapists,(id:590495) Integrated Local Services,PRICEWATERHOUSECOOPERS LLP,id:13800514 , 705.41
Department of Health,Guys and St Thomas NHS Foundation Trust,24/02/2021,(51832) Physiotherapists,(id:590495) Integrated Local Services,PRICEWATERHOUSECOOPERS LLP,id:13791795 ,1434.84
Department of Health,Guys and St Thomas NHS Foundation Trust,25/02/2021,(82800) Bedding & Linen,(id:590495) Integrated Local Services,NHS SUPPLY CHAIN (MAIDSTONE),id:13709794,  62.40
Department of Health,Guys and St Thomas NHS Foundation Trust,19/02/2021,(50562) Qualified Nursing Staff,(id:1885424) Integrated Local Services,MSI GROUP LTD,id:13775836 ,1333.67
Department of Health,Guys and St Thomas NHS Foundation Trust,05/02/2021,(50562) Qualified Nursing Staff,(id:1371419) Integrated Local Services,MSI GROUP LTD,id:13727359 , 750.65
Department of Health,Guys and St Thomas NHS Foundation Trust,05/02/2021,(50562) Qualified Nursing Staff,(id:699422) Integrated Local Services,MSI GROUP LTD,id:13727114  ,2008.81
Department of Health,Guys and St Thomas NHS Foundation Trust,12/02/2021,(50572) Qualified Nursing Staff,(id:699422) Integrated Local Services,MSI GROUP LTD,id:13750611  ,1938.68
Department of Health,Guys and St Thomas NHS Foundation Trust,25/02/2021,(81200) Medical Surgical Supplies & Equipment,(id:699422) Integrated Local Services,NHS SUPPLY CHAIN (MAIDSTONE),id:13641574   ,  41.02
Department of Health,Guys and St Thomas NHS Foundation Trust,23/02/2021,(51862) Physiotherapists,(id:590492) Integrated Local Services,PRICEWATERHOUSECOOPERS LLP,id:13786942 ,1306.76
Department of Health,Guys and St Thomas NHS Foundation Trust,09/02/2021,(51862) Physiotherapists,(id:590492) Integrated Local Services,PRICEWATERHOUSECOOPERS LLP,id:13742774 ,2495.96
Department of Health,Guys and St Thomas NHS Foundation Trust,25/02/2021,(81100) Dressings,(id:2357419) Integrated Local Services,NHS SUPPLY CHAIN (MAIDSTONE),id:13709794, 107.82
Department of Health,Guys and St Thomas NHS Foundation Trust,25/02/2021,(81200) Medical Surgical Supplies & Equipment,(id:2357419) Integrated Local Services,NHS SUPPLY CHAIN (MAIDSTONE),id:13641574  ,  17.83
Department of Health,Guys and St Thomas NHS Foundation Trust,23/02/2021,(53072) Speech Therapists,(id:1888419) Integrated Local Services,PRICEWATERHOUSECOOPERS LLP,id:13786942    ,1389.05
Department of Health,Guys and St Thomas NHS Foundation Trust,09/02/2021,(53072) Speech Therapists,(id:1888419) Integrated Local Services,PRICEWATERHOUSECOOPERS LLP,id:13742774    ,1447.92
Department of Health,Guys and St Thomas NHS Foundation Trust,19/02/2021,(81100) Dressings,(id:684420) Integrated Local Services,NHS SUPPLY CHAIN (MAIDSTONE),id:13687498 ,  23.94
Department of Health,Guys and St Thomas NHS Foundation Trust,25/02/2021,(81200) Medical Surgical Supplies & Equipment,(id:590522) Integrated Local Services,NHS SUPPLY CHAIN (MAIDSTONE),id:13709794   , 277.12
Department of Health,Guys and St Thomas NHS Foundation Trust,25/02/2021,(83400) Office Equipment,(id:590522) Integrated Local Services,NHS SUPPLY CHAIN (MAIDSTONE),id:13641574    ,  75.15
Department of Health,Guys and St Thomas NHS Foundation Trust,25/02/2021,(81100) Dressings,(id:590522) Integrated Local Services,NHS SUPPLY CHAIN (MAIDSTONE),id:13641574 ,2252.78
Department of Health,Guys and St Thomas NHS Foundation Trust,25/02/2021,(81100) Dressings,(id:590522) Integrated Local Services,NHS SUPPLY CHAIN (MAIDSTONE),id:13709794 , 134.70
Department of Health,Guys and St Thomas NHS Foundation Trust,19/02/2021,(82000) Provisions & Kitchens,(id:590521) Integrated Local Services,NHS SUPPLY CHAIN (MAIDSTONE),id:13687498    ,  25.83
Department of Health,Guys and St Thomas NHS Foundation Trust,19/02/2021,(82600) Uniforms & Clothing,(id:590521) Integrated Local Services,NHS SUPPLY CHAIN (MAIDSTONE),id:13633898 ,   5.40
Department of Health,Guys and St Thomas NHS Foundation Trust,05/02/2021,(50552) Qualified Nursing Staff,(id:590520) Integrated Local Services,YOUR WORLD RECRUITMENT LIMITED(YOUR WORLD HEALTHCARE),id:13730840  , 790.20
Department of Health,Guys and St Thomas NHS Foundation Trust,19/02/2021,(81100) Dressings,(id:590473) Integrated Local Services,NHS SUPPLY CHAIN (MAIDSTONE),id:13687498 , 112.25
Department of Health,Guys and St Thomas NHS Foundation Trust,19/02/2021,(84500) Establishment,(id:590473) Integrated Local Services,CDP  PRINT MANAGEMENT,id:13548241    , 693.60
Department of Health,Guys and St Thomas NHS Foundation Trust,19/02/2021,(81700) Lab Equipment Purchase,(id:590473) Integrated Local Services,NHS SUPPLY CHAIN (MAIDSTONE),id:13633898   ,  85.03
Department of Health,Guys and St Thomas NHS Foundation Trust,19/02/2021,(82000) Provisions & Kitchens,(id:590473) Integrated Local Services,NHS SUPPLY CHAIN (MAIDSTONE),id:13633898    ,  10.50
Department of Health,Guys and St Thomas NHS Foundation Trust,25/02/2021,(83400) Office Equipment,(id:590535) Integrated Local Services,NHS SUPPLY CHAIN (MAIDSTONE),id:13709794    ,   3.77
Department of Health,Guys and St Thomas NHS Foundation Trust,25/02/2021,(81200) Medical Surgical Supplies & Equipment,(id:590481) Integrated Local Services,NHS SUPPLY CHAIN (MAIDSTONE),id:13799402   , 865.31
Department of Health,Guys and St Thomas NHS Foundation Trust,25/02/2021,(81200) Medical Surgical Supplies & Equipment,(id:590481) Integrated Local Services,NHS SUPPLY CHAIN (MAIDSTONE),id:13798675   , 880.45
Department of Health,Guys and St Thomas NHS Foundation Trust,25/02/2021,(81200) Medical Surgical Supplies & Equipment,(id:590481) Integrated Local Services,NHS SUPPLY CHAIN (MAIDSTONE),id:13799398   ,1111.77
Department of Health,Guys and St Thomas NHS Foundation Trust,25/02/2021,(81200) Medical Surgical Supplies & Equipment,(id:590481) Integrated Local Services,NHS SUPPLY CHAIN (MAIDSTONE),id:13799396   ,1809.48
Department of Health,Guys and St Thomas NHS Foundation Trust,25/02/2021,(81200) Medical Surgical Supplies & Equipment,(id:590481) Integrated Local Services,NHS SUPPLY CHAIN (MAIDSTONE),id:13799313   ,2427.64
Department of Health,Guys and St Thomas NHS Foundation Trust,25/02/2021,(81200) Medical Surgical Supplies & Equipment,(id:590481) Integrated Local Services,NHS SUPPLY CHAIN (MAIDSTONE),id:13798814   , 625.70
Department of Health,Guys and St Thomas NHS Foundation Trust,25/02/2021,(81200) Medical Surgical Supplies & Equipment,(id:590481) Integrated Local Services,NHS SUPPLY CHAIN (MAIDSTONE),id:13799188   , 718.48
Department of Health,Guys and St Thomas NHS Foundation Trust,25/02/2021,(81200) Medical Surgical Supplies & Equipment,(id:590481) Integrated Local Services,NHS SUPPLY CHAIN (MAIDSTONE),id:13798181   ,7084.99
Department of Health,Guys and St Thomas NHS Foundation Trust,25/02/2021,(81200) Medical Surgical Supplies & Equipment,(id:590481) Integrated Local Services,NHS SUPPLY CHAIN (MAIDSTONE),id:13797922   ,7192.59
Department of Health,Guys and St Thomas NHS Foundation Trust,05/02/2021,(81200) Medical Surgical Supplies & Equipment,(id:590481) Integrated Local Services,NHS SUPPLY CHAIN (MAIDSTONE),id:13726454   ,1707.41
Department of Health,Guys and St Thomas NHS Foundation Trust,05/02/2021,(81200) Medical Surgical Supplies & Equipment,(id:590481) Integrated Local Services,NHS SUPPLY CHAIN (MAIDSTONE),id:13726494   ,1379.25
Department of Health,Guys and St Thomas NHS Foundation Trust,19/02/2021,(50562) Qualified Nursing Staff,(id:590463) Integrated Local Services,COYLE PERSONNEL PLC,id:13779702 ,1750.00
Department of Health,Guys and St Thomas NHS Foundation Trust,25/02/2021,(82800) Bedding & Linen,(id:590527) Integrated Local Services,NHS SUPPLY CHAIN (MAIDSTONE),id:13709794,  92.54
Department of Health,Guys and St Thomas NHS Foundation Trust,19/02/2021,(83400) Office Equipment,(id:590527) Integrated Local Services,NHS SUPPLY CHAIN (MAIDSTONE),id:13687498    ,  98.93
Department of Health,Guys and St Thomas NHS Foundation Trust,25/02/2021,(82600) Uniforms & Clothing,(id:590527) Integrated Local Services,NHS SUPPLY CHAIN (MAIDSTONE),id:13641574 , 129.41
Department of Health,Guys and St Thomas NHS Foundation Trust,25/02/2021,(82800) Bedding & Linen,(id:590526) Integrated Local Services,NHS SUPPLY CHAIN (MAIDSTONE),id:13641574,  54.43
Department of Health,Guys and St Thomas NHS Foundation Trust,25/02/2021,(81100) Dressings,(id:590526) Integrated Local Services,NHS SUPPLY CHAIN (MAIDSTONE),id:13709794 , 130.36
Department of Health,Guys and St Thomas NHS Foundation Trust,25/02/2021,(81100) Dressings,(id:590526) Integrated Local Services,NHS SUPPLY CHAIN (MAIDSTONE),id:13641574 , 139.87
Department of Health,Guys and St Thomas NHS Foundation Trust,19/02/2021,(83400) Office Equipment,(id:903421) Integrated Local Services,NHS SUPPLY CHAIN (MAIDSTONE),id:13633898    ,  65.04
Department of Health,Guys and St Thomas NHS Foundation Trust,19/02/2021,(81100) Dressings,(id:903421) Integrated Local Services,NHS SUPPLY CHAIN (MAIDSTONE),id:13687498 ,  91.58
Department of Health,Guys and St Thomas NHS Foundation Trust,25/02/2021,(83765) Rent,(id:903421) Integrated Local Services,SELDOC LTD,id:13793795    ,   104266.77
Department of Health,Guys and St Thomas NHS Foundation Trust,12/02/2021,(50552) Qualified Nursing Staff,(id:4609420) Integrated Local Services,NURSING 2000 LTD,id:13696672   ,1179.26
Department of Health,Guys and St Thomas NHS Foundation Trust,12/02/2021,(50552) Qualified Nursing Staff,(id:4609420) Integrated Local Services,NURSING 2000 LTD,id:13696702   , 509.42
Department of Health,Guys and St Thomas NHS Foundation Trust,12/02/2021,(50552) Qualified Nursing Staff,(id:4609420) Integrated Local Services,NURSING 2000 LTD,id:13696642   , 921.23
Department of Health,Guys and St Thomas NHS Foundation Trust,12/02/2021,(50552) Qualified Nursing Staff,(id:4609419) Integrated Local Services,NURSING 2000 LTD,id:13696659   ,1473.13
Department of Health,Guys and St Thomas NHS Foundation Trust,19/02/2021,(50552) Qualified Nursing Staff,(id:4479420) Integrated Local Services,NURSING 2000 LTD,id:13727311   , 203.42
Department of Health,Guys and St Thomas NHS Foundation Trust,12/02/2021,(50552) Qualified Nursing Staff,(id:4263421) Integrated Local Services,MSI GROUP LTD,id:13750781 , 775.50
Department of Health,Guys and St Thomas NHS Foundation Trust,19/02/2021,(84657) Establishment,(id:590608) Integrated Care Management,IRON MOUNTAIN (UK) LTD,id:13700998  , 766.78
Department of Health,Guys and St Thomas NHS Foundation Trust,22/02/2021,(89280) Other - Consultancy costs,(id:4273419) Integrated Care Management,LAMBETH WALK GROUP PRACTICE,id:13767514    ,4320.00
Department of Health,Guys and St Thomas NHS Foundation Trust,25/02/2021,(82000) Provisions & Kitchens,(id:42518) Evelina Womens Services,NHS SUPPLY CHAIN (MAIDSTONE),id:13641574  ,   5.90
Department of Health,Guys and St Thomas NHS Foundation Trust,19/02/2021,(81200) Medical Surgical Supplies & Equipment,(id:42518) Evelina Womens Services,NHS SUPPLY CHAIN (MAIDSTONE),id:13687498 ,   2.10
Department of Health,Guys and St Thomas NHS Foundation Trust,25/02/2021,(81275) Medical Surgical Supplies & Equipment,(id:42518) Evelina Womens Services,NHS SUPPLY CHAIN (MAIDSTONE),id:13641574 ,   5.93
Department of Health,Guys and St Thomas NHS Foundation Trust,19/02/2021,(82000) Provisions & Kitchens,(id:42517) Evelina Womens Services,NHS SUPPLY CHAIN (MAIDSTONE),id:13687498  , 103.27
Department of Health,Guys and St Thomas NHS Foundation Trust,19/02/2021,(83400) Office Equipment,(id:42517) Evelina Womens Services,NHS SUPPLY CHAIN (MAIDSTONE),id:13687498  , 103.01
Department of Health,Guys and St Thomas NHS Foundation Trust,19/02/2021,(83400) Office Equipment,(id:42517) Evelina Womens Services,NHS SUPPLY CHAIN (MAIDSTONE),id:13633898  ,  14.08
Department of Health,Guys and St Thomas NHS Foundation Trust,25/02/2021,(82800) Bedding & Linen,(id:42517) Evelina Womens Services,NHS SUPPLY CHAIN (MAIDSTONE),id:13709794   ,  13.54
Department of Health,Guys and St Thomas NHS Foundation Trust,05/02/2021,(80010) Drug Costs,(id:42517) Evelina Womens Services,IRVINE SCIENTIFIC SALES COMPANY INC,id:13703435 ,1971.60
Department of Health,Guys and St Thomas NHS Foundation Trust,05/02/2021,(81100) Dressings,(id:42517) Evelina Womens Services,ELIS UK LIMITED,id:13701654  ,1017.00
Department of Health,Guys and St Thomas NHS Foundation Trust,19/02/2021,(81100) Dressings,(id:42517) Evelina Womens Services,NHS SUPPLY CHAIN (MAIDSTONE),id:13687498    ,   7.35
Department of Health,Guys and St Thomas NHS Foundation Trust,19/02/2021,(81100) Dressings,(id:42517) Evelina Womens Services,ELIS UK LIMITED,id:13778035  , 565.00
Department of Health,Guys and St Thomas NHS Foundation Trust,19/02/2021,(89260) Clinical Services,(id:42517) Evelina Womens Services,DR JAN GRACE,id:13766094  ,8850.00
Department of Health,Guys and St Thomas NHS Foundation Trust,25/02/2021,(81200) Medical Surgical Supplies & Equipment,(id:42517) Evelina Womens Services,BIOTIPP,id:13789455  ,1005.29
Department of Health,Guys and St Thomas NHS Foundation Trust,19/02/2021,(81200) Medical Surgical Supplies & Equipment,(id:42517) Evelina Womens Services,ARGON MEDICAL DEVICES UK LTD,id:13761655 ,2640.00
Department of Health,Guys and St Thomas NHS Foundation Trust,19/02/2021,(81700) Lab Equipment Purchase,(id:42517) Evelina Womens Services,NHS SUPPLY CHAIN (MAIDSTONE),id:13687498 ,  49.32
Department of Health,Guys and St Thomas NHS Foundation Trust,12/02/2021,(81500) X Ray Equipment Purchase,(id:42517) Evelina Womens Services,IVF SYNERGY,id:13732836 ,1029.60
Department of Health,Guys and St Thomas NHS Foundation Trust,25/02/2021,(81255) Medical Surgical Supplies & Equipment,(id:42513) Evelina Womens Services,NHS SUPPLY CHAIN (MAIDSTONE),id:13641574 ,  30.72
Department of Health,Guys and St Thomas NHS Foundation Trust,25/02/2021,(81700) Lab Equipment Purchase,(id:42513) Evelina Womens Services,NHS SUPPLY CHAIN (MAIDSTONE),id:13709794 ,  19.28
Department of Health,Guys and St Thomas NHS Foundation Trust,25/02/2021,(81700) Lab Equipment Purchase,(id:42513) Evelina Womens Services,NHS SUPPLY CHAIN (MAIDSTONE),id:13641574 ,   5.93
Department of Health,Guys and St Thomas NHS Foundation Trust,25/02/2021,(81100) Dressings,(id:42510) Evelina Womens Services,NHS SUPPLY CHAIN (MAIDSTONE),id:13709794    ,   4.69
Department of Health,Guys and St Thomas NHS Foundation Trust,25/02/2021,(81200) Medical Surgical Supplies & Equipment,(id:42510) Evelina Womens Services,NHS SUPPLY CHAIN (MAIDSTONE),id:13709794 ,  50.32
Department of Health,Guys and St Thomas NHS Foundation Trust,25/02/2021,(81200) Medical Surgical Supplies & Equipment,(id:42510) Evelina Womens Services,COOK UK LTD,id:13729067   , 576.00
Department of Health,Guys and St Thomas NHS Foundation Trust,25/02/2021,(83400) Office Equipment,(id:42506) Evelina Womens Services,NHS SUPPLY CHAIN (MAIDSTONE),id:13709794  ,  35.68
Department of Health,Guys and St Thomas NHS Foundation Trust,19/02/2021,(81275) Medical Surgical Supplies & Equipment,(id:42506) Evelina Womens Services,NHS SUPPLY CHAIN (MAIDSTONE),id:13633898 ,  11.86
Department of Health,Guys and St Thomas NHS Foundation Trust,19/02/2021,(81200) Medical Surgical Supplies & Equipment,(id:42486) Evelina Womens Services,NHS SUPPLY CHAIN (MAIDSTONE),id:13633898 ,  10.75
Department of Health,Guys and St Thomas NHS Foundation Trust,25/02/2021,(81200) Medical Surgical Supplies & Equipment,(id:42486) Evelina Womens Services,NHS SUPPLY CHAIN (MAIDSTONE),id:13641574 ,  12.96
Department of Health,Guys and St Thomas NHS Foundation Trust,19/02/2021,(83400) Office Equipment,(id:42486) Evelina Womens Services,NHS SUPPLY CHAIN (MAIDSTONE),id:13687498  ,  19.66
Department of Health,Guys and St Thomas NHS Foundation Trust,25/02/2021,(83400) Office Equipment,(id:42488) Evelina Womens Services,NHS SUPPLY CHAIN (MAIDSTONE),id:13641574  ,  39.32
Department of Health,Guys and St Thomas NHS Foundation Trust,19/02/2021,(82800) Bedding & Linen,(id:42488) Evelina Womens Services,NHS SUPPLY CHAIN (MAIDSTONE),id:13633898   ,  46.82
Department of Health,Guys and St Thomas NHS Foundation Trust,25/02/2021,(81700) Lab Equipment Purchase,(id:42488) Evelina Womens Services,NHS SUPPLY CHAIN (MAIDSTONE),id:13641574 ,  38.68
Department of Health,Guys and St Thomas NHS Foundation Trust,19/02/2021,(81200) Medical Surgical Supplies & Equipment,(id:42488) Evelina Womens Services,NHS SUPPLY CHAIN (MAIDSTONE),id:13633898 ,  35.74
Department of Health,Guys and St Thomas NHS Foundation Trust,25/02/2021,(81200) Medical Surgical Supplies & Equipment,(id:42488) Evelina Womens Services,NHS SUPPLY CHAIN (MAIDSTONE),id:13641574 ,  33.39
Department of Health,Guys and St Thomas NHS Foundation Trust,25/02/2021,(50562) Qualified Nursing Staff,(id:42497) Evelina Womens Services,CARE PROVIDERS HEALTHCARE,id:13798978   , 841.65
Department of Health,Guys and St Thomas NHS Foundation Trust,25/02/2021,(50562) Qualified Nursing Staff,(id:42497) Evelina Womens Services,GLOBE LOCUMS LTD,id:13802450  , 372.39
Department of Health,Guys and St Thomas NHS Foundation Trust,25/02/2021,(50562) Qualified Nursing Staff,(id:42497) Evelina Womens Services,CARE PROVIDERS HEALTHCARE,id:13802493   , 486.72
Department of Health,Guys and St Thomas NHS Foundation Trust,19/02/2021,(81255) Medical Surgical Supplies & Equipment,(id:42497) Evelina Womens Services,NHS SUPPLY CHAIN (MAIDSTONE),id:13633898 ,   8.52
Department of Health,Guys and St Thomas NHS Foundation Trust,19/02/2021,(81200) Medical Surgical Supplies & Equipment,(id:42497) Evelina Womens Services,NHS SUPPLY CHAIN (MAIDSTONE),id:13633898 ,1334.64
Department of Health,Guys and St Thomas NHS Foundation Trust,19/02/2021,(83400) Office Equipment,(id:42497) Evelina Womens Services,NHS SUPPLY CHAIN (MAIDSTONE),id:13633898  ,   8.26
Department of Health,Guys and St Thomas NHS Foundation Trust,25/02/2021,(82800) Bedding & Linen,(id:42496) Evelina Womens Services,NHS SUPPLY CHAIN (MAIDSTONE),id:13641574   , 138.43
Department of Health,Guys and St Thomas NHS Foundation Trust,25/02/2021,(82800) Bedding & Linen,(id:42496) Evelina Womens Services,NHS SUPPLY CHAIN (MAIDSTONE),id:13709794   ,  23.41
Department of Health,Guys and St Thomas NHS Foundation Trust,25/02/2021,(82000) Provisions & Kitchens,(id:42493) Evelina Womens Services,NHS SUPPLY CHAIN (MAIDSTONE),id:13641574  , 139.74
Department of Health,Guys and St Thomas NHS Foundation Trust,25/02/2021,(82600) Uniforms & Clothing,(id:42492) Evelina Womens Services,LINDSAY SURGICAL SUPPLIES LIMITED,id:13796695    , 876.00
Department of Health,Guys and St Thomas NHS Foundation Trust,25/02/2021,(82000) Provisions & Kitchens,(id:42492) Evelina Womens Services,NHS SUPPLY CHAIN (MAIDSTONE),id:13641574  ,1074.02
Department of Health,Guys and St Thomas NHS Foundation Trust,19/02/2021,(81100) Dressings,(id:42492) Evelina Womens Services,ELIS UK LIMITED,id:13716750  , 472.50
Department of Health,Guys and St Thomas NHS Foundation Trust,25/02/2021,(81200) Medical Surgical Supplies & Equipment,(id:42492) Evelina Womens Services,NHS SUPPLY CHAIN (MAIDSTONE),id:13709794 ,3918.47
Department of Health,Guys and St Thomas NHS Foundation Trust,25/02/2021,(81700) Lab Equipment Purchase,(id:42492) Evelina Womens Services,NHS SUPPLY CHAIN (MAIDSTONE),id:13709794 ,  19.99
Department of Health,Guys and St Thomas NHS Foundation Trust,25/02/2021,(82000) Provisions & Kitchens,(id:42491) Evelina Womens Services,NHS SUPPLY CHAIN (MAIDSTONE),id:13641574  ,  83.16
Department of Health,Guys and St Thomas NHS Foundation Trust,25/02/2021,(82000) Provisions & Kitchens,(id:42491) Evelina Womens Services,NHS SUPPLY CHAIN (MAIDSTONE),id:13709794  , 216.63
Department of Health,Guys and St Thomas NHS Foundation Trust,19/02/2021,(83400) Office Equipment,(id:42491) Evelina Womens Services,NHS SUPPLY CHAIN (MAIDSTONE),id:13633898  ,  80.63
Department of Health,Guys and St Thomas NHS Foundation Trust,19/02/2021,(82000) Provisions & Kitchens,(id:42348) Evelina Central,NHS SUPPLY CHAIN (MAIDSTONE),id:13633898,  88.37
Department of Health,Guys and St Thomas NHS Foundation Trust,25/02/2021,(82000) Provisions & Kitchens,(id:42348) Evelina Central,NHS SUPPLY CHAIN (MAIDSTONE),id:13641574,  39.40
Department of Health,Guys and St Thomas NHS Foundation Trust,25/02/2021,(82800) Bedding & Linen,(id:42348) Evelina Central,NHS SUPPLY CHAIN (MAIDSTONE),id:13709794 , 196.17
Department of Health,Guys and St Thomas NHS Foundation Trust,19/02/2021,(81200) Medical Surgical Supplies & Equipment,(id:42331) Evelina Central,NHS SUPPLY CHAIN (MAIDSTONE),id:13687498    ,2178.57
Department of Health,Guys and St Thomas NHS Foundation Trust,19/02/2021,(83400) Office Equipment,(id:42331) Evelina Central,NHS SUPPLY CHAIN (MAIDSTONE),id:13633898, 397.26
Department of Health,Guys and St Thomas NHS Foundation Trust,19/02/2021,(81100) Dressings,(id:42331) Evelina Central,NHS SUPPLY CHAIN (MAIDSTONE),id:13633898  , 566.58
Department of Health,Guys and St Thomas NHS Foundation Trust,19/02/2021,(81100) Dressings,(id:42331) Evelina Central,NHS SUPPLY CHAIN (MAIDSTONE),id:13687498  , 356.93
Department of Health,Guys and St Thomas NHS Foundation Trust,19/02/2021,(81700) Lab Equipment Purchase,(id:42331) Evelina Central,NHS SUPPLY CHAIN (MAIDSTONE),id:13687498    ,  11.88
Department of Health,Guys and St Thomas NHS Foundation Trust,12/02/2021,(83400) Office Equipment,(id:2709419) Evelina Central,LAZERBEAM FIRE AND SECURITY LTD,id:13674934,2300.00
Department of Health,Guys and St Thomas NHS Foundation Trust,25/02/2021,(81200) Medical Surgical Supplies & Equipment,(id:42319) Evelina Central,NHS SUPPLY CHAIN (MAIDSTONE),id:13641574    , 208.51
Department of Health,Guys and St Thomas NHS Foundation Trust,05/02/2021,(86300) Healthcare from non-NHS bodies,(id:590445) Evelina Community Services,NATUS NICOLET UK LTD ( T/A OTOMETRICS UK),id:13693095 ,   -63726.42
Department of Health,Guys and St Thomas NHS Foundation Trust,19/02/2021,(82800) Bedding & Linen,(id:590444) Evelina Community Services,NHS SUPPLY CHAIN (MAIDSTONE),id:13687498    ,  23.41
Department of Health,Guys and St Thomas NHS Foundation Trust,19/02/2021,(82000) Provisions & Kitchens,(id:1831419) Evelina Community Services,NHS SUPPLY CHAIN (MAIDSTONE),id:13633898  , 522.24
Department of Health,Guys and St Thomas NHS Foundation Trust,12/02/2021,(83630) IT Costs,(id:590548) Evelina Community Services,LEICESTERSHIRE PARTNERSHIP NHS TRUST,id:13742515   ,    11280.00
Department of Health,Guys and St Thomas NHS Foundation Trust,19/02/2021,(82000) Provisions & Kitchens,(id:590446) Evelina Community Services,NHS SUPPLY CHAIN (MAIDSTONE),id:13687498   ,  46.80
Department of Health,Guys and St Thomas NHS Foundation Trust,19/02/2021,(83400) Office Equipment,(id:590539) Evelina Community Services,NHS SUPPLY CHAIN (MAIDSTONE),id:13687498   ,  17.01
Department of Health,Guys and St Thomas NHS Foundation Trust,19/02/2021,(81200) Medical Surgical Supplies & Equipment,(id:590539) Evelina Community Services,NHS SUPPLY CHAIN (MAIDSTONE),id:13687498  , 170.52
Department of Health,Guys and St Thomas NHS Foundation Trust,05/02/2021,(84656) Establishment,(id:1196422) Evelina Medicine & Neonatology,DICT8 LIMITED,id:13724234 , 903.60
Department of Health,Guys and St Thomas NHS Foundation Trust,19/02/2021,(81200) Medical Surgical Supplies & Equipment,(id:1196422) Evelina Medicine & Neonatology,NHS SUPPLY CHAIN (MAIDSTONE),id:13633898  , 146.90
Department of Health,Guys and St Thomas NHS Foundation Trust,09/02/2021,(80150) Drug Costs,(id:42350) Evelina Medicine & Neonatology,KANEKA PHARMA EUROPE N.V. (GERMAN BRANCH),id:13480317   ,7785.60
Department of Health,Guys and St Thomas NHS Foundation Trust,05/02/2021,(50200) Consultants,(id:42349) Evelina Medicine & Neonatology,KINGS COLLEGE LONDON:03529700,id:13684059    ,5302.87
Department of Health,Guys and St Thomas NHS Foundation Trust,05/02/2021,(50200) Consultants,(id:42349) Evelina Medicine & Neonatology,KINGS COLLEGE LONDON:03529700,id:13685476    ,5302.87
Department of Health,Guys and St Thomas NHS Foundation Trust,25/02/2021,(81230) Medical Surgical Supplies & Equipment,(id:42349) Evelina Medicine & Neonatology,NHS SUPPLY CHAIN (MAIDSTONE),id:13641574    ,   9.66
Department of Health,Guys and St Thomas NHS Foundation Trust,25/02/2021,(81200) Medical Surgical Supplies & Equipment,(id:2497419) Evelina Medicine & Neonatology,NHS SUPPLY CHAIN (MAIDSTONE),id:13641574  , 441.96
Department of Health,Guys and St Thomas NHS Foundation Trust,05/02/2021,(50200) Consultants,(id:42327) Evelina Medicine & Neonatology,KINGS COLLEGE LONDON:03529700,id:13684059    ,5749.07
Department of Health,Guys and St Thomas NHS Foundation Trust,05/02/2021,(50200) Consultants,(id:42327) Evelina Medicine & Neonatology,KINGS COLLEGE LONDON:03529700,id:13685476    ,9323.75
Department of Health,Guys and St Thomas NHS Foundation Trust,25/02/2021,(81100) Dressings,(id:42327) Evelina Medicine & Neonatology,NHS SUPPLY CHAIN (MAIDSTONE),id:13641574  , 501.86
Department of Health,Guys and St Thomas NHS Foundation Trust,19/02/2021,(81200) Medical Surgical Supplies & Equipment,(id:42327) Evelina Medicine & Neonatology,NHS SUPPLY CHAIN (MAIDSTONE),id:13633898    ,5739.60
Department of Health,Guys and St Thomas NHS Foundation Trust,25/02/2021,(81200) Medical Surgical Supplies & Equipment,(id:42327) Evelina Medicine & Neonatology,ARDO MEDICAL LTD,id:13785818 , 595.46
Department of Health,Guys and St Thomas NHS Foundation Trust,12/02/2021,(83630) IT Costs,(id:42327) Evelina Medicine & Neonatology,VCREATE LTD,id:13733098,4800.00
Department of Health,Guys and St Thomas NHS Foundation Trust,25/02/2021,(81225) Medical Surgical Supplies & Equipment,(id:42327) Evelina Medicine & Neonatology,NHS SUPPLY CHAIN (MAIDSTONE),id:13641574    ,  44.03
Department of Health,Guys and St Thomas NHS Foundation Trust,19/02/2021,(81700) Lab Equipment Purchase,(id:42327) Evelina Medicine & Neonatology,NHS SUPPLY CHAIN (MAIDSTONE),id:13633898    ,  70.42
Department of Health,Guys and St Thomas NHS Foundation Trust,05/02/2021,(80010) Drug Costs,(id:1196420) Evelina Medicine & Neonatology,INSULET INTERNATIONAL LTD,id:13716855  , 712.08
Department of Health,Guys and St Thomas NHS Foundation Trust,05/02/2021,(80010) Drug Costs,(id:1196420) Evelina Medicine & Neonatology,DEXCOM INTERNATIONAL LTD,id:13724474   , 793.50
Department of Health,Guys and St Thomas NHS Foundation Trust,12/02/2021,(89595) Non-Healthcare from Foundation Trusts,(id:2983419) Evelina Medicine & Neonatology,GREAT ORMOND STREET HOSPITAL FOR CHILDREN NHS FOUNDATION TRUST,id:13361640   , 731.91
Department of Health,Guys and St Thomas NHS Foundation Trust,25/02/2021,(81200) Medical Surgical Supplies & Equipment,(id:2496419) Evelina Medicine & Neonatology,BREAS MEDICAL LTD,id:13788134   , 649.20
Department of Health,Guys and St Thomas NHS Foundation Trust,19/02/2021,(83400) Office Equipment,(id:2496419) Evelina Medicine & Neonatology,NHS SUPPLY CHAIN (MAIDSTONE),id:13633898   ,  19.30
Department of Health,Guys and St Thomas NHS Foundation Trust,19/02/2021,(82800) Bedding & Linen,(id:2496419) Evelina Medicine & Neonatology,NHS SUPPLY CHAIN (MAIDSTONE),id:13687498    ,  62.20
Department of Health,Guys and St Thomas NHS Foundation Trust,19/02/2021,(82000) Provisions & Kitchens,(id:2496419) Evelina Medicine & Neonatology,NHS SUPPLY CHAIN (MAIDSTONE),id:13687498   ,  32.55
Department of Health,Guys and St Thomas NHS Foundation Trust,19/02/2021,(82600) Uniforms & Clothing,(id:2496419) Evelina Medicine & Neonatology,INTUS HEALTHCARE LTD,id:13778674   ,1000.80
Department of Health,Guys and St Thomas NHS Foundation Trust,12/02/2021,(50552) Qualified Nursing Staff,(id:2495419) Evelina Medicine & Neonatology,CONTINENTAL NURSE LTD,id:13750521   ,1816.95
Department of Health,Guys and St Thomas NHS Foundation Trust,25/02/2021,(50552) Qualified Nursing Staff,(id:2495419) Evelina Medicine & Neonatology,CONTINENTAL NURSE LTD,id:13802490   ,2210.36
Department of Health,Guys and St Thomas NHS Foundation Trust,12/02/2021,(83610) IT Costs,(id:42326) Evelina Medicine & Neonatology,VCREATE LTD,id:13733059,    10800.00
Department of Health,Guys and St Thomas NHS Foundation Trust,05/02/2021,(89595) Non-Healthcare from Foundation Trusts,(id:42326) Evelina Medicine & Neonatology,GREAT ORMOND STREET HOSPITAL FOR CHILDREN NHS FOUNDATION TRUST,id:13147441,6286.34
Department of Health,Guys and St Thomas NHS Foundation Trust,05/02/2021,(81200) Medical Surgical Supplies & Equipment,(id:42326) Evelina Medicine & Neonatology,MEDTRONIC LTD,id:12967934    , 567.00
Department of Health,Guys and St Thomas NHS Foundation Trust,19/02/2021,(83400) Office Equipment,(id:42323) Evelina Medicine & Neonatology,NHS SUPPLY CHAIN (MAIDSTONE),id:13633898,  97.50
Department of Health,Guys and St Thomas NHS Foundation Trust,25/02/2021,(83400) Office Equipment,(id:42323) Evelina Medicine & Neonatology,NHS SUPPLY CHAIN (MAIDSTONE),id:13641574,  41.04
Department of Health,Guys and St Thomas NHS Foundation Trust,19/02/2021,(81100) Dressings,(id:42323) Evelina Medicine & Neonatology,NHS SUPPLY CHAIN (MAIDSTONE),id:13633898  , 128.82
Department of Health,Guys and St Thomas NHS Foundation Trust,19/02/2021,(81700) Lab Equipment Purchase,(id:42323) Evelina Medicine & Neonatology,NHS SUPPLY CHAIN (MAIDSTONE),id:13633898    ,  57.98
Department of Health,Guys and St Thomas NHS Foundation Trust,25/02/2021,(82000) Provisions & Kitchens,(id:42315) Evelina Medicine & Neonatology,NHS SUPPLY CHAIN (MAIDSTONE),id:13709794,   5.76
Department of Health,Guys and St Thomas NHS Foundation Trust,19/02/2021,(81100) Dressings,(id:42315) Evelina Medicine & Neonatology,NHS SUPPLY CHAIN (MAIDSTONE),id:13687498  , 136.32
Department of Health,Guys and St Thomas NHS Foundation Trust,19/02/2021,(81200) Medical Surgical Supplies & Equipment,(id:42315) Evelina Medicine & Neonatology,NHS SUPPLY CHAIN (MAIDSTONE),id:13633898    , 309.79
Department of Health,Guys and St Thomas NHS Foundation Trust,19/02/2021,(82800) Bedding & Linen,(id:42059) Evelina Medicine & Neonatology,NHS SUPPLY CHAIN (MAIDSTONE),id:13687498 ,  24.00
Department of Health,Guys and St Thomas NHS Foundation Trust,19/02/2021,(81100) Dressings,(id:4082419) Evelina Surgery Theatres & PICU,NHS SUPPLY CHAIN (MAIDSTONE),id:13633898    ,  96.87
Department of Health,Guys and St Thomas NHS Foundation Trust,19/02/2021,(82800) Bedding & Linen,(id:42312) Evelina Surgery Theatres & PICU,NHS SUPPLY CHAIN (MAIDSTONE),id:13633898, 180.00
Department of Health,Guys and St Thomas NHS Foundation Trust,05/02/2021,(50200) Consultants,(id:42312) Evelina Surgery Theatres & PICU,KINGS COLLEGE LONDON:03529700,id:13685339   ,1686.37
Department of Health,Guys and St Thomas NHS Foundation Trust,05/02/2021,(81265) Medical Surgical Supplies & Equipment,(id:42312) Evelina Surgery Theatres & PICU,ABBOTT MEDICAL UK LTD,id:13700061,7200.00
Department of Health,Guys and St Thomas NHS Foundation Trust,25/02/2021,(81200) Medical Surgical Supplies & Equipment,(id:42312) Evelina Surgery Theatres & PICU,TERUMO UK LTD,id:13768394   , 540.00
Department of Health,Guys and St Thomas NHS Foundation Trust,12/02/2021,(81200) Medical Surgical Supplies & Equipment,(id:42312) Evelina Surgery Theatres & PICU,MERIT MEDICAL UK LTD,id:13729914 ,1071.84
Department of Health,Guys and St Thomas NHS Foundation Trust,12/02/2021,(81200) Medical Surgical Supplies & Equipment,(id:42312) Evelina Surgery Theatres & PICU,CASMED INTERNATIONAL LTD,id:13728902  , 921.36
Department of Health,Guys and St Thomas NHS Foundation Trust,05/02/2021,(81200) Medical Surgical Supplies & Equipment,(id:42312) Evelina Surgery Theatres & PICU,MERCIAN SURGICAL SUPPLY CO LTD,id:13700117 , 948.00
Department of Health,Guys and St Thomas NHS Foundation Trust,19/02/2021,(81200) Medical Surgical Supplies & Equipment,(id:42312) Evelina Surgery Theatres & PICU,ABBOTT MEDICAL UK LTD,id:13755674,1440.00
Department of Health,Guys and St Thomas NHS Foundation Trust,05/02/2021,(81280) Medical Surgical Supplies & Equipment,(id:42312) Evelina Surgery Theatres & PICU,OCCLUTECH UK LTD,id:13708735,2940.00
Department of Health,Guys and St Thomas NHS Foundation Trust,12/02/2021,(50552) Qualified Nursing Staff,(id:42312) Evelina Surgery Theatres & PICU,CONTINENTAL NURSE LTD,id:13750649    ,1090.80
Department of Health,Guys and St Thomas NHS Foundation Trust,05/02/2021,(81230) Medical Surgical Supplies & Equipment,(id:42312) Evelina Surgery Theatres & PICU,COOK UK LTD,id:13615324, 420.00
Department of Health,Guys and St Thomas NHS Foundation Trust,19/02/2021,(81230) Medical Surgical Supplies & Equipment,(id:42312) Evelina Surgery Theatres & PICU,NHS SUPPLY CHAIN (MAIDSTONE),id:13687498   , 102.71
Department of Health,Guys and St Thomas NHS Foundation Trust,19/02/2021,(81230) Medical Surgical Supplies & Equipment,(id:42312) Evelina Surgery Theatres & PICU,COOK UK LTD,id:13722855, 780.00
Department of Health,Guys and St Thomas NHS Foundation Trust,25/02/2021,(81230) Medical Surgical Supplies & Equipment,(id:42312) Evelina Surgery Theatres & PICU,COOK UK LTD,id:13722858, 513.60
Department of Health,Guys and St Thomas NHS Foundation Trust,25/02/2021,(83400) Office Equipment,(id:42312) Evelina Surgery Theatres & PICU,NHS SUPPLY CHAIN (MAIDSTONE),id:13641574    ,  42.24
Department of Health,Guys and St Thomas NHS Foundation Trust,25/02/2021,(81100) Dressings,(id:42312) Evelina Surgery Theatres & PICU,NHS SUPPLY CHAIN (MAIDSTONE),id:13641574 ,  40.90
Department of Health,Guys and St Thomas NHS Foundation Trust,19/02/2021,(81100) Dressings,(id:41914) Evelina Surgery Theatres & PICU,ELIS UK LIMITED,id:13680574    , 580.00
Department of Health,Guys and St Thomas NHS Foundation Trust,19/02/2021,(81225) Medical Surgical Supplies & Equipment,(id:41914) Evelina Surgery Theatres & PICU,NHS SUPPLY CHAIN (MAIDSTONE),id:13633898   ,  29.35
Department of Health,Guys and St Thomas NHS Foundation Trust,25/02/2021,(81700) Lab Equipment Purchase,(id:41914) Evelina Surgery Theatres & PICU,NHS SUPPLY CHAIN (MAIDSTONE),id:13641574   ,   6.10
Department of Health,Guys and St Thomas NHS Foundation Trust,19/02/2021,(81700) Lab Equipment Purchase,(id:41914) Evelina Surgery Theatres & PICU,NHS SUPPLY CHAIN (MAIDSTONE),id:13687498   ,  11.44
Department of Health,Guys and St Thomas NHS Foundation Trust,19/02/2021,(82600) Uniforms & Clothing,(id:41910) Evelina Surgery Theatres & PICU,NHS SUPPLY CHAIN (MAIDSTONE),id:13687498 ,   5.04
Department of Health,Guys and St Thomas NHS Foundation Trust,19/02/2021,(81200) Medical Surgical Supplies & Equipment,(id:1196421) Evelina Surgery Theatres & PICU,NUVASIVE UK LTD,id:13762058    ,    11556.60
Department of Health,Guys and St Thomas NHS Foundation Trust,19/02/2021,(81200) Medical Surgical Supplies & Equipment,(id:1196421) Evelina Surgery Theatres & PICU,JOHNSON & JOHNSON MEDICAL LTD,id:13506883, 679.29
Department of Health,Guys and St Thomas NHS Foundation Trust,05/02/2021,(81200) Medical Surgical Supplies & Equipment,(id:1196421) Evelina Surgery Theatres & PICU,ZIMMER BIOMET UK LTD,id:13700156    ,3124.80
Department of Health,Guys and St Thomas NHS Foundation Trust,12/02/2021,(50552) Qualified Nursing Staff,(id:2498419) Evelina Surgery Theatres & PICU,CONTINENTAL NURSE LTD,id:13750604  ,1616.28
Department of Health,Guys and St Thomas NHS Foundation Trust,19/02/2021,(81200) Medical Surgical Supplies & Equipment,(id:431409) Evelina Surgery Theatres & PICU,NHS SUPPLY CHAIN (MAIDSTONE),id:13687498  ,    17270.28
Department of Health,Guys and St Thomas NHS Foundation Trust,05/02/2021,(81200) Medical Surgical Supplies & Equipment,(id:431409) Evelina Surgery Theatres & PICU,SMITH & NEPHEW ORTHOPAEDICS LTD.,id:13705575   , 516.73
Department of Health,Guys and St Thomas NHS Foundation Trust,05/02/2021,(81200) Medical Surgical Supplies & Equipment,(id:431409) Evelina Surgery Theatres & PICU,ORTHOFIX LTD,id:13704254   ,1581.51
Department of Health,Guys and St Thomas NHS Foundation Trust,05/02/2021,(81000) Surgical Appliances,(id:431409) Evelina Surgery Theatres & PICU,JOHN FLORENCE LTD,id:13721435 , 823.56
Department of Health,Guys and St Thomas NHS Foundation Trust,05/02/2021,(81000) Surgical Appliances,(id:431409) Evelina Surgery Theatres & PICU,JOHN FLORENCE LTD,id:13719074 , 935.38
Department of Health,Guys and St Thomas NHS Foundation Trust,25/02/2021,(81200) Medical Surgical Supplies & Equipment,(id:468410) Evelina Surgery Theatres & PICU,NHS SUPPLY CHAIN (MAIDSTONE),id:13709794  ,  29.40
Department of Health,Guys and St Thomas NHS Foundation Trust,25/02/2021,(81100) Dressings,(id:468410) Evelina Surgery Theatres & PICU,NHS SUPPLY CHAIN (MAIDSTONE),id:13709794,  22.95
Department of Health,Guys and St Thomas NHS Foundation Trust,05/02/2021,(81200) Medical Surgical Supplies & Equipment,(id:468409) Evelina Surgery Theatres & PICU,T J SMITH & NEPHEW LTD,id:13705674   , 899.93
Department of Health,Guys and St Thomas NHS Foundation Trust,05/02/2021,(81235) Medical Surgical Supplies & Equipment,(id:42347) Evelina Surgery Theatres & PICU,BOSTON SCIENTIFIC LTD,id:13631219, 707.52
Department of Health,Guys and St Thomas NHS Foundation Trust,05/02/2021,(81200) Medical Surgical Supplies & Equipment,(id:42347) Evelina Surgery Theatres & PICU,LABORIE MEDICAL TECHNOLOGIES UK,id:13728897,1892.40
Department of Health,Guys and St Thomas NHS Foundation Trust,19/02/2021,(81200) Medical Surgical Supplies & Equipment,(id:42347) Evelina Surgery Theatres & PICU,NHS SUPPLY CHAIN (MAIDSTONE),id:13633898   , 919.44
Department of Health,Guys and St Thomas NHS Foundation Trust,19/02/2021,(82000) Provisions & Kitchens,(id:42344) Evelina Surgery Theatres & PICU,NHS SUPPLY CHAIN (MAIDSTONE),id:13687498    , 104.27
Department of Health,Guys and St Thomas NHS Foundation Trust,05/02/2021,(84400) Transport,(id:42344) Evelina Surgery Theatres & PICU,ST JOHN AMBULANCE ASSOCIATION,id:13688535,    50388.00
Department of Health,Guys and St Thomas NHS Foundation Trust,19/02/2021,(82000) Provisions & Kitchens,(id:42339) Evelina Surgery Theatres & PICU,NHS SUPPLY CHAIN (MAIDSTONE),id:13687498    , 457.86
Department of Health,Guys and St Thomas NHS Foundation Trust,19/02/2021,(80100) Drug Costs,(id:42339) Evelina Surgery Theatres & PICU,BOC LTD :02107500,id:13711694 ,3874.86
Department of Health,Guys and St Thomas NHS Foundation Trust,05/02/2021,(81100) Dressings,(id:42339) Evelina Surgery Theatres & PICU,ADVANCED STERILIZATION PRODUCTS (UK) LTD,id:13723077    , 603.72
Department of Health,Guys and St Thomas NHS Foundation Trust,12/02/2021,(81200) Medical Surgical Supplies & Equipment,(id:42339) Evelina Surgery Theatres & PICU,EDWARDS LIFESCIENCES LTD,id:13697694  , 864.72
Department of Health,Guys and St Thomas NHS Foundation Trust,19/02/2021,(89270) Establishment,(id:42339) Evelina Surgery Theatres & PICU,QUEEN MARY UNIVERSITY OF LONDON,id:13663374    ,2207.08
Department of Health,Guys and St Thomas NHS Foundation Trust,19/02/2021,(89270) Establishment,(id:42339) Evelina Surgery Theatres & PICU,QUEEN MARY UNIVERSITY OF LONDON,id:13648414    ,2207.08
Department of Health,Guys and St Thomas NHS Foundation Trust,25/02/2021,(89570) Other – Other Operating Expenditure,(id:4896419) Evelina R&D and Charity,EXPLORE YOUR SENSES,id:13729635    ,1177.20
Department of Health,Guys and St Thomas NHS Foundation Trust,05/02/2021,(50200) Consultants,(id:3008419) Evelina R&D and Charity,KINGS COLLEGE LONDON:03529700,id:13684059    ,4927.91
Department of Health,Guys and St Thomas NHS Foundation Trust,05/02/2021,(50200) Consultants,(id:2626419) Evelina R&D and Charity,KINGS COLLEGE LONDON:03529700,id:13684059    ,    10861.05
Department of Health,Guys and St Thomas NHS Foundation Trust,25/02/2021,(83400) Office Equipment,(id:780420) Cardiovascular Services,NHS SUPPLY CHAIN (MAIDSTONE),id:13709794 , 147.42
Department of Health,Guys and St Thomas NHS Foundation Trust,25/02/2021,(81700) Lab Equipment Purchase,(id:780420) Cardiovascular Services,NHS SUPPLY CHAIN (MAIDSTONE),id:13709794,  46.38
Department of Health,Guys and St Thomas NHS Foundation Trust,19/02/2021,(82000) Provisions & Kitchens,(id:780420) Cardiovascular Services,NHS SUPPLY CHAIN (MAIDSTONE),id:13687498 ,   9.96
Department of Health,Guys and St Thomas NHS Foundation Trust,25/02/2021,(81255) Medical Surgical Supplies & Equipment,(id:780420) Cardiovascular Services,NHS SUPPLY CHAIN (MAIDSTONE),id:13641574,   5.24
Department of Health,Guys and St Thomas NHS Foundation Trust,25/02/2021,(50552) Qualified Nursing Staff,(id:780420) Cardiovascular Services,CONTINENTAL NURSE LTD,id:13802540 ,1666.54
Department of Health,Guys and St Thomas NHS Foundation Trust,25/02/2021,(82800) Bedding & Linen,(id:780420) Cardiovascular Services,NHS SUPPLY CHAIN (MAIDSTONE),id:13709794  , 208.38
Department of Health,Guys and St Thomas NHS Foundation Trust,19/02/2021,(81250) Medical Surgical Supplies & Equipment,(id:639421) Cardiovascular Services,COOK UK LTD,id:13463972  ,    12000.00
Department of Health,Guys and St Thomas NHS Foundation Trust,12/02/2021,(81200) Medical Surgical Supplies & Equipment,(id:639421) Cardiovascular Services,COOK UK LTD,id:13694871  , 612.00
Department of Health,Guys and St Thomas NHS Foundation Trust,19/02/2021,(81200) Medical Surgical Supplies & Equipment,(id:639421) Cardiovascular Services,BENTLEY INNOMED GMBH,id:13760534   ,5640.00
Department of Health,Guys and St Thomas NHS Foundation Trust,19/02/2021,(81200) Medical Surgical Supplies & Equipment,(id:639421) Cardiovascular Services,MEDTRONIC LTD,id:13597974,5040.00
Department of Health,Guys and St Thomas NHS Foundation Trust,25/02/2021,(81200) Medical Surgical Supplies & Equipment,(id:639421) Cardiovascular Services,BOSTON SCIENTIFIC LTD,id:13799538  , 738.00
Department of Health,Guys and St Thomas NHS Foundation Trust,19/02/2021,(81200) Medical Surgical Supplies & Equipment,(id:639421) Cardiovascular Services,MEDTRONIC LTD,id:13722754, 600.00
Department of Health,Guys and St Thomas NHS Foundation Trust,19/02/2021,(81200) Medical Surgical Supplies & Equipment,(id:639421) Cardiovascular Services,BENTLEY INNOMED GMBH,id:13771315   ,2040.00
Department of Health,Guys and St Thomas NHS Foundation Trust,19/02/2021,(81200) Medical Surgical Supplies & Equipment,(id:639421) Cardiovascular Services,BENTLEY INNOMED GMBH,id:13760574   ,1020.00
Department of Health,Guys and St Thomas NHS Foundation Trust,19/02/2021,(81200) Medical Surgical Supplies & Equipment,(id:41952) Cardiovascular Services,NHS SUPPLY CHAIN (MAIDSTONE),id:13633898 , 126.51
Department of Health,Guys and St Thomas NHS Foundation Trust,25/02/2021,(83400) Office Equipment,(id:41952) Cardiovascular Services,NHS SUPPLY CHAIN (MAIDSTONE),id:13709794  ,  67.71
Department of Health,Guys and St Thomas NHS Foundation Trust,05/02/2021,(50200) Consultants,(id:41950) Cardiovascular Services,KINGS COLLEGE LONDON:03529700,id:13684420 ,    19121.15
Department of Health,Guys and St Thomas NHS Foundation Trust,05/02/2021,(81200) Medical Surgical Supplies & Equipment,(id:41950) Cardiovascular Services,COOK UK LTD,id:13644525   ,1044.00
Department of Health,Guys and St Thomas NHS Foundation Trust,19/02/2021,(81200) Medical Surgical Supplies & Equipment,(id:41950) Cardiovascular Services,NHS SUPPLY CHAIN (MAIDSTONE),id:13687498 ,8050.42
Department of Health,Guys and St Thomas NHS Foundation Trust,19/02/2021,(81200) Medical Surgical Supplies & Equipment,(id:41950) Cardiovascular Services,COOK UK LTD,id:13722862   , 552.00
Department of Health,Guys and St Thomas NHS Foundation Trust,19/02/2021,(81200) Medical Surgical Supplies & Equipment,(id:41950) Cardiovascular Services,BOSTON SCIENTIFIC LTD,id:13700459   , 432.00
Department of Health,Guys and St Thomas NHS Foundation Trust,05/02/2021,(81200) Medical Surgical Supplies & Equipment,(id:41950) Cardiovascular Services,COOK UK LTD,id:13602561   , 600.00
Department of Health,Guys and St Thomas NHS Foundation Trust,05/02/2021,(81200) Medical Surgical Supplies & Equipment,(id:41950) Cardiovascular Services,COOK UK LTD,id:13620050   , 768.00
Department of Health,Guys and St Thomas NHS Foundation Trust,05/02/2021,(81230) Medical Surgical Supplies & Equipment,(id:41950) Cardiovascular Services,COOK UK LTD,id:13605848   , 528.00
Department of Health,Guys and St Thomas NHS Foundation Trust,25/02/2021,(81230) Medical Surgical Supplies & Equipment,(id:41950) Cardiovascular Services,COOK UK LTD,id:13737947   , 132.00
Department of Health,Guys and St Thomas NHS Foundation Trust,05/02/2021,(81235) Medical Surgical Supplies & Equipment,(id:41950) Cardiovascular Services,BARD LTD,id:13637698 , 545.89
Department of Health,Guys and St Thomas NHS Foundation Trust,05/02/2021,(81235) Medical Surgical Supplies & Equipment,(id:41950) Cardiovascular Services,BOSTON SCIENTIFIC LTD,id:13625750   , 306.00
Department of Health,Guys and St Thomas NHS Foundation Trust,12/02/2021,(84656) Establishment,(id:41950) Cardiovascular Services,DICT8 LIMITED,id:13739394, 813.48
Department of Health,Guys and St Thomas NHS Foundation Trust,05/02/2021,(83400) Office Equipment,(id:41950) Cardiovascular Services,KINGS COLLEGE LONDON:03529700,id:13654342 ,2543.38
Department of Health,Guys and St Thomas NHS Foundation Trust,19/02/2021,(81000) Surgical Appliances,(id:41950) Cardiovascular Services,TALAR MADE ORTHOTICS LTD,id:13770435   , 100.32
Department of Health,Guys and St Thomas NHS Foundation Trust,05/02/2021,(81100) Dressings,(id:41950) Cardiovascular Services,KIMAL PLC,id:13701794   , 588.67
Department of Health,Guys and St Thomas NHS Foundation Trust,19/02/2021,(81225) Medical Surgical Supplies & Equipment,(id:41950) Cardiovascular Services,NHS SUPPLY CHAIN (MAIDSTONE),id:13687498 ,  24.24
Department of Health,Guys and St Thomas NHS Foundation Trust,25/02/2021,(82800) Bedding & Linen,(id:1243420) Cardiovascular Services,NHS SUPPLY CHAIN (MAIDSTONE),id:13641574 , 117.06
Department of Health,Guys and St Thomas NHS Foundation Trust,12/02/2021,(50200) Consultants,(id:42304) Cardiovascular Services,SURREY AND SUSSEX HEALTHCARE NHS TRUST,id:13411135  , 731.02
Department of Health,Guys and St Thomas NHS Foundation Trust,12/02/2021,(50200) Consultants,(id:42304) Cardiovascular Services,LEWISHAM AND GREENWICH NHS TRUST,id:13687716   ,1291.21
Department of Health,Guys and St Thomas NHS Foundation Trust,12/02/2021,(50200) Consultants,(id:42304) Cardiovascular Services,MEDWAY NHS FOUNDATION TRUST,id:10652071   ,1565.00
Department of Health,Guys and St Thomas NHS Foundation Trust,12/02/2021,(50200) Consultants,(id:42304) Cardiovascular Services,KINGSTON HOSPITAL NHS FOUNDATION TRUST,id:13466528  ,2631.04
Department of Health,Guys and St Thomas NHS Foundation Trust,12/02/2021,(89595) Non-Healthcare from Foundation Trusts,(id:42304) Cardiovascular Services,OXFORD UNIVERSITY HOSPITALS NHS FOUNDATION TRUST,id:12925295 ,1020.00
Department of Health,Guys and St Thomas NHS Foundation Trust,12/02/2021,(89640) Non-Healthcare from NHS Trusts,(id:42304) Cardiovascular Services,MAIDSTONE AND TUNBRIDGE WELLS NHS TRUST,id:12501454  ,3434.48
Department of Health,Guys and St Thomas NHS Foundation Trust,25/02/2021,(54052) Technical Officers,(id:42303) Cardiovascular Services,PRICEWATERHOUSECOOPERS LLP,id:13800514  , 959.50
Department of Health,Guys and St Thomas NHS Foundation Trust,09/02/2021,(51842) Physiotherapists,(id:42303) Cardiovascular Services,PRICEWATERHOUSECOOPERS LLP,id:13742774    , 762.66
Department of Health,Guys and St Thomas NHS Foundation Trust,25/02/2021,(81200) Medical Surgical Supplies & Equipment,(id:42302) Cardiovascular Services,NHS SUPPLY CHAIN (MAIDSTONE),id:13709794 ,    11269.54
Department of Health,Guys and St Thomas NHS Foundation Trust,25/02/2021,(81200) Medical Surgical Supplies & Equipment,(id:42302) Cardiovascular Services,GREINER BIO-ONE LTD,id:13770134, 544.32
Department of Health,Guys and St Thomas NHS Foundation Trust,19/02/2021,(81200) Medical Surgical Supplies & Equipment,(id:42302) Cardiovascular Services,TERUMO UK LTD,id:13777734 ,1140.00
Department of Health,Guys and St Thomas NHS Foundation Trust,25/02/2021,(81100) Dressings,(id:42302) Cardiovascular Services,NHS SUPPLY CHAIN (MAIDSTONE),id:13641574    ,  15.44
Department of Health,Guys and St Thomas NHS Foundation Trust,19/02/2021,(83400) Office Equipment,(id:42301) Cardiovascular Services,NHS SUPPLY CHAIN (MAIDSTONE),id:13633898  ,  61.31
Department of Health,Guys and St Thomas NHS Foundation Trust,19/02/2021,(82800) Bedding & Linen,(id:42301) Cardiovascular Services,NHS SUPPLY CHAIN (MAIDSTONE),id:13633898   ,  58.05
Department of Health,Guys and St Thomas NHS Foundation Trust,19/02/2021,(81100) Dressings,(id:42301) Cardiovascular Services,NHS SUPPLY CHAIN (MAIDSTONE),id:13633898    ,   1.73
Department of Health,Guys and St Thomas NHS Foundation Trust,19/02/2021,(83400) Office Equipment,(id:42300) Cardiovascular Services,NHS SUPPLY CHAIN (MAIDSTONE),id:13687498  , 100.39
Department of Health,Guys and St Thomas NHS Foundation Trust,19/02/2021,(81225) Medical Surgical Supplies & Equipment,(id:42300) Cardiovascular Services,NHS SUPPLY CHAIN (MAIDSTONE),id:13687498 ,  32.08
Department of Health,Guys and St Thomas NHS Foundation Trust,19/02/2021,(81200) Medical Surgical Supplies & Equipment,(id:42300) Cardiovascular Services,NHS SUPPLY CHAIN (MAIDSTONE),id:13687498 , 877.00
Department of Health,Guys and St Thomas NHS Foundation Trust,25/02/2021,(81200) Medical Surgical Supplies & Equipment,(id:42300) Cardiovascular Services,NHS SUPPLY CHAIN (MAIDSTONE),id:13641574 , 711.64
Department of Health,Guys and St Thomas NHS Foundation Trust,25/02/2021,(81100) Dressings,(id:42300) Cardiovascular Services,NHS SUPPLY CHAIN (MAIDSTONE),id:13709794    , 209.91
Department of Health,Guys and St Thomas NHS Foundation Trust,25/02/2021,(50552) Qualified Nursing Staff,(id:42300) Cardiovascular Services,CONTINENTAL NURSE LTD,id:13802540  , 666.62
Department of Health,Guys and St Thomas NHS Foundation Trust,19/02/2021,(81700) Lab Equipment Purchase,(id:42300) Cardiovascular Services,NHS SUPPLY CHAIN (MAIDSTONE),id:13687498 ,  39.17
Department of Health,Guys and St Thomas NHS Foundation Trust,05/02/2021,(81200) Medical Surgical Supplies & Equipment,(id:42298) Cardiovascular Services,TELEFLEX MEDICAL,id:13644433   ,1260.00
Department of Health,Guys and St Thomas NHS Foundation Trust,05/02/2021,(81200) Medical Surgical Supplies & Equipment,(id:42298) Cardiovascular Services,BOSTON SCIENTIFIC LTD,id:13701988   ,1800.00
Department of Health,Guys and St Thomas NHS Foundation Trust,12/02/2021,(81200) Medical Surgical Supplies & Equipment,(id:42298) Cardiovascular Services,ABBOTT MEDICAL UK LTD,id:13732122   ,6588.00
Department of Health,Guys and St Thomas NHS Foundation Trust,19/02/2021,(81200) Medical Surgical Supplies & Equipment,(id:42298) Cardiovascular Services,SPECTRANETICS UK,id:13716494   ,1424.40
Department of Health,Guys and St Thomas NHS Foundation Trust,05/02/2021,(81230) Medical Surgical Supplies & Equipment,(id:42298) Cardiovascular Services,ABBOTT MEDICAL UK LTD,id:13710014   , 582.00
Department of Health,Guys and St Thomas NHS Foundation Trust,19/02/2021,(82600) Uniforms & Clothing,(id:42298) Cardiovascular Services,NHS SUPPLY CHAIN (MAIDSTONE),id:13687498    ,  67.32
Department of Health,Guys and St Thomas NHS Foundation Trust,05/02/2021,(81240) Medical Surgical Supplies & Equipment,(id:42298) Cardiovascular Services,MEDTRONIC LTD,id:13716275 ,1620.00
Department of Health,Guys and St Thomas NHS Foundation Trust,05/02/2021,(81240) Medical Surgical Supplies & Equipment,(id:42298) Cardiovascular Services,BOSTON SCIENTIFIC LTD,id:13710307   ,1800.00
Department of Health,Guys and St Thomas NHS Foundation Trust,19/02/2021,(81240) Medical Surgical Supplies & Equipment,(id:42298) Cardiovascular Services,BOSTON SCIENTIFIC LTD,id:13737964   ,3600.00
Department of Health,Guys and St Thomas NHS Foundation Trust,19/02/2021,(82800) Bedding & Linen,(id:42291) Cardiovascular Services,NHS SUPPLY CHAIN (MAIDSTONE),id:13633898   ,  50.79
Department of Health,Guys and St Thomas NHS Foundation Trust,19/02/2021,(81100) Dressings,(id:42291) Cardiovascular Services,NHS SUPPLY CHAIN (MAIDSTONE),id:13633898    ,  27.52
Department of Health,Guys and St Thomas NHS Foundation Trust,25/02/2021,(81700) Lab Equipment Purchase,(id:42291) Cardiovascular Services,NHS SUPPLY CHAIN (MAIDSTONE),id:13709794 ,   8.03
Department of Health,Guys and St Thomas NHS Foundation Trust,19/02/2021,(81225) Medical Surgical Supplies & Equipment,(id:42291) Cardiovascular Services,NHS SUPPLY CHAIN (MAIDSTONE),id:13633898 ,  11.05
Department of Health,Guys and St Thomas NHS Foundation Trust,19/02/2021,(82700) Uniforms & Clothing,(id:42290) Cardiovascular Services,NHS SUPPLY CHAIN (MAIDSTONE),id:13633898    ,  31.68
Department of Health,Guys and St Thomas NHS Foundation Trust,19/02/2021,(82000) Provisions & Kitchens,(id:42290) Cardiovascular Services,NHS SUPPLY CHAIN (MAIDSTONE),id:13687498  , 173.04
Department of Health,Guys and St Thomas NHS Foundation Trust,19/02/2021,(83400) Office Equipment,(id:42290) Cardiovascular Services,NHS SUPPLY CHAIN (MAIDSTONE),id:13687498  , 330.10
Department of Health,Guys and St Thomas NHS Foundation Trust,25/02/2021,(82800) Bedding & Linen,(id:42290) Cardiovascular Services,NHS SUPPLY CHAIN (MAIDSTONE),id:13709794   , 152.14
Department of Health,Guys and St Thomas NHS Foundation Trust,19/02/2021,(81200) Medical Surgical Supplies & Equipment,(id:42290) Cardiovascular Services,NHS SUPPLY CHAIN (MAIDSTONE),id:13633898 , 547.96
Department of Health,Guys and St Thomas NHS Foundation Trust,19/02/2021,(81225) Medical Surgical Supplies & Equipment,(id:42290) Cardiovascular Services,NHS SUPPLY CHAIN (MAIDSTONE),id:13633898 ,   3.00
Department of Health,Guys and St Thomas NHS Foundation Trust,25/02/2021,(82600) Uniforms & Clothing,(id:42293) Cardiovascular Services,NHS SUPPLY CHAIN (MAIDSTONE),id:13709794    ,  42.48
Department of Health,Guys and St Thomas NHS Foundation Trust,19/02/2021,(83400) Office Equipment,(id:42293) Cardiovascular Services,NHS SUPPLY CHAIN (MAIDSTONE),id:13687498  , 387.88
Department of Health,Guys and St Thomas NHS Foundation Trust,05/02/2021,(81200) Medical Surgical Supplies & Equipment,(id:42293) Cardiovascular Services,LIVANOVA UK LTD,id:13698596    ,2940.00
Department of Health,Guys and St Thomas NHS Foundation Trust,12/02/2021,(81200) Medical Surgical Supplies & Equipment,(id:42293) Cardiovascular Services,BAXTER HEALTHCARE LTD,id:13702716   ,1714.97
Department of Health,Guys and St Thomas NHS Foundation Trust,25/02/2021,(81200) Medical Surgical Supplies & Equipment,(id:42293) Cardiovascular Services,VASCUTEK LTD,id:13435177  , 956.40
Department of Health,Guys and St Thomas NHS Foundation Trust,19/02/2021,(81200) Medical Surgical Supplies & Equipment,(id:42293) Cardiovascular Services,JOHNSON & JOHNSON MEDICAL LTD,id:13765767,1263.61
Department of Health,Guys and St Thomas NHS Foundation Trust,25/02/2021,(81280) Medical Surgical Supplies & Equipment,(id:42293) Cardiovascular Services,CRYOLIFE EUROPA LTD,id:13783974,1440.00
Department of Health,Guys and St Thomas NHS Foundation Trust,12/02/2021,(81280) Medical Surgical Supplies & Equipment,(id:42293) Cardiovascular Services,EDWARDS LIFESCIENCES LTD,id:13731214,5640.00
Department of Health,Guys and St Thomas NHS Foundation Trust,05/02/2021,(81200) Medical Surgical Supplies & Equipment,(id:42292) Cardiovascular Services,LIVANOVA UK LTD,id:13720758    ,1155.48
Department of Health,Guys and St Thomas NHS Foundation Trust,05/02/2021,(81200) Medical Surgical Supplies & Equipment,(id:42292) Cardiovascular Services,TERUMO UK LTD,id:13716182 ,1200.00
Department of Health,Guys and St Thomas NHS Foundation Trust,19/02/2021,(81200) Medical Surgical Supplies & Equipment,(id:42292) Cardiovascular Services,LIVANOVA UK LTD,id:13728576    , 601.80
Department of Health,Guys and St Thomas NHS Foundation Trust,19/02/2021,(81200) Medical Surgical Supplies & Equipment,(id:42292) Cardiovascular Services,TERUMO UK LTD,id:13753127 ,1200.00
Department of Health,Guys and St Thomas NHS Foundation Trust,25/02/2021,(81100) Dressings,(id:42292) Cardiovascular Services,GETINGE LTD,id:13769534 , 366.00
Department of Health,Guys and St Thomas NHS Foundation Trust,19/02/2021,(83400) Office Equipment,(id:42287) Cardiovascular Services,NHS SUPPLY CHAIN (MAIDSTONE),id:13633898  ,  30.06
Department of Health,Guys and St Thomas NHS Foundation Trust,25/02/2021,(83500) Furniture & Fittings,(id:42287) Cardiovascular Services,KNIGHTSBRIDGE FURNITURE PRODUCTS,id:13790896    , 600.00
Department of Health,Guys and St Thomas NHS Foundation Trust,19/02/2021,(81700) Lab Equipment Purchase,(id:42287) Cardiovascular Services,NHS SUPPLY CHAIN (MAIDSTONE),id:13687498 ,   9.61
Department of Health,Guys and St Thomas NHS Foundation Trust,05/02/2021,(81200) Medical Surgical Supplies & Equipment,(id:41863) PACCS,RESMED (UK) LTD,id:13687274  ,4752.00
Department of Health,Guys and St Thomas NHS Foundation Trust,19/02/2021,(81200) Medical Surgical Supplies & Equipment,(id:41863) PACCS,RESMED (UK) LTD,id:13777056  ,4647.60
Department of Health,Guys and St Thomas NHS Foundation Trust,19/02/2021,(81200) Medical Surgical Supplies & Equipment,(id:41863) PACCS,RESMED (UK) LTD,id:13687298  ,2760.00
Department of Health,Guys and St Thomas NHS Foundation Trust,19/02/2021,(81200) Medical Surgical Supplies & Equipment,(id:41863) PACCS,RESMED (UK) LTD,id:13773214  ,4800.00
Department of Health,Guys and St Thomas NHS Foundation Trust,12/02/2021,(81200) Medical Surgical Supplies & Equipment,(id:41863) PACCS,RESMED (UK) LTD,id:13687138  ,4608.00
Department of Health,Guys and St Thomas NHS Foundation Trust,05/02/2021,(81245) Medical Surgical Supplies & Equipment,(id:41863) PACCS,STOWOOD SCIENTIFIC INSTRUMENTS,id:13706013  ,2044.50
Department of Health,Guys and St Thomas NHS Foundation Trust,19/02/2021,(82600) Uniforms & Clothing,(id:41935) PACCS,NHS SUPPLY CHAIN (MAIDSTONE),id:13633898  ,   2.16
Department of Health,Guys and St Thomas NHS Foundation Trust,25/02/2021,(82700) Uniforms & Clothing,(id:41935) PACCS,NHS SUPPLY CHAIN (MAIDSTONE),id:13709794  ,  84.65
Department of Health,Guys and St Thomas NHS Foundation Trust,19/02/2021,(82000) Provisions & Kitchens,(id:41935) PACCS,NHS SUPPLY CHAIN (MAIDSTONE),id:13687498,  97.38
Department of Health,Guys and St Thomas NHS Foundation Trust,19/02/2021,(83880) Building & Engineering,(id:41935) PACCS,REMEO PROPERTY LTD,id:13777256    ,4288.00
Department of Health,Guys and St Thomas NHS Foundation Trust,19/02/2021,(81100) Dressings,(id:41935) PACCS,NHS SUPPLY CHAIN (MAIDSTONE),id:13633898  , 219.56
Department of Health,Guys and St Thomas NHS Foundation Trust,19/02/2021,(81200) Medical Surgical Supplies & Equipment,(id:41935) PACCS,WILLIAMS MEDICAL SUPPLIES PLC,id:13588775   , 655.92
Department of Health,Guys and St Thomas NHS Foundation Trust,19/02/2021,(81200) Medical Surgical Supplies & Equipment,(id:41935) PACCS,ZOLL MEDICAL UK LTD,id:13758574   ,1017.48
Department of Health,Guys and St Thomas NHS Foundation Trust,19/02/2021,(81200) Medical Surgical Supplies & Equipment,(id:41935) PACCS,RESMED (UK) LTD,id:13777278  , 921.48
Department of Health,Guys and St Thomas NHS Foundation Trust,25/02/2021,(81200) Medical Surgical Supplies & Equipment,(id:41935) PACCS,NHS SUPPLY CHAIN (MAIDSTONE),id:13641574    ,5367.21
Department of Health,Guys and St Thomas NHS Foundation Trust,19/02/2021,(81200) Medical Surgical Supplies & Equipment,(id:41935) PACCS,BREAS MEDICAL LTD,id:13767234,3000.00
Department of Health,Guys and St Thomas NHS Foundation Trust,25/02/2021,(81200) Medical Surgical Supplies & Equipment,(id:41935) PACCS,BREAS MEDICAL LTD,id:13786616,4514.40
Department of Health,Guys and St Thomas NHS Foundation Trust,12/02/2021,(81200) Medical Surgical Supplies & Equipment,(id:41935) PACCS,FISHER & PAYKEL HEALTHCARE LTD,id:13726116  ,1441.80
Department of Health,Guys and St Thomas NHS Foundation Trust,19/02/2021,(81255) Medical Surgical Supplies & Equipment,(id:41935) PACCS,NHS SUPPLY CHAIN (MAIDSTONE),id:13633898    ,   5.18
Department of Health,Guys and St Thomas NHS Foundation Trust,19/02/2021,(81000) Surgical Appliances,(id:41935) PACCS,TALAR MADE ORTHOTICS LTD,id:13770435 ,   8.50
Department of Health,Guys and St Thomas NHS Foundation Trust,19/02/2021,(81000) Surgical Appliances,(id:41935) PACCS,TALAR MADE ORTHOTICS LTD,id:13768414 ,  46.50
Department of Health,Guys and St Thomas NHS Foundation Trust,25/02/2021,(82800) Bedding & Linen,(id:4620419) PACCS,NHS SUPPLY CHAIN (MAIDSTONE),id:13709794    , 586.40
Department of Health,Guys and St Thomas NHS Foundation Trust,05/02/2021,(81100) Dressings,(id:4620419) PACCS,TELEFLEX MEDICAL,id:13644452  , 432.00
Department of Health,Guys and St Thomas NHS Foundation Trust,25/02/2021,(81230) Medical Surgical Supplies & Equipment,(id:4620419) PACCS,NHS SUPPLY CHAIN (MAIDSTONE),id:13641574  ,2302.51
Department of Health,Guys and St Thomas NHS Foundation Trust,05/02/2021,(81200) Medical Surgical Supplies & Equipment,(id:4620419) PACCS,HAMILTON MEDICAL UK (A DIVISION OF HAMILTON SALES & SERVICE UK LTD),id:13728943   ,3706.80
Department of Health,Guys and St Thomas NHS Foundation Trust,19/02/2021,(81200) Medical Surgical Supplies & Equipment,(id:4620419) PACCS,EDWARDS LIFESCIENCES LTD,id:13772898 , 729.60
Department of Health,Guys and St Thomas NHS Foundation Trust,05/02/2021,(81200) Medical Surgical Supplies & Equipment,(id:4620419) PACCS,INTERSURGICAL LTD,id:13723456   , 742.56
Department of Health,Guys and St Thomas NHS Foundation Trust,12/02/2021,(81200) Medical Surgical Supplies & Equipment,(id:4620419) PACCS,HAMILTON MEDICAL UK (A DIVISION OF HAMILTON SALES & SERVICE UK LTD),id:13716679   ,2910.00
Department of Health,Guys and St Thomas NHS Foundation Trust,12/02/2021,(81200) Medical Surgical Supplies & Equipment,(id:4620419) PACCS,VERATHON MEDICAL UK LTD,id:13749082  ,1104.00
Department of Health,Guys and St Thomas NHS Foundation Trust,12/02/2021,(81200) Medical Surgical Supplies & Equipment,(id:4620419) PACCS,AVANOS MEDICAL,id:13691415 , 519.12
Department of Health,Guys and St Thomas NHS Foundation Trust,12/02/2021,(81200) Medical Surgical Supplies & Equipment,(id:4620419) PACCS,FISHER & PAYKEL HEALTHCARE LTD,id:13743421,2592.00
Department of Health,Guys and St Thomas NHS Foundation Trust,19/02/2021,(81200) Medical Surgical Supplies & Equipment,(id:4620419) PACCS,MEDTRONIC LTD,id:13706121  ,1109.76
Department of Health,Guys and St Thomas NHS Foundation Trust,25/02/2021,(81200) Medical Surgical Supplies & Equipment,(id:4620419) PACCS,FISHER & PAYKEL HEALTHCARE LTD,id:13768095, 735.84
Department of Health,Guys and St Thomas NHS Foundation Trust,25/02/2021,(81200) Medical Surgical Supplies & Equipment,(id:4620419) PACCS,DRAEGER MEDICAL UK LTD,id:13769174   ,1005.60
Department of Health,Guys and St Thomas NHS Foundation Trust,19/02/2021,(81225) Medical Surgical Supplies & Equipment,(id:4620419) PACCS,NHS SUPPLY CHAIN (MAIDSTONE),id:13687498  , 372.57
Department of Health,Guys and St Thomas NHS Foundation Trust,19/02/2021,(82600) Uniforms & Clothing,(id:4620419) PACCS,NHS SUPPLY CHAIN (MAIDSTONE),id:13687498,  26.64
Department of Health,Guys and St Thomas NHS Foundation Trust,25/02/2021,(83400) Office Equipment,(id:4620419) PACCS,NHS SUPPLY CHAIN (MAIDSTONE),id:13709794   , 336.71
Department of Health,Guys and St Thomas NHS Foundation Trust,19/02/2021,(82800) Bedding & Linen,(id:3713419) PACCS,NHS SUPPLY CHAIN (MAIDSTONE),id:13633898    , 325.27
Department of Health,Guys and St Thomas NHS Foundation Trust,19/02/2021,(81200) Medical Surgical Supplies & Equipment,(id:3135419) PACCS,NHS SUPPLY CHAIN (MAIDSTONE),id:13633898  , 227.11
Department of Health,Guys and St Thomas NHS Foundation Trust,25/02/2021,(83400) Office Equipment,(id:3135419) PACCS,NHS SUPPLY CHAIN (MAIDSTONE),id:13709794   ,  86.40
Department of Health,Guys and St Thomas NHS Foundation Trust,19/02/2021,(81200) Medical Surgical Supplies & Equipment,(id:2545419) PACCS,NHS SUPPLY CHAIN (MAIDSTONE),id:13687498  , 430.31
Department of Health,Guys and St Thomas NHS Foundation Trust,19/02/2021,(81200) Medical Surgical Supplies & Equipment,(id:2121419) PACCS,ARMSTRONG MEDICAL,id:13759014   , 918.60
Department of Health,Guys and St Thomas NHS Foundation Trust,25/02/2021,(81200) Medical Surgical Supplies & Equipment,(id:2121419) PACCS,NHS SUPPLY CHAIN (MAIDSTONE),id:13709794  ,1013.20
Department of Health,Guys and St Thomas NHS Foundation Trust,19/02/2021,(81100) Dressings,(id:2121419) PACCS,NHS SUPPLY CHAIN (MAIDSTONE),id:13687498,  60.23
Department of Health,Guys and St Thomas NHS Foundation Trust,19/02/2021,(83400) Office Equipment,(id:2121419) PACCS,NHS SUPPLY CHAIN (MAIDSTONE),id:13687498   ,   1.63
Department of Health,Guys and St Thomas NHS Foundation Trust,19/02/2021,(82800) Bedding & Linen,(id:2121419) PACCS,NHS SUPPLY CHAIN (MAIDSTONE),id:13687498    ,   6.77
Department of Health,Guys and St Thomas NHS Foundation Trust,25/02/2021,(82800) Bedding & Linen,(id:2121419) PACCS,NHS SUPPLY CHAIN (MAIDSTONE),id:13641574    ,   8.79
Department of Health,Guys and St Thomas NHS Foundation Trust,19/02/2021,(50522) Unqualified Nursing Staff,(id:2121419) PACCS,MSI GROUP LTD,id:13775835    , 218.54
Department of Health,Guys and St Thomas NHS Foundation Trust,19/02/2021,(81700) Lab Equipment Purchase,(id:1842421) PACCS,NHS SUPPLY CHAIN (MAIDSTONE),id:13633898  ,  29.07
Department of Health,Guys and St Thomas NHS Foundation Trust,19/02/2021,(82000) Provisions & Kitchens,(id:1842421) PACCS,NHS SUPPLY CHAIN (MAIDSTONE),id:13633898   , 279.61
Department of Health,Guys and St Thomas NHS Foundation Trust,25/02/2021,(81255) Medical Surgical Supplies & Equipment,(id:1842421) PACCS,NHS SUPPLY CHAIN (MAIDSTONE),id:13641574  ,   1.56
Department of Health,Guys and St Thomas NHS Foundation Trust,05/02/2021,(81230) Medical Surgical Supplies & Equipment,(id:863419) PACCS,MEDTRONIC LTD,id:13716274   , 330.00
Department of Health,Guys and St Thomas NHS Foundation Trust,12/02/2021,(81230) Medical Surgical Supplies & Equipment,(id:863419) PACCS,MEDTRONIC LTD,id:13663930   , 330.00
Department of Health,Guys and St Thomas NHS Foundation Trust,12/02/2021,(81200) Medical Surgical Supplies & Equipment,(id:863419) PACCS,MEDTRONIC LTD,id:13694191   , 864.00
Department of Health,Guys and St Thomas NHS Foundation Trust,05/02/2021,(81200) Medical Surgical Supplies & Equipment,(id:863419) PACCS,GETINGE LTD,id:13690176,    11280.00
Department of Health,Guys and St Thomas NHS Foundation Trust,05/02/2021,(81200) Medical Surgical Supplies & Equipment,(id:863419) PACCS,COOK UK LTD,id:13631274, 324.00
Department of Health,Guys and St Thomas NHS Foundation Trust,19/02/2021,(83400) Office Equipment,(id:41931) PACCS,NHS SUPPLY CHAIN (MAIDSTONE),id:13633898, 509.63
Department of Health,Guys and St Thomas NHS Foundation Trust,25/02/2021,(82800) Bedding & Linen,(id:41931) PACCS,NHS SUPPLY CHAIN (MAIDSTONE),id:13641574 , 272.69
Department of Health,Guys and St Thomas NHS Foundation Trust,19/02/2021,(82000) Provisions & Kitchens,(id:41931) PACCS,NHS SUPPLY CHAIN (MAIDSTONE),id:13687498, 185.85
Department of Health,Guys and St Thomas NHS Foundation Trust,25/02/2021,(81100) Dressings,(id:41931) PACCS,NHS SUPPLY CHAIN (MAIDSTONE),id:13641574  , 403.10
Department of Health,Guys and St Thomas NHS Foundation Trust,19/02/2021,(81100) Dressings,(id:41931) PACCS,NHS SUPPLY CHAIN (MAIDSTONE),id:13687498  , 814.82
Department of Health,Guys and St Thomas NHS Foundation Trust,25/02/2021,(81230) Medical Surgical Supplies & Equipment,(id:41931) PACCS,NHS SUPPLY CHAIN (MAIDSTONE),id:13709794    , 423.54
Department of Health,Guys and St Thomas NHS Foundation Trust,25/02/2021,(82800) Bedding & Linen,(id:41928) PACCS,NHS SUPPLY CHAIN (MAIDSTONE),id:13709794 ,1189.01
Department of Health,Guys and St Thomas NHS Foundation Trust,05/02/2021,(80100) Drug Costs,(id:41928) PACCS,BOC LTD :02107500,id:13655435  ,3930.00
Department of Health,Guys and St Thomas NHS Foundation Trust,19/02/2021,(80100) Drug Costs,(id:41928) PACCS,BOC LTD :02107500,id:13718555  ,4800.00
Department of Health,Guys and St Thomas NHS Foundation Trust,25/02/2021,(81100) Dressings,(id:41928) PACCS,NHS SUPPLY CHAIN (MAIDSTONE),id:13709794  ,3544.64
Department of Health,Guys and St Thomas NHS Foundation Trust,19/02/2021,(81200) Medical Surgical Supplies & Equipment,(id:41928) PACCS,NHS SUPPLY CHAIN (MAIDSTONE),id:13633898    ,    33315.75
Department of Health,Guys and St Thomas NHS Foundation Trust,19/02/2021,(81200) Medical Surgical Supplies & Equipment,(id:41928) PACCS,NHS SUPPLY CHAIN (MAIDSTONE),id:13687498    ,    27617.44
Department of Health,Guys and St Thomas NHS Foundation Trust,19/02/2021,(81200) Medical Surgical Supplies & Equipment,(id:41928) PACCS,DELTA SURGICAL LTD,id:13704774    ,1223.64
Department of Health,Guys and St Thomas NHS Foundation Trust,19/02/2021,(81200) Medical Surgical Supplies & Equipment,(id:41928) PACCS,STRYKER UK LTD,id:13747921   ,1584.00
Department of Health,Guys and St Thomas NHS Foundation Trust,19/02/2021,(81200) Medical Surgical Supplies & Equipment,(id:41928) PACCS,STRYKER UK LTD,id:13728932   , 864.00
Department of Health,Guys and St Thomas NHS Foundation Trust,19/02/2021,(81200) Medical Surgical Supplies & Equipment,(id:41928) PACCS,STRYKER UK LTD,id:13700225   , 864.00
Department of Health,Guys and St Thomas NHS Foundation Trust,05/02/2021,(81200) Medical Surgical Supplies & Equipment,(id:41928) PACCS,STRYKER UK LTD,id:13701795   , 576.00
Department of Health,Guys and St Thomas NHS Foundation Trust,05/02/2021,(81200) Medical Surgical Supplies & Equipment,(id:41928) PACCS,DELTA SURGICAL LTD,id:13678755    ,1223.64
Department of Health,Guys and St Thomas NHS Foundation Trust,19/02/2021,(50552) Qualified Nursing Staff,(id:41928) PACCS,PULSE HEALTHCARE LIMITED,id:13775888  , 529.00
Department of Health,Guys and St Thomas NHS Foundation Trust,19/02/2021,(50552) Qualified Nursing Staff,(id:41928) PACCS,PULSE HEALTHCARE LIMITED,id:13775889  , 529.00
Department of Health,Guys and St Thomas NHS Foundation Trust,25/02/2021,(50552) Qualified Nursing Staff,(id:41928) PACCS,CONTINENTAL NURSE LTD,id:13802472,2050.56
Department of Health,Guys and St Thomas NHS Foundation Trust,05/02/2021,(50522) Unqualified Nursing Staff,(id:41928) PACCS,MEDICSPRO LTD,id:13727119 , 749.01
Department of Health,Guys and St Thomas NHS Foundation Trust,05/02/2021,(50522) Unqualified Nursing Staff,(id:41928) PACCS,MEDICSPRO LTD,id:13727366 , 548.20
Department of Health,Guys and St Thomas NHS Foundation Trust,19/02/2021,(81000) Surgical Appliances,(id:41928) PACCS,TALAR MADE ORTHOTICS LTD,id:13770675 , 465.00
Department of Health,Guys and St Thomas NHS Foundation Trust,25/02/2021,(50562) Qualified Nursing Staff,(id:41928) PACCS,PULSE HEALTHCARE LIMITED,id:13799127  , 442.41
Department of Health,Guys and St Thomas NHS Foundation Trust,25/02/2021,(50562) Qualified Nursing Staff,(id:41928) PACCS,MEDICSPRO LTD,id:13799051   , 618.17
Department of Health,Guys and St Thomas NHS Foundation Trust,25/02/2021,(50562) Qualified Nursing Staff,(id:41928) PACCS,JUST NURSES (NURSCO HEALTHCARE LIMITED),id:13802558  , 624.18
Department of Health,Guys and St Thomas NHS Foundation Trust,25/02/2021,(50562) Qualified Nursing Staff,(id:41928) PACCS,MEDICSPRO LTD,id:13799111   ,1885.27
Department of Health,Guys and St Thomas NHS Foundation Trust,25/02/2021,(50562) Qualified Nursing Staff,(id:41928) PACCS,MEDICSPRO LTD,id:13799090   ,1296.06
Department of Health,Guys and St Thomas NHS Foundation Trust,25/02/2021,(50562) Qualified Nursing Staff,(id:41928) PACCS,JUST NURSES (NURSCO HEALTHCARE LIMITED),id:13802550  ,2015.53
Department of Health,Guys and St Thomas NHS Foundation Trust,25/02/2021,(50562) Qualified Nursing Staff,(id:41928) PACCS,JUST NURSES (NURSCO HEALTHCARE LIMITED),id:13802509  , 681.38
Department of Health,Guys and St Thomas NHS Foundation Trust,25/02/2021,(50562) Qualified Nursing Staff,(id:41928) PACCS,JUST NURSES (NURSCO HEALTHCARE LIMITED),id:13802460  ,1420.25
Department of Health,Guys and St Thomas NHS Foundation Trust,25/02/2021,(50562) Qualified Nursing Staff,(id:41928) PACCS,JUST NURSES (NURSCO HEALTHCARE LIMITED),id:13802541  , 738.88
Department of Health,Guys and St Thomas NHS Foundation Trust,05/02/2021,(50562) Qualified Nursing Staff,(id:41928) PACCS,CARE PROVIDERS HEALTHCARE,id:13727375 , 498.76
Department of Health,Guys and St Thomas NHS Foundation Trust,05/02/2021,(50562) Qualified Nursing Staff,(id:41928) PACCS,MEDICSPRO LTD,id:13727209   , 679.65
Department of Health,Guys and St Thomas NHS Foundation Trust,05/02/2021,(50562) Qualified Nursing Staff,(id:41928) PACCS,URGENT STAFFING LTD,id:13727139  , 681.84
Department of Health,Guys and St Thomas NHS Foundation Trust,12/02/2021,(50562) Qualified Nursing Staff,(id:41928) PACCS,MEDICSPRO LTD,id:13750530   , 645.00
Department of Health,Guys and St Thomas NHS Foundation Trust,12/02/2021,(50562) Qualified Nursing Staff,(id:41928) PACCS,JUST NURSES (NURSCO HEALTHCARE LIMITED),id:13750640  , 651.48
Department of Health,Guys and St Thomas NHS Foundation Trust,19/02/2021,(50562) Qualified Nursing Staff,(id:41928) PACCS,MEDICSPRO LTD,id:13775829   , 590.53
Department of Health,Guys and St Thomas NHS Foundation Trust,19/02/2021,(50562) Qualified Nursing Staff,(id:41928) PACCS,MEDICSPRO LTD,id:13775916   , 590.53
Department of Health,Guys and St Thomas NHS Foundation Trust,19/02/2021,(50562) Qualified Nursing Staff,(id:41928) PACCS,MEDICSPRO LTD,id:13775828   , 625.81
Department of Health,Guys and St Thomas NHS Foundation Trust,25/02/2021,(80010) Drug Costs,(id:41927) PACCS,NHS SUPPLY CHAIN (MAIDSTONE),id:13709794 ,  18.00
Department of Health,Guys and St Thomas NHS Foundation Trust,19/02/2021,(82800) Bedding & Linen,(id:41927) PACCS,NHS SUPPLY CHAIN (MAIDSTONE),id:13687498 , 406.05
Department of Health,Guys and St Thomas NHS Foundation Trust,25/02/2021,(81100) Dressings,(id:41927) PACCS,NHS SUPPLY CHAIN (MAIDSTONE),id:13641574  , 994.49
Department of Health,Guys and St Thomas NHS Foundation Trust,19/02/2021,(81200) Medical Surgical Supplies & Equipment,(id:41927) PACCS,NHS SUPPLY CHAIN (MAIDSTONE),id:13633898    ,9518.08
Department of Health,Guys and St Thomas NHS Foundation Trust,19/02/2021,(81200) Medical Surgical Supplies & Equipment,(id:41927) PACCS,NHS SUPPLY CHAIN (MAIDSTONE),id:13687498    ,3431.57
Department of Health,Guys and St Thomas NHS Foundation Trust,19/02/2021,(81200) Medical Surgical Supplies & Equipment,(id:41927) PACCS,DRAEGER MEDICAL UK LTD,id:13752774, 707.04
Department of Health,Guys and St Thomas NHS Foundation Trust,19/02/2021,(83400) Office Equipment,(id:41927) PACCS,NHS SUPPLY CHAIN (MAIDSTONE),id:13687498, 176.00
Department of Health,Guys and St Thomas NHS Foundation Trust,19/02/2021,(81230) Medical Surgical Supplies & Equipment,(id:41927) PACCS,NHS SUPPLY CHAIN (MAIDSTONE),id:13633898    ,1113.78
Department of Health,Guys and St Thomas NHS Foundation Trust,25/02/2021,(81200) Medical Surgical Supplies & Equipment,(id:41919) PACCS,NHS SUPPLY CHAIN (MAIDSTONE),id:13709794    ,   9.50
Department of Health,Guys and St Thomas NHS Foundation Trust,19/02/2021,(81255) Medical Surgical Supplies & Equipment,(id:41864) PACCS,NHS SUPPLY CHAIN (MAIDSTONE),id:13687498    , 129.36
Department of Health,Guys and St Thomas NHS Foundation Trust,19/02/2021,(89000) Other - Training courses and conferences,(id:987420) Hosted Services,WIGAN LEISURE AND CULTURE TRUST,id:13545574  ,4992.00
Department of Health,Guys and St Thomas NHS Foundation Trust,05/02/2021,(89570) Other – Other Operating Expenditure,(id:987420) Hosted Services,UKACTIVE,id:13679517    ,    10560.00
Department of Health,Guys and St Thomas NHS Foundation Trust,05/02/2021,(89280) Other - Consultancy costs,(id:987420) Hosted Services,KINGFISHER COACHING LIMITED,id:13711336 ,8400.00
Department of Health,Guys and St Thomas NHS Foundation Trust,12/02/2021,(89280) Other - Consultancy costs,(id:987420) Hosted Services,CITY UNIVERSITY LONDON,id:13737314 ,    12060.00
Department of Health,Guys and St Thomas NHS Foundation Trust,05/02/2021,(55050) Admin & Clerical,(id:221406) Hosted Services,KINGS COLLEGE LONDON:03529700,id:13683614   ,5063.75
Department of Health,Guys and St Thomas NHS Foundation Trust,05/02/2021,(81000) Surgical Appliances,(id:43237) Capital Codes - Depreciation,TALAR MADE ORTHOTICS LTD,id:13719475   , 279.00
Department of Health,Guys and St Thomas NHS Foundation Trust,05/02/2021,(81000) Surgical Appliances,(id:43225) Capital Codes - Depreciation,TALAR MADE ORTHOTICS LTD,id:13719814   ,  93.00
Department of Health,Guys and St Thomas NHS Foundation Trust,19/02/2021,(83610) IT Costs,(id:42814) Communications,COMPUTACENTER UK LTD,id:13743614  , 749.87
Department of Health,Guys and St Thomas NHS Foundation Trust,19/02/2021,(82800) Bedding & Linen,(id:49447) Debtors (I&E Rechargable),NHS SUPPLY CHAIN (MAIDSTONE),id:13633898 ,  10.15
Department of Health,Guys and St Thomas NHS Foundation Trust,25/02/2021,(81200) Medical Surgical Supplies & Equipment,(id:49447) Debtors (I&E Rechargable),NHS SUPPLY CHAIN (MAIDSTONE),id:13709794    ,  12.07
Department of Health,Guys and St Thomas NHS Foundation Trust,25/02/2021,(81100) Dressings,(id:49447) Debtors (I&E Rechargable),NHS SUPPLY CHAIN (MAIDSTONE),id:13641574  ,  56.18
Department of Health,Guys and St Thomas NHS Foundation Trust,12/02/2021,(84200) Rental under Operating Lease,(id:590619) Central Services,LEX AUTOLEASE LIMITED,id:13752100   ,2597.28
Department of Health,Guys and St Thomas NHS Foundation Trust,25/02/2021,(84200) Rental under Operating Lease,(id:590619) Central Services,LEX AUTOLEASE LIMITED,id:13788934   , 444.06
Department of Health,Guys and St Thomas NHS Foundation Trust,05/02/2021,(84400) Transport,(id:42579) Central Services,STARCROSS TRADING LTD T/A BEARS,id:13728864   ,4400.00
Department of Health,Guys and St Thomas NHS Foundation Trust,05/02/2021,(84400) Transport,(id:42579) Central Services,STARCROSS TRADING LTD T/A BEARS,id:13728772   ,8800.00
Department of Health,Guys and St Thomas NHS Foundation Trust,05/02/2021,(84400) Transport,(id:42579) Central Services,STARCROSS TRADING LTD T/A BEARS,id:13728770   ,    14800.00
Department of Health,Guys and St Thomas NHS Foundation Trust,05/02/2021,(84400) Transport,(id:42579) Central Services,STARCROSS TRADING LTD T/A BEARS,id:13728819   , 720.00
Department of Health,Guys and St Thomas NHS Foundation Trust,05/02/2021,(84400) Transport,(id:42579) Central Services,STARCROSS TRADING LTD T/A BEARS,id:13728784   , 786.29
Department of Health,Guys and St Thomas NHS Foundation Trust,05/02/2021,(84400) Transport,(id:42579) Central Services,STARCROSS TRADING LTD T/A BEARS,id:13728853   , 950.00
Department of Health,Guys and St Thomas NHS Foundation Trust,05/02/2021,(84400) Transport,(id:42579) Central Services,STARCROSS TRADING LTD T/A BEARS,id:13728804   ,1049.50
Department of Health,Guys and St Thomas NHS Foundation Trust,05/02/2021,(84400) Transport,(id:42579) Central Services,STARCROSS TRADING LTD T/A BEARS,id:13728766   ,1200.00
Department of Health,Guys and St Thomas NHS Foundation Trust,05/02/2021,(84400) Transport,(id:42579) Central Services,STARCROSS TRADING LTD T/A BEARS,id:13728778   ,1342.49
Department of Health,Guys and St Thomas NHS Foundation Trust,05/02/2021,(84400) Transport,(id:42579) Central Services,STARCROSS TRADING LTD T/A BEARS,id:13728752   ,1360.00
Department of Health,Guys and St Thomas NHS Foundation Trust,05/02/2021,(84400) Transport,(id:42579) Central Services,STARCROSS TRADING LTD T/A BEARS,id:13728779   ,1676.32
Department of Health,Guys and St Thomas NHS Foundation Trust,05/02/2021,(84400) Transport,(id:42579) Central Services,STARCROSS TRADING LTD T/A BEARS,id:13728790   ,1726.04
Department of Health,Guys and St Thomas NHS Foundation Trust,05/02/2021,(84400) Transport,(id:42579) Central Services,STARCROSS TRADING LTD T/A BEARS,id:13728799   ,2297.93
Department of Health,Guys and St Thomas NHS Foundation Trust,05/02/2021,(84400) Transport,(id:42579) Central Services,STARCROSS TRADING LTD T/A BEARS,id:13728803   ,2981.00
Department of Health,Guys and St Thomas NHS Foundation Trust,12/02/2021,(84400) Transport,(id:42579) Central Services,STARCROSS TRADING LTD T/A BEARS,id:13752175   , 942.40
Department of Health,Guys and St Thomas NHS Foundation Trust,12/02/2021,(84400) Transport,(id:42579) Central Services,STARCROSS TRADING LTD T/A BEARS,id:13752248   ,1140.00
Department of Health,Guys and St Thomas NHS Foundation Trust,12/02/2021,(84400) Transport,(id:42579) Central Services,STARCROSS TRADING LTD T/A BEARS,id:13752151   ,1275.87
Department of Health,Guys and St Thomas NHS Foundation Trust,12/02/2021,(84400) Transport,(id:42579) Central Services,STARCROSS TRADING LTD T/A BEARS,id:13752157   ,1391.92
Department of Health,Guys and St Thomas NHS Foundation Trust,12/02/2021,(84400) Transport,(id:42579) Central Services,STARCROSS TRADING LTD T/A BEARS,id:13752174   ,1425.80
Department of Health,Guys and St Thomas NHS Foundation Trust,12/02/2021,(84400) Transport,(id:42579) Central Services,STARCROSS TRADING LTD T/A BEARS,id:13752201   ,1543.46
Department of Health,Guys and St Thomas NHS Foundation Trust,12/02/2021,(84400) Transport,(id:42579) Central Services,STARCROSS TRADING LTD T/A BEARS,id:13752152   ,1960.00
Department of Health,Guys and St Thomas NHS Foundation Trust,12/02/2021,(84400) Transport,(id:42579) Central Services,STARCROSS TRADING LTD T/A BEARS,id:13752208   ,2054.62
Department of Health,Guys and St Thomas NHS Foundation Trust,12/02/2021,(84400) Transport,(id:42579) Central Services,STARCROSS TRADING LTD T/A BEARS,id:13752231   ,3200.00
Department of Health,Guys and St Thomas NHS Foundation Trust,12/02/2021,(84400) Transport,(id:42579) Central Services,STARCROSS TRADING LTD T/A BEARS,id:13752242   ,3990.90
Department of Health,Guys and St Thomas NHS Foundation Trust,12/02/2021,(84400) Transport,(id:42579) Central Services,STARCROSS TRADING LTD T/A BEARS,id:13752226   ,9200.00
Department of Health,Guys and St Thomas NHS Foundation Trust,19/02/2021,(84400) Transport,(id:42579) Central Services,CMAC GROUP UK LTD,id:13728796  ,9144.36
Department of Health,Guys and St Thomas NHS Foundation Trust,19/02/2021,(84400) Transport,(id:42579) Central Services,STARCROSS TRADING LTD T/A BEARS,id:13779535   ,1847.70
Department of Health,Guys and St Thomas NHS Foundation Trust,19/02/2021,(84400) Transport,(id:42579) Central Services,CMAC GROUP UK LTD,id:13728795  ,7146.42
Department of Health,Guys and St Thomas NHS Foundation Trust,19/02/2021,(84400) Transport,(id:42579) Central Services,STARCROSS TRADING LTD T/A BEARS,id:13776403   ,    13440.00
Department of Health,Guys and St Thomas NHS Foundation Trust,19/02/2021,(84400) Transport,(id:42579) Central Services,STARCROSS TRADING LTD T/A BEARS,id:13777114   , 470.60
Department of Health,Guys and St Thomas NHS Foundation Trust,19/02/2021,(84400) Transport,(id:42579) Central Services,STARCROSS TRADING LTD T/A BEARS,id:13776115   , 510.00
Department of Health,Guys and St Thomas NHS Foundation Trust,19/02/2021,(84400) Transport,(id:42579) Central Services,STARCROSS TRADING LTD T/A BEARS,id:13779634   , 600.00
Department of Health,Guys and St Thomas NHS Foundation Trust,19/02/2021,(84400) Transport,(id:42579) Central Services,STARCROSS TRADING LTD T/A BEARS,id:13776415   , 810.00
Department of Health,Guys and St Thomas NHS Foundation Trust,19/02/2021,(84400) Transport,(id:42579) Central Services,STARCROSS TRADING LTD T/A BEARS,id:13780094   , 871.92
Department of Health,Guys and St Thomas NHS Foundation Trust,25/02/2021,(84400) Transport,(id:42579) Central Services,STARCROSS TRADING LTD T/A BEARS,id:13802714   , 871.92
Department of Health,Guys and St Thomas NHS Foundation Trust,25/02/2021,(84400) Transport,(id:42579) Central Services,STARCROSS TRADING LTD T/A BEARS,id:13802795   , 871.92
Department of Health,Guys and St Thomas NHS Foundation Trust,25/02/2021,(84400) Transport,(id:42579) Central Services,STARCROSS TRADING LTD T/A BEARS,id:13801534   ,1100.00
Department of Health,Guys and St Thomas NHS Foundation Trust,25/02/2021,(84400) Transport,(id:42579) Central Services,STARCROSS TRADING LTD T/A BEARS,id:13802574   ,1342.49
Department of Health,Guys and St Thomas NHS Foundation Trust,25/02/2021,(84400) Transport,(id:42579) Central Services,STARCROSS TRADING LTD T/A BEARS,id:13801814   ,1600.00
Department of Health,Guys and St Thomas NHS Foundation Trust,25/02/2021,(84400) Transport,(id:42579) Central Services,STARCROSS TRADING LTD T/A BEARS,id:13802655   ,2134.63
Department of Health,Guys and St Thomas NHS Foundation Trust,25/02/2021,(84400) Transport,(id:42579) Central Services,STARCROSS TRADING LTD T/A BEARS,id:13801915   ,2400.00
Department of Health,Guys and St Thomas NHS Foundation Trust,25/02/2021,(84400) Transport,(id:42579) Central Services,STARCROSS TRADING LTD T/A BEARS,id:13801834   ,3605.00
Department of Health,Guys and St Thomas NHS Foundation Trust,25/02/2021,(84400) Transport,(id:42579) Central Services,SAVOY VENTURES LTD.,id:13791516,3700.00
Department of Health,Guys and St Thomas NHS Foundation Trust,25/02/2021,(84400) Transport,(id:42579) Central Services,Q DESPATCH (WEST) LTD,id:13752253   ,9643.66
Department of Health,Guys and St Thomas NHS Foundation Trust,12/02/2021,(84100) Transport,(id:42579) Central Services,OMD AUTOS LIMITED,id:13752161  , 475.00
Department of Health,Guys and St Thomas NHS Foundation Trust,12/02/2021,(84100) Transport,(id:42579) Central Services,OMD AUTOS LIMITED,id:13752163  , 661.00
Department of Health,Guys and St Thomas NHS Foundation Trust,12/02/2021,(84100) Transport,(id:42579) Central Services,OMD AUTOS LIMITED,id:13752159  , 970.00
Department of Health,Guys and St Thomas NHS Foundation Trust,25/02/2021,(83880) Building & Engineering,(id:42559) Central Services,WOODNUT CONSTRUCTION & DEVELOPMENT LTD,id:13781175   , 522.00
Department of Health,Guys and St Thomas NHS Foundation Trust,19/02/2021,(82000) Provisions & Kitchens,(id:42535) Central Services,NHS SUPPLY CHAIN (MAIDSTONE),id:13633898    , 235.17
Department of Health,Guys and St Thomas NHS Foundation Trust,05/02/2021,(82000) Provisions & Kitchens,(id:42535) Central Services,HAGESUD BOSSE U.K LTD T/A BOSSE INTERSPICE LTD,id:13729210 , 718.58
Department of Health,Guys and St Thomas NHS Foundation Trust,05/02/2021,(83400) Office Equipment,(id:42535) Central Services,FOSTER REFRIDGERATOR UK LTD,id:13714074,6823.17
Department of Health,Guys and St Thomas NHS Foundation Trust,05/02/2021,(83400) Office Equipment,(id:42524) Central Services,BLACK KNIGHT RETAIL SYSTEMS LLP,id:13656874 , 591.00
Department of Health,Guys and St Thomas NHS Foundation Trust,23/02/2021,(83400) Office Equipment,(id:42522) Central Services,PELICAN PROCUREMENT SERVICES LTD,id:13791055, 737.65
Department of Health,Guys and St Thomas NHS Foundation Trust,12/02/2021,(83400) Office Equipment,(id:42538) Central Services,SIEMENS FINANCIAL SERVICES LIMITED,id:13753398   , 939.22
Department of Health,Guys and St Thomas NHS Foundation Trust,12/02/2021,(83400) Office Equipment,(id:42538) Central Services,SIEMENS FINANCIAL SERVICES LIMITED,id:13753434   , 939.22
Department of Health,Guys and St Thomas NHS Foundation Trust,05/02/2021,(83500) Furniture & Fittings,(id:4629421) Asset Management,AMMO & COMPANY LTD,id:13653894   ,    55475.00
Department of Health,Guys and St Thomas NHS Foundation Trust,05/02/2021,(83755) Rental under Operating Lease,(id:4997420) Asset Management,CER LONG LANE LTD,id:13704315 ,7920.00
Department of Health,Guys and St Thomas NHS Foundation Trust,12/02/2021,(83110) Energy Costs,(id:1552419) Asset Management,BRITISH GAS BUSINESS:70299300,id:13735196,1085.79
Department of Health,Guys and St Thomas NHS Foundation Trust,12/02/2021,(84500) Establishment,(id:42624) Asset Management,PERFECT COLOURS LTD,id:13656114 , 861.60
Department of Health,Guys and St Thomas NHS Foundation Trust,25/02/2021,(89120) Other - Legal fees,(id:42624) Asset Management,BEACHCROFT LLP OFFICE ACCOUNT,id:13467148 , 420.30
Department of Health,Guys and St Thomas NHS Foundation Trust,25/02/2021,(89120) Other - Legal fees,(id:42624) Asset Management,BEACHCROFT LLP OFFICE ACCOUNT,id:13467199 ,3751.50
Department of Health,Guys and St Thomas NHS Foundation Trust,05/02/2021,(83110) Energy Costs,(id:4934428) Asset Management,EDF ENERGY,id:13716834    ,    -2840.05
Department of Health,Guys and St Thomas NHS Foundation Trust,05/02/2021,(83120) Energy Costs,(id:4934422) Asset Management,TOTAL GAS & POWER LIMITED,id:13646514    , 772.57
Department of Health,Guys and St Thomas NHS Foundation Trust,05/02/2021,(83110) Energy Costs,(id:4933419) Asset Management,EDF ENERGY,id:13706355    ,2623.77
Department of Health,Guys and St Thomas NHS Foundation Trust,12/02/2021,(83755) Rental under Operating Lease,(id:42655) Asset Management,ASSURA ASPIRE UK LTD,id:13688573,    11450.00
Department of Health,Guys and St Thomas NHS Foundation Trust,19/02/2021,(83400) Office Equipment,(id:389410) Essentia Community Services,ZIP HEATERS (UK) T/A ZIP WATER,id:13766834,2311.56
Department of Health,Guys and St Thomas NHS Foundation Trust,19/02/2021,(83400) Office Equipment,(id:492412) Essentia Community Services,CITY & KENT CLEANING LTD,id:13724574 , 461.40
Department of Health,Guys and St Thomas NHS Foundation Trust,05/02/2021,(83400) Office Equipment,(id:2812419) Essentia Community Services,MEDLOCK ELECTRICAL DISTRIBUTORS,id:13667356   ,1984.75
Department of Health,Guys and St Thomas NHS Foundation Trust,25/02/2021,(83820) Building & Engineering,(id:1649419) Essentia Community Services,LAZERBEAM FIRE AND SECURITY LTD,id:13675095  ,3118.00
Department of Health,Guys and St Thomas NHS Foundation Trust,19/02/2021,(83340) Premises Services,(id:1116424) Essentia Community Services,CITY & KENT CLEANING LTD,id:13319314    ,4979.33
Department of Health,Guys and St Thomas NHS Foundation Trust,19/02/2021,(83340) Premises Services,(id:1116422) Essentia Community Services,CITY & KENT CLEANING LTD,id:13526299    ,5223.60
Department of Health,Guys and St Thomas NHS Foundation Trust,19/02/2021,(83340) Premises Services,(id:1116421) Essentia Community Services,CITY & KENT CLEANING LTD,id:13766934    ,5223.60
Department of Health,Guys and St Thomas NHS Foundation Trust,25/02/2021,(83343) Premises Services,(id:1116419) Essentia Community Services,BYWATERS (LEYTON) LTD,id:13798847  , 507.08
Department of Health,Guys and St Thomas NHS Foundation Trust,12/02/2021,(83343) Premises Services,(id:1116419) Essentia Community Services,TERMINIX UK LTD (MITIE),id:13736456, 759.90
Department of Health,Guys and St Thomas NHS Foundation Trust,05/02/2021,(83880) Building & Engineering,(id:1667419) Essentia Community Services,HMC COMPLIANCE LTD,id:13703914, 650.00
Department of Health,Guys and St Thomas NHS Foundation Trust,12/02/2021,(83820) Building & Engineering,(id:1116427) Essentia Community Services,DUCTCLEAN UK LTD,id:13655549  , 750.00
Department of Health,Guys and St Thomas NHS Foundation Trust,12/02/2021,(83880) Building & Engineering,(id:4629422) Essentia Community Services,BRANDON MEDICAL COMPANY LTD,id:13680045 ,1520.00
Department of Health,Guys and St Thomas NHS Foundation Trust,19/02/2021,(83360) Premises Services,(id:4629422) Essentia Community Services,SHRED-IT LTD,id:13748694 , 490.50
Department of Health,Guys and St Thomas NHS Foundation Trust,19/02/2021,(83360) Premises Services,(id:4629422) Essentia Community Services,SHRED-IT LTD,id:13778494 , 588.60
Department of Health,Guys and St Thomas NHS Foundation Trust,12/02/2021,(83400) Office Equipment,(id:492598) Essentia Community Services,SWIFTCLEAN (UK) LTD,id:13751235 ,1727.00
Department of Health,Guys and St Thomas NHS Foundation Trust,19/02/2021,(84200) Rental under Operating Lease,(id:492597) Essentia Community Services,ENTERPRISE RENT A CAR LTD,id:13757580   , 473.87
Department of Health,Guys and St Thomas NHS Foundation Trust,05/02/2021,(83880) Building & Engineering,(id:492606) Essentia Community Services,ROPTEC LTD,id:13643314    ,4950.00
Department of Health,Guys and St Thomas NHS Foundation Trust,25/02/2021,(83880) Building & Engineering,(id:492606) Essentia Community Services,LAZERBEAM FIRE AND SECURITY LTD,id:13675054   , 900.00
Department of Health,Guys and St Thomas NHS Foundation Trust,05/02/2021,(83342) Premises Services,(id:492421) Essentia Commercial,PHS GROUP,id:13727954   ,1499.15
Department of Health,Guys and St Thomas NHS Foundation Trust,05/02/2021,(83342) Premises Services,(id:492421) Essentia Commercial,SRCL LTD,id:13722494    ,1965.15
Department of Health,Guys and St Thomas NHS Foundation Trust,05/02/2021,(83342) Premises Services,(id:492421) Essentia Commercial,SRCL LTD,id:13722334    ,2162.48
Department of Health,Guys and St Thomas NHS Foundation Trust,05/02/2021,(83342) Premises Services,(id:492421) Essentia Commercial,SRCL LTD,id:13722194    ,2169.51
Department of Health,Guys and St Thomas NHS Foundation Trust,05/02/2021,(83342) Premises Services,(id:492421) Essentia Commercial,SRCL LTD,id:13722234    ,3312.20
Department of Health,Guys and St Thomas NHS Foundation Trust,12/02/2021,(83342) Premises Services,(id:492421) Essentia Commercial,SRCL LTD,id:13753874    ,1852.82
Department of Health,Guys and St Thomas NHS Foundation Trust,12/02/2021,(83342) Premises Services,(id:492421) Essentia Commercial,SRCL LTD,id:13753914    ,1959.91
Department of Health,Guys and St Thomas NHS Foundation Trust,12/02/2021,(83342) Premises Services,(id:492421) Essentia Commercial,PHS GROUP,id:13735955   ,3686.68
Department of Health,Guys and St Thomas NHS Foundation Trust,19/02/2021,(83342) Premises Services,(id:492421) Essentia Commercial,SRCL LTD,id:13757696    ,4657.55
Department of Health,Guys and St Thomas NHS Foundation Trust,19/02/2021,(83343) Premises Services,(id:492421) Essentia Commercial,VEOLIA ES (UK) LTD,id:13722034    , 467.84
Department of Health,Guys and St Thomas NHS Foundation Trust,25/02/2021,(83110) Energy Costs,(id:492455) Essentia Commercial,BRITISH GAS BUSINESS:70299300,id:13794357   , 330.36
Department of Health,Guys and St Thomas NHS Foundation Trust,25/02/2021,(83120) Energy Costs,(id:492455) Essentia Commercial,CORONA ENERGY RETAIL 4 LTD,id:13800494 ,1029.00
Department of Health,Guys and St Thomas NHS Foundation Trust,19/02/2021,(55092) Admin & Clerical,(id:492416) Essentia Commercial,VENN GROUP LTD,id:13750773    ,3605.14
Department of Health,Guys and St Thomas NHS Foundation Trust,12/02/2021,(83110) Energy Costs,(id:42626) Essentia Infrastructure,EDF ENERGY,id:13736074    ,    54949.31
Department of Health,Guys and St Thomas NHS Foundation Trust,05/02/2021,(83120) Energy Costs,(id:1788419) Essentia Infrastructure,TOTAL GAS & POWER LIMITED,id:13647159  ,   107733.00
Department of Health,Guys and St Thomas NHS Foundation Trust,05/02/2021,(89270) Establishment,(id:1361419) Essentia COO,HEALTHCARE DESIGN CONSULTANTS,id:13717635   ,1425.00
Department of Health,Guys and St Thomas NHS Foundation Trust,25/02/2021,(83360) Premises Services,(id:2614419) Guys Site services,CORPS SECURITY,id:13787134   ,5790.72
Department of Health,Guys and St Thomas NHS Foundation Trust,05/02/2021,(83880) Building & Engineering,(id:4624420) Guys Site services,CITY & KENT CLEANING LTD,id:13728410   ,1110.00
Department of Health,Guys and St Thomas NHS Foundation Trust,05/02/2021,(83880) Building & Engineering,(id:4624420) Guys Site services,CITY & KENT CLEANING LTD,id:13706774   ,4070.00
Department of Health,Guys and St Thomas NHS Foundation Trust,05/02/2021,(83880) Building & Engineering,(id:4624420) Guys Site services,CITY & KENT CLEANING LTD,id:13728408   ,4050.00
Department of Health,Guys and St Thomas NHS Foundation Trust,05/02/2021,(55642) Maintenance Staff,(id:42662) Guys Site services,MORGAN HUNT UK LTD,id:13727106 , 966.60
Department of Health,Guys and St Thomas NHS Foundation Trust,25/02/2021,(83360) Premises Services,(id:4624419) Guys Site services,CITY & KENT CLEANING LTD,id:13783497   , 583.80
Department of Health,Guys and St Thomas NHS Foundation Trust,25/02/2021,(83360) Premises Services,(id:4624419) Guys Site services,CITY & KENT CLEANING LTD,id:13783498   , 583.80
Department of Health,Guys and St Thomas NHS Foundation Trust,25/02/2021,(83360) Premises Services,(id:4624419) Guys Site services,CITY & KENT CLEANING LTD,id:13783556   , 875.70
Department of Health,Guys and St Thomas NHS Foundation Trust,19/02/2021,(84620) Establishment,(id:4624419) Guys Site services,CITY & KENT CLEANING LTD,id:13761434  , 583.80
Department of Health,Guys and St Thomas NHS Foundation Trust,19/02/2021,(83400) Office Equipment,(id:42545) Guys Site services,CITY & KENT CLEANING LTD,id:13771370 ,1082.40
Department of Health,Guys and St Thomas NHS Foundation Trust,19/02/2021,(83400) Office Equipment,(id:42545) Guys Site services,CITY & KENT CLEANING LTD,id:13771384 ,1968.00
Department of Health,Guys and St Thomas NHS Foundation Trust,19/02/2021,(83360) Premises Services,(id:42545) Guys Site services,CITY & KENT CLEANING LTD,id:13776874, 985.33
Department of Health,Guys and St Thomas NHS Foundation Trust,25/02/2021,(83400) Office Equipment,(id:1270419) Guys Site services,EDWARDES BROS (DULWICH) LTD,id:13768678 ,4920.00
Department of Health,Guys and St Thomas NHS Foundation Trust,19/02/2021,(83400) Office Equipment,(id:1270419) Guys Site services,NHS SUPPLY CHAIN (MAIDSTONE),id:13687498,   2.35
Department of Health,Guys and St Thomas NHS Foundation Trust,12/02/2021,(83880) Building & Engineering,(id:42634) Guys Site services,MAITLAND ENGINEERING LTD,id:13754880,2773.00
Department of Health,Guys and St Thomas NHS Foundation Trust,05/02/2021,(83400) Office Equipment,(id:42634) Guys Site services,EDWARDES BROS (DULWICH) LTD,id:13712977   , 680.40
Department of Health,Guys and St Thomas NHS Foundation Trust,19/02/2021,(55652) Maintenance Staff,(id:42633) Guys Site services,MICHAEL PAGE INTERNATIONAL RECRUITMENT LTD,id:13779704  ,1156.06
Department of Health,Guys and St Thomas NHS Foundation Trust,05/02/2021,(55632) Maintenance Staff,(id:42633) Guys Site services,MORGAN HUNT UK LTD,id:13730836 , 790.66
Department of Health,Guys and St Thomas NHS Foundation Trust,05/02/2021,(83500) Furniture & Fittings,(id:42632) Guys Site services,H C SLINGSBY PLC,id:13700323,2574.00
Department of Health,Guys and St Thomas NHS Foundation Trust,05/02/2021,(83400) Office Equipment,(id:42631) Guys Site services,RICHMONDS OF LONDON LTD,id:13673914  , 822.00
Department of Health,Guys and St Thomas NHS Foundation Trust,12/02/2021,(83400) Office Equipment,(id:42631) Guys Site services,CLEARWATER TECHNOLOGY LTD,id:13738574,1101.60
Department of Health,Guys and St Thomas NHS Foundation Trust,12/02/2021,(83400) Office Equipment,(id:42631) Guys Site services,RICHMONDS OF LONDON LTD,id:13735214  , 885.60
Department of Health,Guys and St Thomas NHS Foundation Trust,12/02/2021,(83400) Office Equipment,(id:42631) Guys Site services,RICHMONDS OF LONDON LTD,id:13740974  ,2398.37
Department of Health,Guys and St Thomas NHS Foundation Trust,05/02/2021,(83880) Building & Engineering,(id:42631) Guys Site services,CITY & KENT CLEANING LTD,id:13618160,3840.00
Department of Health,Guys and St Thomas NHS Foundation Trust,12/02/2021,(83880) Building & Engineering,(id:42631) Guys Site services,SOCOTEC UK LTD,id:13674674, 825.00
Department of Health,Guys and St Thomas NHS Foundation Trust,19/02/2021,(83880) Building & Engineering,(id:42631) Guys Site services,BURCH DRAINAGE LTD,id:13622208 , 930.00
Department of Health,Guys and St Thomas NHS Foundation Trust,19/02/2021,(83880) Building & Engineering,(id:42631) Guys Site services,CITY & KENT CLEANING LTD,id:13611494,1950.00
Department of Health,Guys and St Thomas NHS Foundation Trust,19/02/2021,(83880) Building & Engineering,(id:42631) Guys Site services,CITY & KENT CLEANING LTD,id:13610954,3200.00
Department of Health,Guys and St Thomas NHS Foundation Trust,19/02/2021,(83400) Office Equipment,(id:1271419) STH Site Services,EDWARDES BROS (DULWICH) LTD,id:13756974  , 833.16
